Body Name,Body,Service Area Catergorisation,Service Division Catergorisation,Responsible Unit,Expenses Type,Detailed Expenses Type,Expenses Code,Date,Transaction Number,Amount,Capital / Revenue,Supplier Name,Supplier ID
North East Lincolnshire Council,http://statistics.data.gov.uk/id/local-authority/00FC,Cap Resources,Cap Commission & Inform System,Capita One,Cap Veh Plt Eqp-Prof Fees,Cap Veh Plt Eqp-Prof Fees,YB103,25/04/2013,193470,486.16,CAPITAL,MATRIX SCM LTD,108117
North East Lincolnshire Council,http://statistics.data.gov.uk/id/local-authority/00FC,Cap Resources,Cap Commission & Inform System,Capita One,Cap Veh Plt Eqp-Prof Fees,Cap Veh Plt Eqp-Prof Fees,YB103,16/04/2013,190651,609.76,CAPITAL,MATRIX SCM LTD,108117
North East Lincolnshire Council,http://statistics.data.gov.uk/id/local-authority/00FC,Cap Resources,Cap Commission & Inform System,Capita One,Cap Veh Plt Eqp-Prof Fees,Cap Veh Plt Eqp-Prof Fees,YB103,16/04/2013,190653,609.76,CAPITAL,MATRIX SCM LTD,108117
North East Lincolnshire Council,http://statistics.data.gov.uk/id/local-authority/00FC,Cap Resources,Cap Commission & Inform System,Capita One,Cap Veh Plt Eqp-Prof Fees,Cap Veh Plt Eqp-Prof Fees,YB103,02/04/2013,186920,609.76,CAPITAL,MATRIX SCM LTD,108117
North East Lincolnshire Council,http://statistics.data.gov.uk/id/local-authority/00FC,Cap Resources,Cap Commission & Inform System,Capita One,Cap Veh Plt Eqp-Purchase,Cap Veh Plt Eqp-Purchase,YB101,15/04/2013,190050,"1,000.00",CAPITAL,CAPITA BUSINESS SERVICES LTD,102314
North East Lincolnshire Council,http://statistics.data.gov.uk/id/local-authority/00FC,Cap Resources,Cap Commission & Inform System,Capita One,Cap Veh Plt Eqp-Prof Fees,Cap Veh Plt Eqp-Prof Fees,YB103,25/04/2013,193466,"1,104.16",CAPITAL,MATRIX SCM LTD,108117
North East Lincolnshire Council,http://statistics.data.gov.uk/id/local-authority/00FC,Cap Resources,Cap Commission & Inform System,Frontier Isms Project,Cap Veh Plt Eqp-Purchase,Cap Veh Plt Eqp-Purchase,YB101,30/04/2013,193482,"1,785.70",CAPITAL,BADENOCH & CLARK,101427
North East Lincolnshire Council,http://statistics.data.gov.uk/id/local-authority/00FC,Cap Resources,Cap Finance And Assets,Toilet Refurbishment,Cap Land/Build-Build Enh Wrk,Cap Land/Build-Build Enh Wrk,YA102,10/04/2013,187065,"8,282.79",CAPITAL,E S RUDKIN LTD,100632
North East Lincolnshire Council,http://statistics.data.gov.uk/id/local-authority/00FC,Cap Resources,Cap Finance And Assets,Property Planned Repairs,Cap Land/Build-Build Enh Wrk,Cap Land/Build-Build Enh Wrk,YA102,23/04/2013,192237,"46,468.00",CAPITAL,MANTA BRC LTD,102230
North East Lincolnshire Council,http://statistics.data.gov.uk/id/local-authority/00FC,Cap Resources,Cap Finance And Assets,Property Planned Repairs,Cap Land/Build-Build Enh Wrk,Cap Land/Build-Build Enh Wrk,YA102,30/04/2013,193850,650.00,CAPITAL,HIRST CONSERVATION,108145
North East Lincolnshire Council,http://statistics.data.gov.uk/id/local-authority/00FC,Cap Resources,Cap Finance And Assets,Property Planned Repairs,Cap Land/Build-Build Enh Wrk,Cap Land/Build-Build Enh Wrk,YA102,30/04/2013,193852,550.20,CAPITAL,WIL-LEC ELECTRICAL CONTRACTORS LTD,101370
North East Lincolnshire Council,http://statistics.data.gov.uk/id/local-authority/00FC,Cap Resources,Cap Finance And Assets,Property Planned Repairs,Cap Land/Build-Build Enh Wrk,Cap Land/Build-Build Enh Wrk,YA102,29/04/2013,193019,REDACTED COMMERCIALLY SENSITIVE,CAPITAL,BALFOUR BEATTY,102595
North East Lincolnshire Council,http://statistics.data.gov.uk/id/local-authority/00FC,Cap Economy Env And Housing,Cap Neighbourhood Services,Peoples Park,Cap Land/Build-Purchase,Cap Land/Build-Purchase,YA101,11/04/2013,189827,750.00,CAPITAL,CHAINSAW SCULPTURE LTD,119900
North East Lincolnshire Council,http://statistics.data.gov.uk/id/local-authority/00FC,Cap Economy Env And Housing,Cap Neighbourhood Services,Waste Recycling Obc Capital,Cap Land/Build-Build Enh Wrk,Cap Land/Build-Build Enh Wrk,YA102,10/04/2013,189017,250.00,CAPITAL,PLASTIC OMNIUM URBAN SYSTEMS LTD,100923
North East Lincolnshire Council,http://statistics.data.gov.uk/id/local-authority/00FC,Cap Economy Env And Housing,Cap Neighbourhood Services,Waste Recycling Obc Capital,Cap Land/Build-Build Enh Wrk,Cap Land/Build-Build Enh Wrk,YA102,10/04/2013,189018,"13,634.40",CAPITAL,PLASTIC OMNIUM URBAN SYSTEMS LTD,100923
North East Lincolnshire Council,http://statistics.data.gov.uk/id/local-authority/00FC,Cap Economy Env And Housing,Cap Neighbourhood Services,Waste Recycling Obc Capital,Cap Land/Build-Build Enh Wrk,Cap Land/Build-Build Enh Wrk,YA102,10/04/2013,189017,"13,930.80",CAPITAL,PLASTIC OMNIUM URBAN SYSTEMS LTD,100923
North East Lincolnshire Council,http://statistics.data.gov.uk/id/local-authority/00FC,Cap Economy Env And Housing,Cap Neighbourhood Services,Waste Recycling Obc Capital,Cap Land/Build-Build Enh Wrk,Cap Land/Build-Build Enh Wrk,YA102,30/04/2013,193428,"15,022.60",CAPITAL,STRAIGHT PLC,101624
North East Lincolnshire Council,http://statistics.data.gov.uk/id/local-authority/00FC,Cap Economy Env And Housing,Cap Development,Hps-Disabled Fac. Grants,Cap Grants To O/Side Sources,Cap Grants To O/Side Sources,YJ101,15/04/2013,190112,"1,297.00",CAPITAL,F R TOWNSEND & CO LTD,104217
North East Lincolnshire Council,http://statistics.data.gov.uk/id/local-authority/00FC,Cap Economy Env And Housing,Cap Development,Hps-Disabled Fac. Grants,Cap Grants To O/Side Sources,Cap Grants To O/Side Sources,YJ101,22/04/2013,191880,"1,460.00",CAPITAL,DOLPHIN MOBILITY EAST MIDLANDS LTD,101317
North East Lincolnshire Council,http://statistics.data.gov.uk/id/local-authority/00FC,Cap Economy Env And Housing,Cap Development,Hps-Disabled Fac. Grants,Cap Grants To O/Side Sources,Cap Grants To O/Side Sources,YJ101,10/04/2013,182043,"1,839.18",CAPITAL,MEARS LTD,102433
North East Lincolnshire Council,http://statistics.data.gov.uk/id/local-authority/00FC,Cap Economy Env And Housing,Cap Development,Hps-Disabled Fac. Grants,Cap Grants To O/Side Sources,Cap Grants To O/Side Sources,YJ101,22/04/2013,191062,"2,000.00",CAPITAL,M D BUILDING,103356
North East Lincolnshire Council,http://statistics.data.gov.uk/id/local-authority/00FC,Cap Economy Env And Housing,Cap Development,Hps-Disabled Fac. Grants,Cap Grants To O/Side Sources,Cap Grants To O/Side Sources,YJ101,30/04/2013,193665,"2,084.00",CAPITAL,HANDICARE ACCESSIIBILITY LTD,102647
North East Lincolnshire Council,http://statistics.data.gov.uk/id/local-authority/00FC,Cap Economy Env And Housing,Cap Development,Hps-Disabled Fac. Grants,Cap Grants To O/Side Sources,Cap Grants To O/Side Sources,YJ101,17/04/2013,190661,"2,324.00",CAPITAL,HANDICARE ACCESSIIBILITY LTD,102647
North East Lincolnshire Council,http://statistics.data.gov.uk/id/local-authority/00FC,Cap Economy Env And Housing,Cap Development,Hps-Disabled Fac. Grants,Cap Grants To O/Side Sources,Cap Grants To O/Side Sources,YJ101,30/04/2013,192956,"2,450.00",CAPITAL,DOLPHIN MOBILITY EAST MIDLANDS LTD,101317
North East Lincolnshire Council,http://statistics.data.gov.uk/id/local-authority/00FC,Cap Economy Env And Housing,Cap Development,Hps-Disabled Fac. Grants,Cap Grants To O/Side Sources,Cap Grants To O/Side Sources,YJ101,24/04/2013,192179,"2,886.26",CAPITAL,MEARS LTD,102433
North East Lincolnshire Council,http://statistics.data.gov.uk/id/local-authority/00FC,Cap Economy Env And Housing,Cap Development,Hps-Disabled Fac. Grants,Cap Grants To O/Side Sources,Cap Grants To O/Side Sources,YJ101,08/04/2013,188371,"4,223.25",CAPITAL,LINCS PLUMBING & HEATING CO,102584
North East Lincolnshire Council,http://statistics.data.gov.uk/id/local-authority/00FC,Cap Economy Env And Housing,Cap Development,Hps-Disabled Fac. Grants,Cap Grants To O/Side Sources,Cap Grants To O/Side Sources,YJ101,18/04/2013,190666,"4,408.47",CAPITAL,MEARS LTD,102433
North East Lincolnshire Council,http://statistics.data.gov.uk/id/local-authority/00FC,Cap Economy Env And Housing,Cap Development,Hps-Disabled Fac. Grants,Cap Grants To O/Side Sources,Cap Grants To O/Side Sources,YJ101,18/04/2013,190611,"4,525.00",CAPITAL,CLEVELAND JOINERY,102580
North East Lincolnshire Council,http://statistics.data.gov.uk/id/local-authority/00FC,Cap Economy Env And Housing,Cap Development,Hps-Disabled Fac. Grants,Cap Grants To O/Side Sources,Cap Grants To O/Side Sources,YJ101,17/04/2013,190055,"4,592.00",CAPITAL,DOLPHIN MOBILITY EAST MIDLANDS LTD,101317
North East Lincolnshire Council,http://statistics.data.gov.uk/id/local-authority/00FC,Cap Economy Env And Housing,Cap Development,Hps-Disabled Fac. Grants,Cap Grants To O/Side Sources,Cap Grants To O/Side Sources,YJ101,24/04/2013,192181,"4,695.91",CAPITAL,MEARS LTD,102433
North East Lincolnshire Council,http://statistics.data.gov.uk/id/local-authority/00FC,Cap Economy Env And Housing,Cap Development,Hps-Disabled Fac. Grants,Cap Grants To O/Side Sources,Cap Grants To O/Side Sources,YJ101,22/04/2013,190927,"4,773.00",CAPITAL,M D BUILDING,103356
North East Lincolnshire Council,http://statistics.data.gov.uk/id/local-authority/00FC,Cap Economy Env And Housing,Cap Development,Hps-Disabled Fac. Grants,Cap Grants To O/Side Sources,Cap Grants To O/Side Sources,YJ101,24/04/2013,192333,"4,855.07",CAPITAL,MEARS LTD,102433
North East Lincolnshire Council,http://statistics.data.gov.uk/id/local-authority/00FC,Cap Economy Env And Housing,Cap Development,Hps-Disabled Fac. Grants,Cap Grants To O/Side Sources,Cap Grants To O/Side Sources,YJ101,22/04/2013,191877,"5,015.00",CAPITAL,DOLPHIN MOBILITY EAST MIDLANDS LTD,101317
North East Lincolnshire Council,http://statistics.data.gov.uk/id/local-authority/00FC,Cap Economy Env And Housing,Cap Development,Hps-Disabled Fac. Grants,Cap Grants To O/Side Sources,Cap Grants To O/Side Sources,YJ101,24/04/2013,192174,"5,088.84",CAPITAL,F R TOWNSEND & CO LTD,104217
North East Lincolnshire Council,http://statistics.data.gov.uk/id/local-authority/00FC,Cap Economy Env And Housing,Cap Development,Hps-Disabled Fac. Grants,Cap Grants To O/Side Sources,Cap Grants To O/Side Sources,YJ101,22/04/2013,191879,"5,107.00",CAPITAL,DOLPHIN MOBILITY EAST MIDLANDS LTD,101317
North East Lincolnshire Council,http://statistics.data.gov.uk/id/local-authority/00FC,Cap Economy Env And Housing,Cap Development,Hps-Disabled Fac. Grants,Cap Grants To O/Side Sources,Cap Grants To O/Side Sources,YJ101,24/04/2013,191061,"5,110.00",CAPITAL,VIC HANSEN BUILDING & JOINERY LTD,103981
North East Lincolnshire Council,http://statistics.data.gov.uk/id/local-authority/00FC,Cap Economy Env And Housing,Cap Development,Hps-Disabled Fac. Grants,Cap Grants To O/Side Sources,Cap Grants To O/Side Sources,YJ101,24/04/2013,192212,"5,450.00",CAPITAL,LINCS PLUMBING & HEATING CO,102584
North East Lincolnshire Council,http://statistics.data.gov.uk/id/local-authority/00FC,Cap Economy Env And Housing,Cap Development,Hps-Disabled Fac. Grants,Cap Grants To O/Side Sources,Cap Grants To O/Side Sources,YJ101,24/04/2013,192211,"5,765.00",CAPITAL,MARK BENNETT,101838
North East Lincolnshire Council,http://statistics.data.gov.uk/id/local-authority/00FC,Cap Economy Env And Housing,Cap Development,Hps-Disabled Fac. Grants,Cap Grants To O/Side Sources,Cap Grants To O/Side Sources,YJ101,09/04/2013,188441,"5,808.98",CAPITAL,JAMES BRATTON & CO LTD,100714
North East Lincolnshire Council,http://statistics.data.gov.uk/id/local-authority/00FC,Cap Economy Env And Housing,Cap Development,Hps-Disabled Fac. Grants,Cap Grants To O/Side Sources,Cap Grants To O/Side Sources,YJ101,17/04/2013,191066,"5,880.00",CAPITAL,E J PARMENTER,100924
North East Lincolnshire Council,http://statistics.data.gov.uk/id/local-authority/00FC,Cap Economy Env And Housing,Cap Development,Hps-Disabled Fac. Grants,Cap Grants To O/Side Sources,Cap Grants To O/Side Sources,YJ101,24/04/2013,192337,"6,381.73",CAPITAL,MEARS LTD,102433
North East Lincolnshire Council,http://statistics.data.gov.uk/id/local-authority/00FC,Cap Economy Env And Housing,Cap Development,Hps-Disabled Fac. Grants,Cap Grants To O/Side Sources,Cap Grants To O/Side Sources,YJ101,02/04/2013,181906,"6,433.81",CAPITAL,MEARS LTD,102433
North East Lincolnshire Council,http://statistics.data.gov.uk/id/local-authority/00FC,Cap Economy Env And Housing,Cap Development,Hps-Disabled Fac. Grants,Cap Grants To O/Side Sources,Cap Grants To O/Side Sources,YJ101,02/04/2013,181917,"7,819.82",CAPITAL,MEARS LTD,102433
North East Lincolnshire Council,http://statistics.data.gov.uk/id/local-authority/00FC,Cap Economy Env And Housing,Cap Development,Hps-Disabled Fac. Grants,Cap Grants To O/Side Sources,Cap Grants To O/Side Sources,YJ101,24/04/2013,192214,"11,008.02",CAPITAL,KES BUILDING MAINTENANCE LIMITED,100786
North East Lincolnshire Council,http://statistics.data.gov.uk/id/local-authority/00FC,Cap Economy Env And Housing,Cap Development,Hps-Disabled Fac. Grants,Cap Grants To O/Side Sources,Cap Grants To O/Side Sources,YJ101,24/04/2013,192083,"12,000.00",CAPITAL,VALAM BUILDERS LTD,100566
North East Lincolnshire Council,http://statistics.data.gov.uk/id/local-authority/00FC,Cap Economy Env And Housing,Cap Development,Hps-Disabled Fac. Grants,Cap Grants To O/Side Sources,Cap Grants To O/Side Sources,YJ101,17/04/2013,190053,"14,384.74",CAPITAL,MARK BENNETT,101838
North East Lincolnshire Council,http://statistics.data.gov.uk/id/local-authority/00FC,Cap Economy Env And Housing,Cap Development,Hps-Disabled Fac. Grants,Cap Grants To O/Side Sources,Cap Grants To O/Side Sources,YJ101,10/04/2013,189059,280.00,CAPITAL,STEVE BENNETT ARCHITECTURAL DESIGN,103819
North East Lincolnshire Council,http://statistics.data.gov.uk/id/local-authority/00FC,Cap Economy Env And Housing,Cap Development,Hps-Disabled Fac. Grants,Cap Grants To O/Side Sources,Cap Grants To O/Side Sources,YJ101,10/04/2013,188973,299.80,CAPITAL,STEVE BENNETT ARCHITECTURAL DESIGN,103819
North East Lincolnshire Council,http://statistics.data.gov.uk/id/local-authority/00FC,Cap Economy Env And Housing,Cap Development,Hps-Disabled Fac. Grants,Cap Grants To O/Side Sources,Cap Grants To O/Side Sources,YJ101,10/04/2013,188998,375.00,CAPITAL,STEVE BENNETT ARCHITECTURAL DESIGN,103819
North East Lincolnshire Council,http://statistics.data.gov.uk/id/local-authority/00FC,Cap Economy Env And Housing,Cap Development,Hps-Disabled Fac. Grants,Cap Grants To O/Side Sources,Cap Grants To O/Side Sources,YJ101,10/04/2013,188971,420.00,CAPITAL,STEVE BENNETT ARCHITECTURAL DESIGN,103819
North East Lincolnshire Council,http://statistics.data.gov.uk/id/local-authority/00FC,Cap Economy Env And Housing,Cap Development,Hps-Disabled Fac. Grants,Cap Grants To O/Side Sources,Cap Grants To O/Side Sources,YJ101,10/04/2013,188967,440.00,CAPITAL,STEVE BENNETT ARCHITECTURAL DESIGN,103819
North East Lincolnshire Council,http://statistics.data.gov.uk/id/local-authority/00FC,Cap Economy Env And Housing,Cap Development,Hps-Disabled Fac. Grants,Cap Grants To O/Side Sources,Cap Grants To O/Side Sources,YJ101,11/04/2013,189058,454.80,CAPITAL,STEVE BENNETT ARCHITECTURAL DESIGN,103819
North East Lincolnshire Council,http://statistics.data.gov.uk/id/local-authority/00FC,Cap Economy Env And Housing,Cap Development,Hps-Disabled Fac. Grants,Cap Grants To O/Side Sources,Cap Grants To O/Side Sources,YJ101,24/04/2013,192088,599.80,CAPITAL,STEVE BENNETT ARCHITECTURAL DESIGN,103819
North East Lincolnshire Council,http://statistics.data.gov.uk/id/local-authority/00FC,Cap Economy Env And Housing,Cap Development,Hps-Disabled Fac. Grants,Cap Grants To O/Side Sources,Cap Grants To O/Side Sources,YJ101,10/04/2013,188968,599.80,CAPITAL,STEVE BENNETT ARCHITECTURAL DESIGN,103819
North East Lincolnshire Council,http://statistics.data.gov.uk/id/local-authority/00FC,Cap Economy Env And Housing,Cap Development,Local Transport Plan,Cap Infrastr-Build Enh Wrk,Cap Infrastr-Build Enh Wrk,YC102,18/04/2013,190717,"31,190.19",CAPITAL,P H CONSTRUCTION SERVICES LTD,102107
North East Lincolnshire Council,http://statistics.data.gov.uk/id/local-authority/00FC,Cap Economy Env And Housing,Cap Development,Local Transport Plan,Cap Infrastr-Build Enh Wrk,Cap Infrastr-Build Enh Wrk,YC102,17/04/2013,190617,"1,192.29",CAPITAL,J MCCANN & CO LTD,100841
North East Lincolnshire Council,http://statistics.data.gov.uk/id/local-authority/00FC,Cap Economy Env And Housing,Cap Development,Local Transport Plan,Cap Land/Build-Build Enh Wrk,Cap Land/Build-Build Enh Wrk,YA102,17/04/2013,190704,REDACTED COMMERCIALLY SENSITIVE,CAPITAL,BALFOUR BEATTY,102595
North East Lincolnshire Council,http://statistics.data.gov.uk/id/local-authority/00FC,Cap Economy Env And Housing,Cap Development,Local Transport Plan,Cap Infrastr-Build Enh Wrk,Cap Infrastr-Build Enh Wrk,YC102,17/04/2013,190945,973.28,CAPITAL,C E SMITH & SONS,104444
North East Lincolnshire Council,http://statistics.data.gov.uk/id/local-authority/00FC,Cap Economy Env And Housing,Cap Development,Local Transport Plan,Cap Infrastr-Build Enh Wrk,Cap Infrastr-Build Enh Wrk,YC102,18/04/2013,190722,"115,519.43",CAPITAL,PELL AND BALDWIN FABRICATIONS LTD,118853
North East Lincolnshire Council,http://statistics.data.gov.uk/id/local-authority/00FC,Cap Economy Env And Housing,Cap Development,Local Transport Plan,Cap Infrastr-Build Enh Wrk,Cap Infrastr-Build Enh Wrk,YC102,30/04/2013,193161,"1,700.00",CAPITAL,LOCK IT SAFE LTD,101779
North East Lincolnshire Council,http://statistics.data.gov.uk/id/local-authority/00FC,Cap Economy Env And Housing,Cap Development,Local Transport Plan,Cap Infrastr-Build Enh Wrk,Cap Infrastr-Build Enh Wrk,YC102,30/04/2013,193161,"2,025.00",CAPITAL,LOCK IT SAFE LTD,101779
North East Lincolnshire Council,http://statistics.data.gov.uk/id/local-authority/00FC,Cap Economy Env And Housing,Cap Development,Local Transport Plan,Cap Infrastr-Build Enh Wrk,Cap Infrastr-Build Enh Wrk,YC102,17/04/2013,190617,495.33,CAPITAL,J MCCANN & CO LTD,100841
North East Lincolnshire Council,http://statistics.data.gov.uk/id/local-authority/00FC,Cap Economy Env And Housing,Cap Development,Local Transport Plan,Cap Infrastr-Purchase,Cap Infrastr-Purchase,YC101,22/04/2013,191552,400.00,CAPITAL,TRAFFIC SYSTEMS CO-OPERATIVE,100844
North East Lincolnshire Council,http://statistics.data.gov.uk/id/local-authority/00FC,Cap Economy Env And Housing,Cap Development,Local Transport Plan,Cap Infrastr-Build Enh Wrk,Cap Infrastr-Build Enh Wrk,YC102,22/04/2013,191057,"1,100.00",CAPITAL,ADVANTAGE TSC & D LTD,109136
North East Lincolnshire Council,http://statistics.data.gov.uk/id/local-authority/00FC,Cap Economy Env And Housing,Cap Development,Local Transport Plan,Cap Infrastr-Build Enh Wrk,Cap Infrastr-Build Enh Wrk,YC102,22/04/2013,191055,"2,570.00",CAPITAL,ADVANTAGE TSC & D LTD,109136
North East Lincolnshire Council,http://statistics.data.gov.uk/id/local-authority/00FC,Cap Economy Env And Housing,Cap Development,Local Transport Plan,Cap Infrastr-Build Enh Wrk,Cap Infrastr-Build Enh Wrk,YC102,17/04/2013,190671,"2,600.00",CAPITAL,ADVANTAGE TSC & D LTD,109136
North East Lincolnshire Council,http://statistics.data.gov.uk/id/local-authority/00FC,Cap Economy Env And Housing,Cap Development,Local Transport Plan,Cap Infrastr-Build Enh Wrk,Cap Infrastr-Build Enh Wrk,YC102,22/04/2013,191054,"2,700.00",CAPITAL,ADVANTAGE TSC & D LTD,109136
North East Lincolnshire Council,http://statistics.data.gov.uk/id/local-authority/00FC,Cap Economy Env And Housing,Cap Development,Local Transport Plan,Cap Infrastr-Build Enh Wrk,Cap Infrastr-Build Enh Wrk,YC102,22/04/2013,191455,"33,303.97",CAPITAL,TRAFFIC SYSTEMS CO-OPERATIVE,100844
North East Lincolnshire Council,http://statistics.data.gov.uk/id/local-authority/00FC,Cap Economy Env And Housing,Cap Development,East Marsh Renewal,Cap Land/Build-Build Enh Wrk,Cap Land/Build-Build Enh Wrk,YA102,16/04/2013,190642,"10,028.63",CAPITAL,S VOASE BUILDERS LTD,103594
North East Lincolnshire Council,http://statistics.data.gov.uk/id/local-authority/00FC,Cap Economy Env And Housing,Cap Development,East Marsh Renewal,Cap Grants To O/Side Sources,Cap Grants To O/Side Sources,YJ101,08/04/2013,188451,REDACTED COMMERCIALLY SENSITIVE,CAPITAL,BALFOUR BEATTY,102595
North East Lincolnshire Council,http://statistics.data.gov.uk/id/local-authority/00FC,Cap Economy Env And Housing,Cap Development,Housing Assistance,Cap Grants To O/Side Sources,Cap Grants To O/Side Sources,YJ101,22/04/2013,191680,"1,457.00",CAPITAL,D THORPE PLUMBING & HEATING SERVICES,118800
North East Lincolnshire Council,http://statistics.data.gov.uk/id/local-authority/00FC,Cap Economy Env And Housing,Cap Development,Housing Assistance,Cap Grants To O/Side Sources,Cap Grants To O/Side Sources,YJ101,18/04/2013,190928,"2,221.00",CAPITAL,M J QUICKFALL,102499
North East Lincolnshire Council,http://statistics.data.gov.uk/id/local-authority/00FC,Cap Economy Env And Housing,Cap Development,Housing Assistance,Cap Grants To O/Side Sources,Cap Grants To O/Side Sources,YJ101,22/04/2013,188546,"2,600.00",CAPITAL,BC ELECTRIC LTD,108240
North East Lincolnshire Council,http://statistics.data.gov.uk/id/local-authority/00FC,Cap Economy Env And Housing,Cap Development,Housing Assistance,Cap Grants To O/Side Sources,Cap Grants To O/Side Sources,YJ101,11/04/2013,188868,"2,810.00",CAPITAL,D THORPE PLUMBING & HEATING SERVICES,118800
North East Lincolnshire Council,http://statistics.data.gov.uk/id/local-authority/00FC,Cap Economy Env And Housing,Cap Development,Housing Assistance,Cap Grants To O/Side Sources,Cap Grants To O/Side Sources,YJ101,10/04/2013,189048,"3,087.60",CAPITAL,M J QUICKFALL,102499
North East Lincolnshire Council,http://statistics.data.gov.uk/id/local-authority/00FC,Cap Economy Env And Housing,Cap Development,Housing Assistance,Cap Grants To O/Side Sources,Cap Grants To O/Side Sources,YJ101,24/04/2013,191060,"3,192.64",CAPITAL,BRIAN KING HEATING & PLUMBING LTD,112869
North East Lincolnshire Council,http://statistics.data.gov.uk/id/local-authority/00FC,Cap Economy Env And Housing,Cap Development,Housing Assistance,Cap Grants To O/Side Sources,Cap Grants To O/Side Sources,YJ101,09/04/2013,188547,"3,318.00",CAPITAL,MAYNE GAS HEATING LTD,101861
North East Lincolnshire Council,http://statistics.data.gov.uk/id/local-authority/00FC,Cap Economy Env And Housing,Cap Development,Housing Assistance,Cap Grants To O/Side Sources,Cap Grants To O/Side Sources,YJ101,24/04/2013,192086,"9,878.60",CAPITAL,M J QUICKFALL,102499
North East Lincolnshire Council,http://statistics.data.gov.uk/id/local-authority/00FC,Cap Economy Env And Housing,Cap Development,Housing Assistance,Cap Grants To O/Side Sources,Cap Grants To O/Side Sources,YJ101,10/04/2013,189230,"9,111.11",CAPITAL,M J QUICKFALL,102499
North East Lincolnshire Council,http://statistics.data.gov.uk/id/local-authority/00FC,Cap Economy Env And Housing,Cap Development,Housing Assistance,Cap Grants To O/Side Sources,Cap Grants To O/Side Sources,YJ101,30/04/2013,193367,470.63,CAPITAL,THE HOME IMPROVEMENT TRUST,102222
North East Lincolnshire Council,http://statistics.data.gov.uk/id/local-authority/00FC,Cap Economy Env And Housing,Cap Development,Housing Assistance,Cap Grants To O/Side Sources,Cap Grants To O/Side Sources,YJ101,23/04/2013,191922,"253,688.85",CAPITAL,SHEFFIELD CITY COUNCIL,119344
North East Lincolnshire Council,http://statistics.data.gov.uk/id/local-authority/00FC,Cap Economy Env And Housing,Cap Development,Housing Assistance,Cap Grants To O/Side Sources,Cap Grants To O/Side Sources,YJ101,22/04/2013,191890,317.15,CAPITAL,WATSON PETROLEUM LTD,101348
North East Lincolnshire Council,http://statistics.data.gov.uk/id/local-authority/00FC,Cap Economy Env And Housing,Cap Development,Housing Assistance,Cap Grants To O/Side Sources,Cap Grants To O/Side Sources,YJ101,24/04/2013,192082,"2,769.00",CAPITAL,F R TOWNSEND & CO LTD,104217
North East Lincolnshire Council,http://statistics.data.gov.uk/id/local-authority/00FC,Cap Economy Env And Housing,Cap Development,Local Sustainable Trans Fund,Cap Infrastr-Build Enh Wrk,Cap Infrastr-Build Enh Wrk,YC102,18/04/2013,189733,272.00,CAPITAL,CLEETHORPES CHRONICLE,102013
North East Lincolnshire Council,http://statistics.data.gov.uk/id/local-authority/00FC,Cap Economy Env And Housing,Cap Development,Local Sustainable Trans Fund,Cap Infrastr-Build Enh Wrk,Cap Infrastr-Build Enh Wrk,YC102,22/04/2013,189734,272.00,CAPITAL,CLEETHORPES CHRONICLE,102013
North East Lincolnshire Council,http://statistics.data.gov.uk/id/local-authority/00FC,Cap Economy Env And Housing,Cap Development,Local Sustainable Trans Fund,Cap Infrastr-Build Enh Wrk,Cap Infrastr-Build Enh Wrk,YC102,18/04/2013,191234,293.48,CAPITAL,LOCAL WORLD LIMITED,118774
North East Lincolnshire Council,http://statistics.data.gov.uk/id/local-authority/00FC,Cap Economy Env And Housing,Cap Development,Local Sustainable Trans Fund,Cap Infrastr-Build Enh Wrk,Cap Infrastr-Build Enh Wrk,YC102,18/04/2013,191233,306.24,CAPITAL,LOCAL WORLD LIMITED,118774
North East Lincolnshire Council,http://statistics.data.gov.uk/id/local-authority/00FC,Cap Economy Env And Housing,Cap Development,Local Sustainable Trans Fund,Cap Infrastr-Build Enh Wrk,Cap Infrastr-Build Enh Wrk,YC102,24/04/2013,191988,"2,720.00",CAPITAL,BUREAU VERITAS UK LTD,102143
North East Lincolnshire Council,http://statistics.data.gov.uk/id/local-authority/00FC,Cap Economy Env And Housing,Cap Development,Local Sustainable Trans Fund,Cap Infrastr-Build Enh Wrk,Cap Infrastr-Build Enh Wrk,YC102,25/04/2013,193506,REDACTED COMMERCIALLY SENSITIVE,CAPITAL,BALFOUR BEATTY,102595
North East Lincolnshire Council,http://statistics.data.gov.uk/id/local-authority/00FC,Cap Economy Env And Housing,Cap Culture Leisure And Sport,Leisure/Library - Library,Cap Land/Build-Build Enh Wrk,Cap Land/Build-Build Enh Wrk,YA102,18/04/2013,190644,"28,455.20",CAPITAL,LINDUM GROUP LIMITED,101185
North East Lincolnshire Council,http://statistics.data.gov.uk/id/local-authority/00FC,Cap Governance And Trans,Cap Transformation Project,Transformation Programme,Cap Intangible Assets,Cap Intangible Assets,YH101,24/04/2013,192129,"2,250.00",CAPITAL,TIMOTHY JAMES CONSULTING LTD,111085
North East Lincolnshire Council,http://statistics.data.gov.uk/id/local-authority/00FC,Cap Governance And Trans,Cap Transformation Project,Transformation Programme,Cap Intangible Assets,Cap Intangible Assets,YH101,22/04/2013,191969,REDACTED COMMERCIALLY SENSITIVE,CAPITAL,MIDLAND SOFTWARE LTD,102633
North East Lincolnshire Council,http://statistics.data.gov.uk/id/local-authority/00FC,Cap Governance And Trans,Cap Transformation Project,Transformation Programme,Cap Intangible Assets,Cap Intangible Assets,YH101,22/04/2013,191968,REDACTED COMMERCIALLY SENSITIVE,CAPITAL,MIDLAND SOFTWARE LTD,102633
North East Lincolnshire Council,http://statistics.data.gov.uk/id/local-authority/00FC,Cap Governance And Trans,Cap Transformation Project,Transformation Programme,Cap Intangible Assets,Cap Intangible Assets,YH101,22/04/2013,191599,REDACTED COMMERCIALLY SENSITIVE,CAPITAL,MIDLAND SOFTWARE LTD,102633
North East Lincolnshire Council,http://statistics.data.gov.uk/id/local-authority/00FC,Cap Governance And Trans,Cap Transformation Project,Transformation Programme,Cap Intangible Assets,Cap Intangible Assets,YH101,23/04/2013,191967,REDACTED COMMERCIALLY SENSITIVE,CAPITAL,MIDLAND SOFTWARE LTD,102633
North East Lincolnshire Council,http://statistics.data.gov.uk/id/local-authority/00FC,Chief Executive,Chief Executive,Chief Exec & Support,Car Allowances,Travel - Employees,JF101,25/04/2013,187917,-94.76,REVENUE,NYS CORPORATE,102444
North East Lincolnshire Council,http://statistics.data.gov.uk/id/local-authority/00FC,Chief Executive,Chief Executive,Chief Exec & Support,Car Allowances,Travel - Employees,JF101,25/04/2013,187918,-87.48,REVENUE,NYS CORPORATE,102444
North East Lincolnshire Council,http://statistics.data.gov.uk/id/local-authority/00FC,Chief Executive,Chief Executive,Chief Exec & Support,Contributions To Provisions,Contributions - Communities,LK101,02/04/2013,187690,300.00,REVENUE,AFC WYBERS,119445
North East Lincolnshire Council,http://statistics.data.gov.uk/id/local-authority/00FC,Chief Executive,Chief Executive,Chief Exec & Support,Contributions To Provisions,Contributions - Third Sector,LK102,02/04/2013,187692,300.00,REVENUE,GRIMSBY & DISTRICT LIVE AT HOME SCHEME,102091
North East Lincolnshire Council,http://statistics.data.gov.uk/id/local-authority/00FC,Chief Executive,Chief Executive,Chief Exec & Support,Contributions To Provisions,Contributions - Third Sector,LK102,02/04/2013,187684,300.00,REVENUE,BRIEF ENCOUNTERS CATERING LTD,116209
North East Lincolnshire Council,http://statistics.data.gov.uk/id/local-authority/00FC,Chief Executive,Chief Executive,Chief Exec & Support,Contributions To Provisions,Contributions - Communities,LK101,17/04/2013,190326,435.00,REVENUE,TRADITIONAL GATES,108564
North East Lincolnshire Council,http://statistics.data.gov.uk/id/local-authority/00FC,Chief Executive,Chief Executive,Chief Exec & Support,Contributions To Provisions,Contributions - Communities,LK101,02/04/2013,187695,500.00,REVENUE,ST MICHAEL'S CHURCH COMMITTEE,119457
North East Lincolnshire Council,http://statistics.data.gov.uk/id/local-authority/00FC,Chief Executive,Chief Executive,Chief Exec & Support,Contributions To Provisions,Contributions - Communities,LK101,02/04/2013,187700,500.00,REVENUE,CARE LTD,100314
North East Lincolnshire Council,http://statistics.data.gov.uk/id/local-authority/00FC,Chief Executive,Chief Executive,Chief Exec & Support,Contributions To Provisions,Contributions - Third Sector,LK102,02/04/2013,187701,500.00,REVENUE,ROYAL AIR FORCES ASSOCIATION,105508
North East Lincolnshire Council,http://statistics.data.gov.uk/id/local-authority/00FC,Chief Executive,Chief Executive,Chief Exec & Support,Contributions To Provisions,Contributions - Communities,LK101,02/04/2013,187696,600.00,REVENUE,BISHOP KING CENTRE PLEASE USE 119457,119774
North East Lincolnshire Council,http://statistics.data.gov.uk/id/local-authority/00FC,Chief Executive,Chief Executive,Chief Exec & Support,Contributions To Provisions,Contributions - Communities,LK101,22/04/2013,190325,651.67,REVENUE,SAFE AND SECURE LTD,103936
North East Lincolnshire Council,http://statistics.data.gov.uk/id/local-authority/00FC,Chief Executive,Chief Executive,Chief Exec & Support,Contributions To Provisions,Contributions - Communities,LK101,10/04/2013,189053,841.54,REVENUE,IRG EUROPE LTD,119509
North East Lincolnshire Council,http://statistics.data.gov.uk/id/local-authority/00FC,Chief Executive,Chief Executive,Chief Exec & Support,Contributions To Provisions,Contributions - Communities,LK101,08/04/2013,188246,862.00,REVENUE,THE GRANGE TOGETHER,111112
North East Lincolnshire Council,http://statistics.data.gov.uk/id/local-authority/00FC,Chief Executive,Chief Executive,Chief Exec & Support,Contributions To Provisions,Contributions - Communities,LK101,17/04/2013,190313,889.33,REVENUE,SHORELINE HOUSING PARTNERSHIP LTD,100139
North East Lincolnshire Council,http://statistics.data.gov.uk/id/local-authority/00FC,Chief Executive,Chief Executive,Chief Exec & Support,Contributions To Provisions,Contributions - Third Sector,LK102,02/04/2013,187686,"1,500.00",REVENUE,5TH GRIMSBY ( SCARTHO) GROUP,119294
North East Lincolnshire Council,http://statistics.data.gov.uk/id/local-authority/00FC,Chief Executive,Chief Executive,Chief Exec & Support,Contributions To Provisions,Contributions - Third Sector,LK102,17/04/2013,191236,"1,500.00",REVENUE,CLEETHORPES FOLK PARTY,111294
North East Lincolnshire Council,http://statistics.data.gov.uk/id/local-authority/00FC,Chief Executive,Chief Executive,Chief Exec & Support,Contributions To Provisions,Contributions - Third Sector,LK102,02/04/2013,187691,"1,700.00",REVENUE,WALTHAM WINDMILL PRESERVATION SOCIETY,112457
North East Lincolnshire Council,http://statistics.data.gov.uk/id/local-authority/00FC,Chief Executive,Chief Executive,Chief Exec & Support,Contributions To Provisions,Contributions - Communities,LK101,09/04/2013,188980,"1,804.99",REVENUE,SELTEK WAREHOUSE,119238
North East Lincolnshire Council,http://statistics.data.gov.uk/id/local-authority/00FC,Chief Executive,Chief Executive,Chief Exec & Support,Contributions To Provisions,Contributions - Communities,LK101,24/04/2013,192055,"1,835.00",REVENUE,TRADITIONAL GATES,108564
North East Lincolnshire Council,http://statistics.data.gov.uk/id/local-authority/00FC,Chief Executive,Chief Executive,Chief Exec & Support,Contributions To Provisions,Contributions - Third Sector,LK102,02/04/2013,187697,"2,000.00",REVENUE,WELHOLME COMMUNITY PRIMARY SCHOOL,102509
North East Lincolnshire Council,http://statistics.data.gov.uk/id/local-authority/00FC,Chief Executive,Chief Executive,Chief Exec & Support,Contributions To Provisions,Contributions - Third Sector,LK102,02/04/2013,187687,"3,500.00",REVENUE,WEST MARSH FORWARD,119298
North East Lincolnshire Council,http://statistics.data.gov.uk/id/local-authority/00FC,Chief Executive,Chief Executive,Chief Exec & Support,Contributions To Provisions,Contributions - Communities,LK101,30/04/2013,193031,"4,000.00",REVENUE,GRIMSBY TOWN FOOTBALL IN THE COMMUNITY,100978
North East Lincolnshire Council,http://statistics.data.gov.uk/id/local-authority/00FC,Chief Executive,Chief Executive,Chief Exec & Support,Contributions To Provisions,Contributions - Third Sector,LK102,16/04/2013,190841,"2,000.00",REVENUE,LINCOLNSHIRE COUNTY COUNCIL,119947
North East Lincolnshire Council,http://statistics.data.gov.uk/id/local-authority/00FC,Other Corporate Budgets,Other Corporate Budgets,Appropriations,Indirect Employee Expenses,Pension P/Ment Pension Inc Act,EB105,11/04/2013,189840,944.50,REVENUE,LINCOLNSHIRE COUNTY COUNCIL,101224
North East Lincolnshire Council,http://statistics.data.gov.uk/id/local-authority/00FC,Other Corporate Budgets,Other Corporate Budgets,Appropriations,Indirect Employee Expenses,Pension P/Ment Pension Inc Act,EB105,29/04/2013,193675,"5,242.06",REVENUE,LINCOLNSHIRE COUNTY COUNCIL,101224
North East Lincolnshire Council,http://statistics.data.gov.uk/id/local-authority/00FC,Other Corporate Budgets,Other Corporate Budgets,Appropriations,Miscellaneous Expenses,Other Expenses General,LL119,30/04/2013,193420,"6,000.00",REVENUE,HYMANS ROBERTSON LLP,107021
North East Lincolnshire Council,http://statistics.data.gov.uk/id/local-authority/00FC,People And Communities,Childrens Hlth & Family Supp,Integrated Youth Services,Miscellaneous Expenses,Activities - Service Users,LL114,30/04/2013,193751,"27,000.00",REVENUE,SHALOM YOUTH PROJECT,103924
North East Lincolnshire Council,http://statistics.data.gov.uk/id/local-authority/00FC,People And Communities,Childrens Hlth & Family Supp,Integrated Youth Services,Indirect Employee Expenses,Staff Training,EB122,16/04/2013,190804,500.00,REVENUE,BRIGHT GREEN LEARNING,119943
North East Lincolnshire Council,http://statistics.data.gov.uk/id/local-authority/00FC,People And Communities,Childrens Hlth & Family Supp,Integrated Youth Services,Indirect Employee Expenses,Staff Training,EB122,17/04/2013,190802,"1,275.00",REVENUE,REAL IDEAS ORGANISATION CIC,119155
North East Lincolnshire Council,http://statistics.data.gov.uk/id/local-authority/00FC,People And Communities,Childrens Hlth & Family Supp,Integrated Youth Services,Miscellaneous Expenses,Activities - Service Users,LL114,30/04/2013,193765,800.00,REVENUE,GREEN FUTURES,102397
North East Lincolnshire Council,http://statistics.data.gov.uk/id/local-authority/00FC,People And Communities,Childrens Hlth & Family Supp,Integrated Youth Services,Consultancy,Consultancy,PL101,16/04/2013,190808,650.00,REVENUE,REBECCA JANE ROSE,119944
North East Lincolnshire Council,http://statistics.data.gov.uk/id/local-authority/00FC,People And Communities,Childrens Hlth & Family Supp,Integrated Youth Services,Miscellaneous Expenses,Activities - Service Users,LL114,17/04/2013,190774,"2,940.00",REVENUE,PARK RETAIL LTD - LOVE2REWARD,111869
North East Lincolnshire Council,http://statistics.data.gov.uk/id/local-authority/00FC,People And Communities,Childrens Hlth & Family Supp,Integrated Youth Services,Miscellaneous Expenses,Activities - Service Users,LL114,17/04/2013,190779,"2,500.00",REVENUE,ALISTAIR MCMAHON,112853
North East Lincolnshire Council,http://statistics.data.gov.uk/id/local-authority/00FC,People And Communities,Childrens Hlth & Family Supp,Integrated Youth Services,Communications And Computing,Computer S/Ware - Licences,LF103,17/04/2013,190784,275.00,REVENUE,FIRST MEDIA SOLUTIONS LTD,101489
North East Lincolnshire Council,http://statistics.data.gov.uk/id/local-authority/00FC,People And Communities,Childrens Hlth & Family Supp,Integrated Youth Services,Miscellaneous Expenses,Licences,LL116,04/04/2013,182293,"1,152.86",REVENUE,THE PERFORMING RIGHT SOCIETY LTD,100946
North East Lincolnshire Council,http://statistics.data.gov.uk/id/local-authority/00FC,People And Communities,Childrens Hlth & Family Supp,Childrens Health Provision,Rents,Rent,GC101,22/04/2013,191670,715.00,REVENUE,GRIMSBY CENTRAL HALL TRUST,100882
North East Lincolnshire Council,http://statistics.data.gov.uk/id/local-authority/00FC,People And Communities,Childrens Hlth & Family Supp,Childrens Health Provision,Communications And Computing,Postage,LF111,10/04/2013,189112,250.00,REVENUE,LYRECO UK LIMITED,101120
North East Lincolnshire Council,http://statistics.data.gov.uk/id/local-authority/00FC,People And Communities,Childrens Hlth & Family Supp,Childrens Health Provision,Communications And Computing,Computer Consumables,LF109,24/04/2013,192189,420.00,REVENUE,VIGLEN LIMITED,100883
North East Lincolnshire Council,http://statistics.data.gov.uk/id/local-authority/00FC,People And Communities,Childrens Hlth & Family Supp,Childrens Health Provision,Communications And Computing,Computer Consumables,LF109,24/04/2013,192189,864.00,REVENUE,VIGLEN LIMITED,100883
North East Lincolnshire Council,http://statistics.data.gov.uk/id/local-authority/00FC,People And Communities,Childrens Hlth & Family Supp,Childrens Health Provision,Communications And Computing,Computer Consumables,LF109,24/04/2013,192189,"3,504.36",REVENUE,VIGLEN LIMITED,100883
North East Lincolnshire Council,http://statistics.data.gov.uk/id/local-authority/00FC,People And Communities,Childrens Hlth & Family Supp,Childrens Health Provision,Communications And Computing,Computer S/Ware - Maintenance,LF102,08/04/2013,188494,"8,000.00",REVENUE,NORTH EAST LINCOLNSHIRE PRIMARY CARE TRUST,100337
North East Lincolnshire Council,http://statistics.data.gov.uk/id/local-authority/00FC,People And Communities,Childrens Hlth & Family Supp,Childrens Health Provision,Private Contractors,Third Party Prov - Private,PH101,30/04/2013,193325,"1,025.00",REVENUE,N LINCS & GOOLE HOSPITALS NHS,111074
North East Lincolnshire Council,http://statistics.data.gov.uk/id/local-authority/00FC,People And Communities,Childrens Hlth & Family Supp,Childrens Health Provision,Private Contractors,Third Party Prov - Private,PH101,30/04/2013,193339,"2,050.00",REVENUE,N LINCS & GOOLE HOSPITALS NHS,111074
North East Lincolnshire Council,http://statistics.data.gov.uk/id/local-authority/00FC,People And Communities,Childrens Hlth & Family Supp,Childrens Health Provision,Private Contractors,Third Party Prov - Private,PH101,30/04/2013,193687,"194,751.00",REVENUE,LINCS PARTNERSHIP NHS FOUNDATION TRUST,105021
North East Lincolnshire Council,http://statistics.data.gov.uk/id/local-authority/00FC,People And Communities,Childrens Hlth & Family Supp,Childrens Health Provision,Private Contractors,Third Party Prov - Private,PH101,10/04/2013,189422,"224,591.00",REVENUE,LINCS PARTNERSHIP NHS FOUNDATION TRUST,105021
North East Lincolnshire Council,http://statistics.data.gov.uk/id/local-authority/00FC,People And Communities,Childrens Hlth & Family Supp,Childrens Centre Development,Cleaning And Domestic Supplies,Cleaning - Services,GH102,22/04/2013,187898,-12.50,REVENUE,FUTURE CLEANING SERVICES LTD,102557
North East Lincolnshire Council,http://statistics.data.gov.uk/id/local-authority/00FC,People And Communities,Childrens Hlth & Family Supp,Childrens Centre Development,Cleaning And Domestic Supplies,Refuse Collection,GH104,30/04/2013,192901,336.96,REVENUE,BELL WASTE CONTROL,101433
North East Lincolnshire Council,http://statistics.data.gov.uk/id/local-authority/00FC,People And Communities,Childrens Hlth & Family Supp,Childrens Centre Development,Rents,Service Charge,GC102,30/04/2013,192902,"1,389.76",REVENUE,SECOM PLC,100771
North East Lincolnshire Council,http://statistics.data.gov.uk/id/local-authority/00FC,People And Communities,Childrens Hlth & Family Supp,Childrens Centre Development,Energy Costs,Electricity,GB102,15/04/2013,190052,"2,266.31",REVENUE,NPOWER LIMITED,101414
North East Lincolnshire Council,http://statistics.data.gov.uk/id/local-authority/00FC,People And Communities,Childrens Hlth & Family Supp,Childrens Centre Development,Energy Costs,Gas,GB101,08/04/2013,188242,"2,283.95",REVENUE,BRITISH GAS TRADING LTD,101507
North East Lincolnshire Council,http://statistics.data.gov.uk/id/local-authority/00FC,People And Communities,Childrens Hlth & Family Supp,Childrens Centre Development,Rep Alterations Maint Building,Buildings - Repairs And Maint,GA102,10/04/2013,188962,"3,249.31",REVENUE,DORMA UK LIMITED,107806
North East Lincolnshire Council,http://statistics.data.gov.uk/id/local-authority/00FC,People And Communities,Childrens Hlth & Family Supp,Childrens Centre Development,Cleaning And Domestic Supplies,Cleaning - Services,GH102,15/04/2013,189750,541.00,REVENUE,EASY CLEAN MARSHCHAPEL LTD,104531
North East Lincolnshire Council,http://statistics.data.gov.uk/id/local-authority/00FC,People And Communities,Childrens Hlth & Family Supp,Childrens Centre Development,Grounds Maintenance Costs,Grounds Maintenance,GJ101,10/04/2013,188727,552.50,REVENUE,STEVE AUSTWICK,109384
North East Lincolnshire Council,http://statistics.data.gov.uk/id/local-authority/00FC,People And Communities,Childrens Hlth & Family Supp,Childrens Centre Development,Other Agencies,Child Care Payments,PJ104,11/04/2013,189809,259.00,REVENUE,PRE SCHOOL LEARNING ALLIANCE,101437
North East Lincolnshire Council,http://statistics.data.gov.uk/id/local-authority/00FC,People And Communities,Childrens Hlth & Family Supp,Childrens Centre Development,Catering,Provisions,LB101,30/04/2013,193415,269.00,REVENUE,K BROUGHTON NEWS LTD,103827
North East Lincolnshire Council,http://statistics.data.gov.uk/id/local-authority/00FC,People And Communities,Childrens Hlth & Family Supp,Childrens Centre Development,Catering,Provisions,LB101,17/04/2013,188832,331.00,REVENUE,VENDING ENTERPRISES,100635
North East Lincolnshire Council,http://statistics.data.gov.uk/id/local-authority/00FC,People And Communities,Childrens Hlth & Family Supp,Childrens Centre Development,Other Agencies,Further Ed Emp & Training,PJ130,10/04/2013,188922,390.00,REVENUE,SOVEREIGN TRAINING,105613
North East Lincolnshire Council,http://statistics.data.gov.uk/id/local-authority/00FC,People And Communities,Childrens Hlth & Family Supp,Childrens Centre Development,Other Agencies,Child Care Payments,PJ104,30/04/2013,192905,811.25,REVENUE,CLEETHORPES CHILDCARE,101591
North East Lincolnshire Council,http://statistics.data.gov.uk/id/local-authority/00FC,People And Communities,Childrens Hlth & Family Supp,Childrens Centre Development,Other Agencies,Child Care Payments,PJ104,30/04/2013,192904,"1,180.00",REVENUE,CLEETHORPES CHILDCARE,101591
North East Lincolnshire Council,http://statistics.data.gov.uk/id/local-authority/00FC,People And Communities,Childrens Hlth & Family Supp,Childrens Centre Development,Other Agencies,Child Care Payments,PJ104,10/04/2013,188923,"2,109.50",REVENUE,CLEETHORPES CHILDCARE,101591
North East Lincolnshire Council,http://statistics.data.gov.uk/id/local-authority/00FC,People And Communities,Childrens Hlth & Family Supp,Childrens Centre Development,Other Agencies,Child Care Payments,PJ104,08/04/2013,188222,"2,327.38",REVENUE,CLEETHORPES CHILDCARE,101591
North East Lincolnshire Council,http://statistics.data.gov.uk/id/local-authority/00FC,People And Communities,Childrens Hlth & Family Supp,Childrens Centre Development,Catering,Provisions,LB101,08/04/2013,188543,500.00,REVENUE,TESCO STORES LIMITED,102576
North East Lincolnshire Council,http://statistics.data.gov.uk/id/local-authority/00FC,People And Communities,Childrens Hlth & Family Supp,Childrens Centre Development,Other Agencies,Child Care Payments,PJ104,22/04/2013,191625,308.62,REVENUE,PRE SCHOOL LEARNING ALLIANCE,101437
North East Lincolnshire Council,http://statistics.data.gov.uk/id/local-authority/00FC,People And Communities,Childrens Hlth & Family Supp,Childrens Centre Development,Other Agencies,Child Care Payments,PJ104,22/04/2013,188502,517.00,REVENUE,PRE SCHOOL LEARNING ALLIANCE,101437
North East Lincolnshire Council,http://statistics.data.gov.uk/id/local-authority/00FC,People And Communities,Childrens Hlth & Family Supp,Childrens Centre Development,Other Agencies,Child Care Payments,PJ104,22/04/2013,188501,866.24,REVENUE,PRE SCHOOL LEARNING ALLIANCE,101437
North East Lincolnshire Council,http://statistics.data.gov.uk/id/local-authority/00FC,People And Communities,Childrens Hlth & Family Supp,Childrens Centre Development,Other Agencies,Child Care Payments,PJ104,22/04/2013,188503,"1,038.69",REVENUE,PRE SCHOOL LEARNING ALLIANCE,101437
North East Lincolnshire Council,http://statistics.data.gov.uk/id/local-authority/00FC,People And Communities,Childrens Hlth & Family Supp,Childrens Centre Development,Other Agencies,Child Care Payments,PJ104,08/04/2013,188500,"4,454.34",REVENUE,PRE SCHOOL LEARNING ALLIANCE,101437
North East Lincolnshire Council,http://statistics.data.gov.uk/id/local-authority/00FC,People And Communities,Childrens Hlth & Family Supp,Childrens Centre Development,Equip / Furniture / Materials,Non-Teaching Resources,LA118,09/04/2013,188534,269.50,REVENUE,ROMPA INTERNATIONAL,100790
North East Lincolnshire Council,http://statistics.data.gov.uk/id/local-authority/00FC,People And Communities,Childrens Hlth & Family Supp,Childrens Centre Development,Miscellaneous Expenses,Activities - Service Users,LL114,10/04/2013,188675,300.00,REVENUE,SLM COMMUNITY LEISURE LTD,101244
North East Lincolnshire Council,http://statistics.data.gov.uk/id/local-authority/00FC,People And Communities,Childrens Hlth & Family Supp,Childrens Centre Development,Other Agencies,Further Ed Emp & Training,PJ130,22/04/2013,191883,270.00,REVENUE,1ST AID MATTERS,103999
North East Lincolnshire Council,http://statistics.data.gov.uk/id/local-authority/00FC,People And Communities,Childrens Hlth & Family Supp,Childrens Centre Development,Other Agencies,Child Care Payments,PJ104,24/04/2013,188671,332.80,REVENUE,ORMISTON SOUTH PARADE ACADEMY,111750
North East Lincolnshire Council,http://statistics.data.gov.uk/id/local-authority/00FC,People And Communities,Childrens Hlth & Family Supp,Childrens Centre Development,Other Agencies,Child Care Payments,PJ104,23/04/2013,188669,333.00,REVENUE,SOUTH PARADE DAY-CARE & OOSC,119842
North East Lincolnshire Council,http://statistics.data.gov.uk/id/local-authority/00FC,People And Communities,Childrens Hlth & Family Supp,Childrens Centre Development,Other Agencies,Child Care Payments,PJ104,24/04/2013,188672,396.00,REVENUE,ORMISTON SOUTH PARADE ACADEMY,111750
North East Lincolnshire Council,http://statistics.data.gov.uk/id/local-authority/00FC,People And Communities,Childrens Hlth & Family Supp,Childrens Centre Development,Other Agencies,Child Care Payments,PJ104,22/04/2013,191704,728.44,REVENUE,PRE SCHOOL LEARNING ALLIANCE,101437
North East Lincolnshire Council,http://statistics.data.gov.uk/id/local-authority/00FC,People And Communities,Childrens Hlth & Family Supp,Childrens Centre Development,Other Agencies,Child Care Payments,PJ104,22/04/2013,188674,836.00,REVENUE,ORMISTON SOUTH PARADE ACADEMY,111750
North East Lincolnshire Council,http://statistics.data.gov.uk/id/local-authority/00FC,People And Communities,Childrens Hlth & Family Supp,Childrens Centre Development,Other Agencies,Child Care Payments,PJ104,22/04/2013,191694,"1,134.95",REVENUE,PRE SCHOOL LEARNING ALLIANCE,101437
North East Lincolnshire Council,http://statistics.data.gov.uk/id/local-authority/00FC,People And Communities,Childrens Hlth & Family Supp,Childrens Centre Development,Other Agencies,Child Care Payments,PJ104,22/04/2013,188239,"2,010.00",REVENUE,FIRST STEPS GRIMSBY LIMITED,101411
North East Lincolnshire Council,http://statistics.data.gov.uk/id/local-authority/00FC,People And Communities,Childrens Hlth & Family Supp,Childrens Centre Development,Other Agencies,Child Care Payments,PJ104,08/04/2013,188240,"2,268.00",REVENUE,FIRST STEPS GRIMSBY LIMITED,101411
North East Lincolnshire Council,http://statistics.data.gov.uk/id/local-authority/00FC,People And Communities,Childrens Hlth & Family Supp,Childrens Centre Development,Equip / Furniture / Materials,Newspapers/Periodicals,LA122,22/04/2013,173737,-292.98,REVENUE,WATERSTONES,101738
North East Lincolnshire Council,http://statistics.data.gov.uk/id/local-authority/00FC,People And Communities,Childrens Hlth & Family Supp,Childrens Centre Development,Catering,Provisions,LB101,22/04/2013,189077,-70.70,REVENUE,W M MORRISON SUPERMARKETS PLC,100919
North East Lincolnshire Council,http://statistics.data.gov.uk/id/local-authority/00FC,People And Communities,Childrens Hlth & Family Supp,Childrens Centre Development,Equip / Furniture / Materials,Newspapers/Periodicals,LA122,22/04/2013,173737,-1.94,REVENUE,WATERSTONES,101738
North East Lincolnshire Council,http://statistics.data.gov.uk/id/local-authority/00FC,People And Communities,Childrens Hlth & Family Supp,Childrens Centre Development,Catering,Provisions,LB101,22/04/2013,189077,259.32,REVENUE,W M MORRISON SUPERMARKETS PLC,100919
North East Lincolnshire Council,http://statistics.data.gov.uk/id/local-authority/00FC,People And Communities,Childrens Hlth & Family Supp,Childrens Centre Development,Equip / Furniture / Materials,Newspapers/Periodicals,LA122,22/04/2013,187982,293.07,REVENUE,WATERSTONES,101738
North East Lincolnshire Council,http://statistics.data.gov.uk/id/local-authority/00FC,People And Communities,Childrens Hlth & Family Supp,Childrens Centre Development,Other Agencies,Child Care Payments,PJ104,09/04/2013,188223,666.53,REVENUE,FOR UNDER FIVES,101931
North East Lincolnshire Council,http://statistics.data.gov.uk/id/local-authority/00FC,People And Communities,Childrens Hlth & Family Supp,Childrens Centre Development,Other Agencies,Child Care Payments,PJ104,10/04/2013,188191,673.68,REVENUE,FOR UNDER FIVES,101931
North East Lincolnshire Council,http://statistics.data.gov.uk/id/local-authority/00FC,People And Communities,Childrens Hlth & Family Supp,Childrens Centre Development,Other Agencies,Child Care Payments,PJ104,08/04/2013,185251,690.47,REVENUE,FOR UNDER FIVES,101931
North East Lincolnshire Council,http://statistics.data.gov.uk/id/local-authority/00FC,People And Communities,Childrens Hlth & Family Supp,Childrens Centre Development,Other Agencies,Child Care Payments,PJ104,24/04/2013,192199,697.58,REVENUE,FOR UNDER FIVES,101931
North East Lincolnshire Council,http://statistics.data.gov.uk/id/local-authority/00FC,People And Communities,Childrens Hlth & Family Supp,Childrens Centre Development,Communications And Computing,Computer H/Ware - Purchases,LF105,18/04/2013,190164,"24,897.37",REVENUE,CAPITA BUSINESS SERVICES LTD,102314
North East Lincolnshire Council,http://statistics.data.gov.uk/id/local-authority/00FC,People And Communities,Childrens Hlth & Family Supp,Childrens Centre Development,Private Contractors,Third Party Prov - Private,PH101,30/04/2013,193067,300.00,REVENUE,PRE SCHOOL LEARNING ALLIANCE,101437
North East Lincolnshire Council,http://statistics.data.gov.uk/id/local-authority/00FC,People And Communities,Childrens Hlth & Family Supp,Childrens Centre Development,Private Contractors,Third Party Prov - Private,PH101,18/04/2013,190895,300.00,REVENUE,PRE SCHOOL LEARNING ALLIANCE,101437
North East Lincolnshire Council,http://statistics.data.gov.uk/id/local-authority/00FC,People And Communities,Childrens Hlth & Family Supp,Childrens Centre Development,Private Contractors,Third Party Prov - Private,PH101,17/04/2013,190298,575.00,REVENUE,LIFE LINES,108276
North East Lincolnshire Council,http://statistics.data.gov.uk/id/local-authority/00FC,People And Communities,Childrens Hlth & Family Supp,Childrens Centre Development,Private Contractors,Third Party Prov - Private,PH101,22/04/2013,189723,"1,663.00",REVENUE,NORTHERN LINCOLNSHIRE & GOOLE (DO NOT USE),101242
North East Lincolnshire Council,http://statistics.data.gov.uk/id/local-authority/00FC,People And Communities,Childrens Hlth & Family Supp,Childrens Centre Development,Private Contractors,Third Party Prov - Private,PH101,30/04/2013,193280,"3,326.00",REVENUE,N LINCS & GOOLE HOSPITALS NHS,111074
North East Lincolnshire Council,http://statistics.data.gov.uk/id/local-authority/00FC,People And Communities,Childrens Hlth & Family Supp,Childrens Centre Development,Private Contractors,Third Party Prov - Private,PH101,22/04/2013,191632,"6,805.00",REVENUE,N LINCS & GOOLE HOSPITALS NHS,111074
North East Lincolnshire Council,http://statistics.data.gov.uk/id/local-authority/00FC,People And Communities,Childrens Hlth & Family Supp,Childrens Centre Development,Private Contractors,Third Party Prov - Private,PH101,18/04/2013,190897,"6,945.68",REVENUE,N LINCS & GOOLE HOSPITALS NHS,111074
North East Lincolnshire Council,http://statistics.data.gov.uk/id/local-authority/00FC,People And Communities,Childrens Hlth & Family Supp,Childrens Centre Development,Private Contractors,Third Party Prov - Private,PH101,18/04/2013,190892,"6,974.00",REVENUE,N LINCS & GOOLE HOSPITALS NHS,111074
North East Lincolnshire Council,http://statistics.data.gov.uk/id/local-authority/00FC,People And Communities,Childrens Hlth & Family Supp,Childrens Centre Development,Private Contractors,Third Party Prov - Private,PH101,18/04/2013,190896,"6,974.68",REVENUE,N LINCS & GOOLE HOSPITALS NHS,111074
North East Lincolnshire Council,http://statistics.data.gov.uk/id/local-authority/00FC,People And Communities,Childrens Hlth & Family Supp,Childrens Centre Development,Private Contractors,Third Party Prov - Private,PH101,30/04/2013,193279,"7,060.00",REVENUE,N LINCS & GOOLE HOSPITALS NHS,111074
North East Lincolnshire Council,http://statistics.data.gov.uk/id/local-authority/00FC,People And Communities,Childrens Hlth & Family Supp,Childrens Centre Development,Private Contractors,Third Party Prov - Private,PH101,18/04/2013,190894,"14,083.33",REVENUE,PRE SCHOOL LEARNING ALLIANCE,101437
North East Lincolnshire Council,http://statistics.data.gov.uk/id/local-authority/00FC,People And Communities,Childrens Hlth & Family Supp,Childrens Centre Development,Private Contractors,Third Party Prov - Private,PH101,18/04/2013,190893,"14,166.66",REVENUE,PRE SCHOOL LEARNING ALLIANCE,101437
North East Lincolnshire Council,http://statistics.data.gov.uk/id/local-authority/00FC,People And Communities,Childrens Hlth & Family Supp,Childrens Centre Development,Other Agencies,Further Ed Emp & Training,PJ130,22/04/2013,189470,341.00,REVENUE,SOVEREIGN TRAINING,105613
North East Lincolnshire Council,http://statistics.data.gov.uk/id/local-authority/00FC,People And Communities,Childrens Hlth & Family Supp,Childrens Centre Development,Other Agencies,Child Care Payments,PJ104,18/04/2013,189749,459.02,REVENUE,SECOND AVENUE RESOURCE CENTRE LIMITED,100648
North East Lincolnshire Council,http://statistics.data.gov.uk/id/local-authority/00FC,People And Communities,Childrens Hlth & Family Supp,Childrens Centre Development,Cleaning And Domestic Supplies,Refuse Collection,GH104,17/04/2013,187901,-46.09,REVENUE,BIFFA WASTE SERVICES LTD,100515
North East Lincolnshire Council,http://statistics.data.gov.uk/id/local-authority/00FC,People And Communities,Childrens Hlth & Family Supp,Childrens Centre Development,Cleaning And Domestic Supplies,Refuse Collection,GH104,17/04/2013,187902,-27.96,REVENUE,BIFFA WASTE SERVICES LTD,100515
North East Lincolnshire Council,http://statistics.data.gov.uk/id/local-authority/00FC,People And Communities,Childrens Hlth & Family Supp,Childrens Centre Development,Rep Alterations Maint Building,Buildings - Repairs And Maint,GA102,30/04/2013,193664,682.00,REVENUE,ORCHARD FIRE & SECURITY LTD,100650
North East Lincolnshire Council,http://statistics.data.gov.uk/id/local-authority/00FC,People And Communities,Childrens Hlth & Family Supp,Childrens Centre Development,Energy Costs,Electricity,GB102,11/04/2013,188513,708.81,REVENUE,NPOWER LIMITED,101414
North East Lincolnshire Council,http://statistics.data.gov.uk/id/local-authority/00FC,People And Communities,Childrens Hlth & Family Supp,Childrens Centre Development,Energy Costs,Gas,GB101,17/04/2013,190036,373.95,REVENUE,BRITISH GAS TRADING LTD,101507
North East Lincolnshire Council,http://statistics.data.gov.uk/id/local-authority/00FC,People And Communities,Childrens Hlth & Family Supp,Childrens Centre Development,Energy Costs,Gas,GB101,08/04/2013,188377,463.85,REVENUE,BRITISH GAS TRADING LTD,101507
North East Lincolnshire Council,http://statistics.data.gov.uk/id/local-authority/00FC,People And Communities,Childrens Hlth & Family Supp,Childrens Centre Development,Energy Costs,Electricity,GB102,25/04/2013,193496,862.41,REVENUE,NPOWER LIMITED,101414
North East Lincolnshire Council,http://statistics.data.gov.uk/id/local-authority/00FC,People And Communities,Childrens Hlth & Family Supp,Childrens Centre Development,Energy Costs,Gas,GB101,16/04/2013,190625,422.58,REVENUE,BRITISH GAS TRADING LTD,101507
North East Lincolnshire Council,http://statistics.data.gov.uk/id/local-authority/00FC,People And Communities,Childrens Hlth & Family Supp,Childrens Centre Development,Energy Costs,Gas,GB101,11/04/2013,188241,297.07,REVENUE,BRITISH GAS TRADING LTD,101507
North East Lincolnshire Council,http://statistics.data.gov.uk/id/local-authority/00FC,People And Communities,Childrens Hlth & Family Supp,Childrens Centre Development,Direct Employee Expenses,Agency Staff,EA105,11/04/2013,189783,482.18,REVENUE,THRUNSCOE PRIMARY AND NURSERY ACADEMY,118749
North East Lincolnshire Council,http://statistics.data.gov.uk/id/local-authority/00FC,People And Communities,Childrens Hlth & Family Supp,Childrens Centre Development,Direct Employee Expenses,Agency Staff,EA105,15/04/2013,189784,486.88,REVENUE,THRUNSCOE PRIMARY AND NURSERY ACADEMY,118749
North East Lincolnshire Council,http://statistics.data.gov.uk/id/local-authority/00FC,People And Communities,Childrens Hlth & Family Supp,Childrens Centre Development,Direct Employee Expenses,Agency Staff,EA105,15/04/2013,189784,582.65,REVENUE,THRUNSCOE PRIMARY AND NURSERY ACADEMY,118749
North East Lincolnshire Council,http://statistics.data.gov.uk/id/local-authority/00FC,People And Communities,Childrens Hlth & Family Supp,Childrens Centre Development,Direct Employee Expenses,Agency Staff,EA105,11/04/2013,189783,582.65,REVENUE,THRUNSCOE PRIMARY AND NURSERY ACADEMY,118749
North East Lincolnshire Council,http://statistics.data.gov.uk/id/local-authority/00FC,People And Communities,Childrens Hlth & Family Supp,Childrens Centre Development,Energy Costs,Gas,GB101,11/04/2013,189783,263.47,REVENUE,THRUNSCOE PRIMARY AND NURSERY ACADEMY,118749
North East Lincolnshire Council,http://statistics.data.gov.uk/id/local-authority/00FC,People And Communities,Childrens Hlth & Family Supp,Childrens Centre Development,Energy Costs,Electricity,GB102,11/04/2013,189783,300.72,REVENUE,THRUNSCOE PRIMARY AND NURSERY ACADEMY,118749
North East Lincolnshire Council,http://statistics.data.gov.uk/id/local-authority/00FC,People And Communities,Childrens Hlth & Family Supp,Childrens Centre Development,Energy Costs,Electricity,GB102,15/04/2013,189784,338.06,REVENUE,THRUNSCOE PRIMARY AND NURSERY ACADEMY,118749
North East Lincolnshire Council,http://statistics.data.gov.uk/id/local-authority/00FC,People And Communities,Childrens Hlth & Family Supp,Childrens Centre Development,Energy Costs,Gas,GB101,15/04/2013,189784,558.47,REVENUE,THRUNSCOE PRIMARY AND NURSERY ACADEMY,118749
North East Lincolnshire Council,http://statistics.data.gov.uk/id/local-authority/00FC,People And Communities,Childrens Hlth & Family Supp,Childrens Centre Development,Cleaning And Domestic Supplies,Cleaning - Services,GH102,10/04/2013,189120,690.08,REVENUE,FUTURE CLEANING SERVICES LTD,102557
North East Lincolnshire Council,http://statistics.data.gov.uk/id/local-authority/00FC,People And Communities,Childrens Hlth & Family Supp,Childrens Centre Development,Energy Costs,Electricity,GB102,23/04/2013,192229,"1,822.76",REVENUE,NPOWER LIMITED,101414
North East Lincolnshire Council,http://statistics.data.gov.uk/id/local-authority/00FC,People And Communities,Childrens Hlth & Family Supp,Childrens Centre Development,Cleaning And Domestic Supplies,Cleaning - Services,GH102,10/04/2013,189119,860.00,REVENUE,FUTURE CLEANING SERVICES LTD,102557
North East Lincolnshire Council,http://statistics.data.gov.uk/id/local-authority/00FC,People And Communities,Childrens Hlth & Family Supp,Childrens Centre Development,Equip / Furniture / Materials,Equipment - Purchase,LA101,11/04/2013,189468,261.87,REVENUE,NHS SUPPLY CHAIN,104782
North East Lincolnshire Council,http://statistics.data.gov.uk/id/local-authority/00FC,People And Communities,Childrens Hlth & Family Supp,Childrens Centre Development,Other Agencies,Child Care Payments,PJ104,08/04/2013,188373,464.82,REVENUE,PRE SCHOOL LEARNING ALLIANCE,101437
North East Lincolnshire Council,http://statistics.data.gov.uk/id/local-authority/00FC,People And Communities,Childrens Hlth & Family Supp,Childrens Centre Development,Other Agencies,Child Care Payments,PJ104,22/04/2013,189747,500.20,REVENUE,PRE SCHOOL LEARNING ALLIANCE,101437
North East Lincolnshire Council,http://statistics.data.gov.uk/id/local-authority/00FC,People And Communities,Childrens Hlth & Family Supp,Childrens Centre Development,Other Agencies,Child Care Payments,PJ104,22/04/2013,189746,513.62,REVENUE,PRE SCHOOL LEARNING ALLIANCE,101437
North East Lincolnshire Council,http://statistics.data.gov.uk/id/local-authority/00FC,People And Communities,Childrens Hlth & Family Supp,Childrens Centre Development,Other Agencies,Child Care Payments,PJ104,11/04/2013,189134,"1,025.00",REVENUE,CHAPPILLS DAY NURSERY,100998
North East Lincolnshire Council,http://statistics.data.gov.uk/id/local-authority/00FC,People And Communities,Childrens Hlth & Family Supp,Childrens Centre Development,Other Agencies,Child Care Payments,PJ104,10/04/2013,189135,"1,225.00",REVENUE,CHAPPILLS DAY NURSERY,100998
North East Lincolnshire Council,http://statistics.data.gov.uk/id/local-authority/00FC,People And Communities,Childrens Hlth & Family Supp,Childrens Centre Development,Private Contractors,Third Party Prov - Private,PH101,15/04/2013,189273,"90,000.00",REVENUE,N LINCS & GOOLE HOSPITALS NHS,111074
North East Lincolnshire Council,http://statistics.data.gov.uk/id/local-authority/00FC,People And Communities,Childrens Hlth & Family Supp,Integ Local Service Delivery,Other Agencies,Nursery Educ Fund - Standard,PJ139,18/04/2013,191205,431.60,REVENUE,REDACTED PERSONAL INFORMATION,REDACTED PERSONAL INFORMATION
North East Lincolnshire Council,http://statistics.data.gov.uk/id/local-authority/00FC,People And Communities,Childrens Hlth & Family Supp,Integ Local Service Delivery,Other Agencies,Nursery Educ Fund - Standard,PJ139,11/04/2013,189829,548.70,REVENUE,FOR UNDER FIVES LTD,100647
North East Lincolnshire Council,http://statistics.data.gov.uk/id/local-authority/00FC,People And Communities,Childrens Hlth & Family Supp,Integ Local Service Delivery,Other Agencies,Nursery Educ Fund - Standard,PJ139,18/04/2013,191213,647.40,REVENUE,REDACTED PERSONAL INFORMATION,REDACTED PERSONAL INFORMATION
North East Lincolnshire Council,http://statistics.data.gov.uk/id/local-authority/00FC,People And Communities,Childrens Hlth & Family Supp,Integ Local Service Delivery,Other Agencies,Nursery Educ Fund - Standard,PJ139,18/04/2013,191214,647.40,REVENUE,REDACTED PERSONAL INFORMATION,REDACTED PERSONAL INFORMATION
North East Lincolnshire Council,http://statistics.data.gov.uk/id/local-authority/00FC,People And Communities,Childrens Hlth & Family Supp,Integ Local Service Delivery,Other Agencies,Nursery Educ Fund - Standard,PJ139,18/04/2013,191197,800.28,REVENUE,REDACTED PERSONAL INFORMATION,REDACTED PERSONAL INFORMATION
North East Lincolnshire Council,http://statistics.data.gov.uk/id/local-authority/00FC,People And Communities,Childrens Hlth & Family Supp,Integ Local Service Delivery,Other Agencies,Nursery Educ Fund - Standard,PJ139,18/04/2013,191170,"1,812.72",REVENUE,G S KELSEY LIMITED,101154
North East Lincolnshire Council,http://statistics.data.gov.uk/id/local-authority/00FC,People And Communities,Childrens Hlth & Family Supp,Integ Local Service Delivery,Other Agencies,Nursery Educ Fund - Standard,PJ139,30/04/2013,151624,"1,812.72",REVENUE,REDACTED PERSONAL INFORMATION,REDACTED PERSONAL INFORMATION
North East Lincolnshire Council,http://statistics.data.gov.uk/id/local-authority/00FC,People And Communities,Childrens Hlth & Family Supp,Integ Local Service Delivery,Other Agencies,Nursery Educ Fund - Standard,PJ139,18/04/2013,191206,"1,985.36",REVENUE,REDACTED PERSONAL INFORMATION,REDACTED PERSONAL INFORMATION
North East Lincolnshire Council,http://statistics.data.gov.uk/id/local-authority/00FC,People And Communities,Childrens Hlth & Family Supp,Integ Local Service Delivery,Other Agencies,Nursery Educ Fund - Standard,PJ139,18/04/2013,191195,"3,091.34",REVENUE,HUMBERSTON VILLAGE NURSERY,102006
North East Lincolnshire Council,http://statistics.data.gov.uk/id/local-authority/00FC,People And Communities,Childrens Hlth & Family Supp,Integ Local Service Delivery,Other Agencies,Nursery Educ Fund - Standard,PJ139,18/04/2013,191148,"3,745.76",REVENUE,FOR UNDER FIVES LTD,100647
North East Lincolnshire Council,http://statistics.data.gov.uk/id/local-authority/00FC,People And Communities,Childrens Hlth & Family Supp,Integ Local Service Delivery,Other Agencies,Nursery Educ Fund - Standard,PJ139,18/04/2013,191190,"3,884.40",REVENUE,REDACTED PERSONAL INFORMATION,REDACTED PERSONAL INFORMATION
North East Lincolnshire Council,http://statistics.data.gov.uk/id/local-authority/00FC,People And Communities,Childrens Hlth & Family Supp,Integ Local Service Delivery,Other Agencies,Nursery Educ Fund - Standard,PJ139,18/04/2013,191196,"4,531.80",REVENUE,REDACTED PERSONAL INFORMATION,REDACTED PERSONAL INFORMATION
North East Lincolnshire Council,http://statistics.data.gov.uk/id/local-authority/00FC,People And Communities,Childrens Hlth & Family Supp,Integ Local Service Delivery,Other Agencies,Nursery Educ Fund - Standard,PJ139,18/04/2013,191174,"5,049.72",REVENUE,WENDOVER PRE-SCHOOL,101350
North East Lincolnshire Council,http://statistics.data.gov.uk/id/local-authority/00FC,People And Communities,Childrens Hlth & Family Supp,Integ Local Service Delivery,Other Agencies,Nursery Educ Fund - Standard,PJ139,18/04/2013,191193,"5,914.35",REVENUE,LITTLE BLOSSOMS DAY NURSERY,101816
North East Lincolnshire Council,http://statistics.data.gov.uk/id/local-authority/00FC,People And Communities,Childrens Hlth & Family Supp,Integ Local Service Delivery,Other Agencies,Nursery Educ Fund - Standard,PJ139,18/04/2013,191200,"6,407.21",REVENUE,HAVEN METHODIST PRE-SCHOOL,102286
North East Lincolnshire Council,http://statistics.data.gov.uk/id/local-authority/00FC,People And Communities,Childrens Hlth & Family Supp,Integ Local Service Delivery,Other Agencies,Nursery Educ Fund - Standard,PJ139,18/04/2013,191152,"6,797.70",REVENUE,FOR UNDER FIVES LTD,100647
North East Lincolnshire Council,http://statistics.data.gov.uk/id/local-authority/00FC,People And Communities,Childrens Hlth & Family Supp,Integ Local Service Delivery,Other Agencies,Nursery Educ Fund - Standard,PJ139,18/04/2013,191204,"7,590.08",REVENUE,THE AVENUE PLAYGROUP,103168
North East Lincolnshire Council,http://statistics.data.gov.uk/id/local-authority/00FC,People And Communities,Childrens Hlth & Family Supp,Integ Local Service Delivery,Other Agencies,Nursery Educ Fund - Standard,PJ139,18/04/2013,191177,"8,002.80",REVENUE,FIRST STEPS GRIMSBY LIMITED,101411
North East Lincolnshire Council,http://statistics.data.gov.uk/id/local-authority/00FC,People And Communities,Childrens Hlth & Family Supp,Integ Local Service Delivery,Other Agencies,Nursery Educ Fund - Standard,PJ139,18/04/2013,191192,"8,221.98",REVENUE,LITTLE LEGS DAYCARE,101753
North East Lincolnshire Council,http://statistics.data.gov.uk/id/local-authority/00FC,People And Communities,Childrens Hlth & Family Supp,Integ Local Service Delivery,Other Agencies,Nursery Educ Fund - Standard,PJ139,18/04/2013,191150,"8,254.35",REVENUE,FOR UNDER FIVES LTD,100647
North East Lincolnshire Council,http://statistics.data.gov.uk/id/local-authority/00FC,People And Communities,Childrens Hlth & Family Supp,Integ Local Service Delivery,Other Agencies,Nursery Educ Fund - Standard,PJ139,18/04/2013,191147,"9,452.04",REVENUE,FOR UNDER FIVES LTD,100647
North East Lincolnshire Council,http://statistics.data.gov.uk/id/local-authority/00FC,People And Communities,Childrens Hlth & Family Supp,Integ Local Service Delivery,Other Agencies,Nursery Educ Fund - Standard,PJ139,18/04/2013,191149,"9,646.26",REVENUE,FOR UNDER FIVES LTD,100647
North East Lincolnshire Council,http://statistics.data.gov.uk/id/local-authority/00FC,People And Communities,Childrens Hlth & Family Supp,Integ Local Service Delivery,Other Agencies,Nursery Educ Fund - Standard,PJ139,18/04/2013,191198,"10,003.50",REVENUE,ST CHRISTOPHERS PLAYGROUP,102148
North East Lincolnshire Council,http://statistics.data.gov.uk/id/local-authority/00FC,People And Communities,Childrens Hlth & Family Supp,Integ Local Service Delivery,Other Agencies,Nursery Educ Fund - Standard,PJ139,18/04/2013,191179,"10,584.99",REVENUE,PRECIOUS TIMES CHILDCARE SERVICES,101420
North East Lincolnshire Council,http://statistics.data.gov.uk/id/local-authority/00FC,People And Communities,Childrens Hlth & Family Supp,Integ Local Service Delivery,Other Agencies,Nursery Educ Fund - Standard,PJ139,18/04/2013,191164,"14,018.70",REVENUE,READY TEDDY GO,100973
North East Lincolnshire Council,http://statistics.data.gov.uk/id/local-authority/00FC,People And Communities,Childrens Hlth & Family Supp,Integ Local Service Delivery,Other Agencies,Nursery Educ Fund - Standard,PJ139,18/04/2013,191151,"14,071.59",REVENUE,FOR UNDER FIVES LTD,100647
North East Lincolnshire Council,http://statistics.data.gov.uk/id/local-authority/00FC,People And Communities,Childrens Hlth & Family Supp,Integ Local Service Delivery,Other Agencies,Nursery Educ Fund - Standard,PJ139,18/04/2013,191166,"14,113.32",REVENUE,CHAPPILLS DAY NURSERY,100998
North East Lincolnshire Council,http://statistics.data.gov.uk/id/local-authority/00FC,People And Communities,Childrens Hlth & Family Supp,Integ Local Service Delivery,Other Agencies,Nursery Educ Fund - Standard,PJ139,18/04/2013,191178,"14,760.72",REVENUE,PRECIOUS TIMES CHILDCARE SERVICES,101420
North East Lincolnshire Council,http://statistics.data.gov.uk/id/local-authority/00FC,People And Communities,Childrens Hlth & Family Supp,Integ Local Service Delivery,Other Agencies,Nursery Educ Fund - Standard,PJ139,18/04/2013,191182,"15,343.38",REVENUE,CLEETHORPES CHILDCARE,101591
North East Lincolnshire Council,http://statistics.data.gov.uk/id/local-authority/00FC,People And Communities,Childrens Hlth & Family Supp,Integ Local Service Delivery,Other Agencies,Nursery Educ Fund - Standard,PJ139,18/04/2013,191209,"16,405.74",REVENUE,BURSAR PLAYGROUP,111550
North East Lincolnshire Council,http://statistics.data.gov.uk/id/local-authority/00FC,People And Communities,Childrens Hlth & Family Supp,Integ Local Service Delivery,Other Agencies,Nursery Educ Fund - Standard,PJ139,18/04/2013,191168,"16,476.33",REVENUE,THE CHILDRENS HOUSE,101141
North East Lincolnshire Council,http://statistics.data.gov.uk/id/local-authority/00FC,People And Communities,Childrens Hlth & Family Supp,Integ Local Service Delivery,Other Agencies,Nursery Educ Fund - Standard,PJ139,18/04/2013,191160,"16,508.70",REVENUE,ST JAMES SCHOOL,100940
North East Lincolnshire Council,http://statistics.data.gov.uk/id/local-authority/00FC,People And Communities,Childrens Hlth & Family Supp,Integ Local Service Delivery,Other Agencies,Nursery Educ Fund - Standard,PJ139,18/04/2013,191158,"16,757.33",REVENUE,JUDY CLARK PLAYGROUP,100939
North East Lincolnshire Council,http://statistics.data.gov.uk/id/local-authority/00FC,People And Communities,Childrens Hlth & Family Supp,Integ Local Service Delivery,Other Agencies,Nursery Educ Fund - Standard,PJ139,18/04/2013,191162,"17,245.12",REVENUE,NEW WALTHAM TRACKERS PLAYGROUP,100972
North East Lincolnshire Council,http://statistics.data.gov.uk/id/local-authority/00FC,People And Communities,Childrens Hlth & Family Supp,Integ Local Service Delivery,Other Agencies,Nursery Educ Fund - Standard,PJ139,18/04/2013,191201,"17,506.13",REVENUE,WIZ KIDZ,102424
North East Lincolnshire Council,http://statistics.data.gov.uk/id/local-authority/00FC,People And Communities,Childrens Hlth & Family Supp,Integ Local Service Delivery,Other Agencies,Nursery Educ Fund - Standard,PJ139,18/04/2013,191187,"17,506.13",REVENUE,BUTTERFLIES DAY NURSERY,101694
North East Lincolnshire Council,http://statistics.data.gov.uk/id/local-authority/00FC,People And Communities,Childrens Hlth & Family Supp,Integ Local Service Delivery,Other Agencies,Nursery Educ Fund - Standard,PJ139,18/04/2013,191185,"18,645.12",REVENUE,GRIMSBY INSTITUTE FOR FHE,101649
North East Lincolnshire Council,http://statistics.data.gov.uk/id/local-authority/00FC,People And Communities,Childrens Hlth & Family Supp,Integ Local Service Delivery,Other Agencies,Nursery Educ Fund - Standard,PJ139,18/04/2013,191167,"18,867.71",REVENUE,HEALING VILLAGE NURSERY,101096
North East Lincolnshire Council,http://statistics.data.gov.uk/id/local-authority/00FC,People And Communities,Childrens Hlth & Family Supp,Integ Local Service Delivery,Other Agencies,Nursery Educ Fund - Standard,PJ139,18/04/2013,191161,"19,243.97",REVENUE,CLOVERFIELDS PRE SCHOOL,100971
North East Lincolnshire Council,http://statistics.data.gov.uk/id/local-authority/00FC,People And Communities,Childrens Hlth & Family Supp,Integ Local Service Delivery,Other Agencies,Nursery Educ Fund - Standard,PJ139,18/04/2013,191189,"19,740.72",REVENUE,ST MARGARETS PRE-SCHOOL,101724
North East Lincolnshire Council,http://statistics.data.gov.uk/id/local-authority/00FC,People And Communities,Childrens Hlth & Family Supp,Integ Local Service Delivery,Other Agencies,Nursery Educ Fund - Standard,PJ139,18/04/2013,191173,"20,305.94",REVENUE,ST PETERS CHILDREN CENTRE,101322
North East Lincolnshire Council,http://statistics.data.gov.uk/id/local-authority/00FC,People And Communities,Childrens Hlth & Family Supp,Integ Local Service Delivery,Other Agencies,Nursery Educ Fund - Standard,PJ139,18/04/2013,191183,"20,684.43",REVENUE,CLEETHORPES CHILDCARE,101591
North East Lincolnshire Council,http://statistics.data.gov.uk/id/local-authority/00FC,People And Communities,Childrens Hlth & Family Supp,Integ Local Service Delivery,Other Agencies,Nursery Educ Fund - Standard,PJ139,18/04/2013,191210,"21,974.36",REVENUE,ORMISTON SOUTH PARADE ACADEMY,111750
North East Lincolnshire Council,http://statistics.data.gov.uk/id/local-authority/00FC,People And Communities,Childrens Hlth & Family Supp,Integ Local Service Delivery,Other Agencies,Nursery Educ Fund - Standard,PJ139,18/04/2013,191181,"22,756.11",REVENUE,CLEETHORPES CHILDCARE,101591
North East Lincolnshire Council,http://statistics.data.gov.uk/id/local-authority/00FC,People And Communities,Childrens Hlth & Family Supp,Integ Local Service Delivery,Other Agencies,Nursery Educ Fund - Standard,PJ139,18/04/2013,191169,"22,820.85",REVENUE,HUMBERSTON C E PRE SCHOOL,101153
North East Lincolnshire Council,http://statistics.data.gov.uk/id/local-authority/00FC,People And Communities,Childrens Hlth & Family Supp,Integ Local Service Delivery,Other Agencies,Nursery Educ Fund - Standard,PJ139,18/04/2013,191171,"32,011.20",REVENUE,WELHOLME PRE SCHOOL,101258
North East Lincolnshire Council,http://statistics.data.gov.uk/id/local-authority/00FC,People And Communities,Childrens Hlth & Family Supp,Integ Local Service Delivery,Other Agencies,Nursery Educ Fund - Standard,PJ139,18/04/2013,191208,"32,920.29",REVENUE,LISLE MARSDEN CHILDCARE LIMITED,110493
North East Lincolnshire Council,http://statistics.data.gov.uk/id/local-authority/00FC,People And Communities,Childrens Hlth & Family Supp,Integ Local Service Delivery,Other Agencies,Nursery Educ Fund - Standard,PJ139,18/04/2013,191207,"55,255.59",REVENUE,WALTHAM LEAS PRE-SCHOOL,108236
North East Lincolnshire Council,http://statistics.data.gov.uk/id/local-authority/00FC,People And Communities,Childrens Hlth & Family Supp,Integ Local Service Delivery,Indirect Employee Expenses,Staff Training,EB122,25/04/2013,193436,809.00,REVENUE,TNT INTERNATIONAL,106559
North East Lincolnshire Council,http://statistics.data.gov.uk/id/local-authority/00FC,People And Communities,Childrens Hlth & Family Supp,Integ Local Service Delivery,Equip / Furniture / Materials,Equipment - Purchase,LA101,17/04/2013,190899,"1,448.65",REVENUE,ROMPA INTERNATIONAL,100790
North East Lincolnshire Council,http://statistics.data.gov.uk/id/local-authority/00FC,People And Communities,Childrens Hlth & Family Supp,Integ Local Service Delivery,Private Contractors,Third Party Prov - Private,PH101,18/04/2013,190890,"3,907.75",REVENUE,HUMBERSIDE POLICE AUTHORITY,100762
North East Lincolnshire Council,http://statistics.data.gov.uk/id/local-authority/00FC,People And Communities,Childrens Hlth & Family Supp,Integ Local Service Delivery,Private Contractors,Third Party Prov - Private,PH101,15/04/2013,189964,REDACTED COMMERCIALLY SENSITIVE,REVENUE,REVELLS TAXIS (ED/SOC SERV),100559
North East Lincolnshire Council,http://statistics.data.gov.uk/id/local-authority/00FC,People And Communities,Childrens Hlth & Family Supp,Integ Local Service Delivery,Private Contractors,Third Party Prov - Private,PH101,24/04/2013,192220,REDACTED COMMERCIALLY SENSITIVE,REVENUE,REVELLS TAXIS (ED/SOC SERV),100559
North East Lincolnshire Council,http://statistics.data.gov.uk/id/local-authority/00FC,People And Communities,Childrens Hlth & Family Supp,Integ Local Service Delivery,Private Contractors,Third Party Prov - Private,PH101,30/04/2013,193282,"4,000.00",REVENUE,N LINCS & GOOLE HOSPITALS NHS,111074
North East Lincolnshire Council,http://statistics.data.gov.uk/id/local-authority/00FC,People And Communities,Childrens Hlth & Family Supp,Integ Local Service Delivery,Private Contractors,Third Party Prov - Private,PH101,22/04/2013,191682,"17,190.00",REVENUE,N LINCS & GOOLE HOSPITALS NHS,111074
North East Lincolnshire Council,http://statistics.data.gov.uk/id/local-authority/00FC,People And Communities,Childrens Hlth & Family Supp,Integ Local Service Delivery,Private Contractors,Third Party Prov - Private,PH101,08/04/2013,188525,"18,333.34",REVENUE,BARNARDO SERVICES LTD,100782
North East Lincolnshire Council,http://statistics.data.gov.uk/id/local-authority/00FC,People And Communities,Childrens Hlth & Family Supp,Integ Local Service Delivery,Other Agencies,Nursery Educ Fund - Standard,PJ139,18/04/2013,191157,476.78,REVENUE,JUDY CLARK PLAYGROUP,100939
North East Lincolnshire Council,http://statistics.data.gov.uk/id/local-authority/00FC,People And Communities,Childrens Hlth & Family Supp,Integ Local Service Delivery,Other Agencies,Nursery Educ Fund - Standard,PJ139,18/04/2013,191159,476.78,REVENUE,ST JAMES SCHOOL,100940
North East Lincolnshire Council,http://statistics.data.gov.uk/id/local-authority/00FC,People And Communities,Childrens Hlth & Family Supp,Integ Local Service Delivery,Other Agencies,Nursery Educ Fund - Standard,PJ139,18/04/2013,191188,476.78,REVENUE,ST MARGARETS PRE-SCHOOL,101724
North East Lincolnshire Council,http://statistics.data.gov.uk/id/local-authority/00FC,People And Communities,Childrens Hlth & Family Supp,Integ Local Service Delivery,Other Agencies,Nursery Educ Fund - Standard,PJ139,18/04/2013,191194,476.78,REVENUE,LITTLE BLOSSOMS DAY NURSERY,101816
North East Lincolnshire Council,http://statistics.data.gov.uk/id/local-authority/00FC,People And Communities,Childrens Hlth & Family Supp,Integ Local Service Delivery,Other Agencies,Nursery Educ Fund - Standard,PJ139,18/04/2013,191163,476.78,REVENUE,READY TEDDY GO,100973
North East Lincolnshire Council,http://statistics.data.gov.uk/id/local-authority/00FC,People And Communities,Childrens Hlth & Family Supp,Integ Local Service Delivery,Other Agencies,Nursery Educ Fund - Standard,PJ139,18/04/2013,191191,635.70,REVENUE,REDACTED PERSONAL INFORMATION,REDACTED PERSONAL INFORMATION
North East Lincolnshire Council,http://statistics.data.gov.uk/id/local-authority/00FC,People And Communities,Childrens Hlth & Family Supp,Integ Local Service Delivery,Other Agencies,Nursery Educ Fund - Standard,PJ139,18/04/2013,191203,858.52,REVENUE,THE AVENUE PLAYGROUP,103168
North East Lincolnshire Council,http://statistics.data.gov.uk/id/local-authority/00FC,People And Communities,Childrens Hlth & Family Supp,Integ Local Service Delivery,Other Agencies,Nursery Educ Fund - Standard,PJ139,18/04/2013,191172,953.55,REVENUE,ST PETERS CHILDREN CENTRE,101322
North East Lincolnshire Council,http://statistics.data.gov.uk/id/local-authority/00FC,People And Communities,Childrens Hlth & Family Supp,Integ Local Service Delivery,Other Agencies,Nursery Educ Fund - Standard,PJ139,18/04/2013,191184,953.55,REVENUE,GRIMSBY INSTITUTE FOR FHE,101649
North East Lincolnshire Council,http://statistics.data.gov.uk/id/local-authority/00FC,People And Communities,Childrens Hlth & Family Supp,Integ Local Service Delivery,Other Agencies,Nursery Educ Fund - Standard,PJ139,18/04/2013,191175,"1,334.97",REVENUE,WENDOVER PRE-SCHOOL,101350
North East Lincolnshire Council,http://statistics.data.gov.uk/id/local-authority/00FC,People And Communities,Childrens Hlth & Family Supp,Integ Local Service Delivery,Other Agencies,Nursery Educ Fund - Standard,PJ139,18/04/2013,191153,"1,430.33",REVENUE,FOR UNDER FIVES LTD,100647
North East Lincolnshire Council,http://statistics.data.gov.uk/id/local-authority/00FC,People And Communities,Childrens Hlth & Family Supp,Integ Local Service Delivery,Other Agencies,Nursery Educ Fund - Standard,PJ139,18/04/2013,191154,"1,430.33",REVENUE,FOR UNDER FIVES LTD,100647
North East Lincolnshire Council,http://statistics.data.gov.uk/id/local-authority/00FC,People And Communities,Childrens Hlth & Family Supp,Integ Local Service Delivery,Other Agencies,Nursery Educ Fund - Standard,PJ139,18/04/2013,191155,"1,907.10",REVENUE,FOR UNDER FIVES LTD,100647
North East Lincolnshire Council,http://statistics.data.gov.uk/id/local-authority/00FC,People And Communities,Childrens Hlth & Family Supp,Integ Local Service Delivery,Other Agencies,Nursery Educ Fund - Standard,PJ139,18/04/2013,191199,"3,337.43",REVENUE,HAVEN METHODIST PRE-SCHOOL,102286
North East Lincolnshire Council,http://statistics.data.gov.uk/id/local-authority/00FC,People And Communities,Childrens Hlth & Family Supp,Integ Local Service Delivery,Other Agencies,Nursery Educ Fund - Standard,PJ139,18/04/2013,191165,"5,244.53",REVENUE,CHAPPILLS DAY NURSERY,100998
North East Lincolnshire Council,http://statistics.data.gov.uk/id/local-authority/00FC,People And Communities,Childrens Hlth & Family Supp,Integ Local Service Delivery,Other Agencies,Nursery Educ Fund - Standard,PJ139,18/04/2013,191180,"5,244.53",REVENUE,PRECIOUS TIMES CHILDCARE SERVICES,101420
North East Lincolnshire Council,http://statistics.data.gov.uk/id/local-authority/00FC,People And Communities,Childrens Hlth & Family Supp,Integ Local Service Delivery,Other Agencies,Nursery Educ Fund - Standard,PJ139,18/04/2013,191145,"5,721.30",REVENUE,FOR UNDER FIVES LTD,100647
North East Lincolnshire Council,http://statistics.data.gov.uk/id/local-authority/00FC,People And Communities,Childrens Hlth & Family Supp,Integ Local Service Delivery,Other Agencies,Nursery Educ Fund - Standard,PJ139,18/04/2013,191202,"7,628.40",REVENUE,WIZ KIDZ,102424
North East Lincolnshire Council,http://statistics.data.gov.uk/id/local-authority/00FC,People And Communities,Childrens Hlth & Family Supp,Integ Local Service Delivery,Other Agencies,Nursery Educ Fund - Standard,PJ139,18/04/2013,191211,"8,581.95",REVENUE,ORMISTON SOUTH PARADE ACADEMY,111750
North East Lincolnshire Council,http://statistics.data.gov.uk/id/local-authority/00FC,People And Communities,Childrens Hlth & Family Supp,Integ Local Service Delivery,Other Agencies,Nursery Educ Fund - Standard,PJ139,18/04/2013,191176,"10,965.83",REVENUE,FIRST STEPS GRIMSBY LIMITED,101411
North East Lincolnshire Council,http://statistics.data.gov.uk/id/local-authority/00FC,People And Communities,Childrens Hlth & Family Supp,Integ Local Service Delivery,Other Agencies,Nursery Educ Fund - Standard,PJ139,18/04/2013,191156,"12,396.15",REVENUE,FOR UNDER FIVES LTD,100647
North East Lincolnshire Council,http://statistics.data.gov.uk/id/local-authority/00FC,People And Communities,Childrens Hlth & Family Supp,Integ Local Service Delivery,Other Agencies,Nursery Educ Fund - Standard,PJ139,18/04/2013,191146,"12,872.93",REVENUE,FOR UNDER FIVES LTD,100647
North East Lincolnshire Council,http://statistics.data.gov.uk/id/local-authority/00FC,People And Communities,Childrens Hlth & Family Supp,Integ Local Service Delivery,Other Agencies,Nursery Educ Fund - Standard,PJ139,18/04/2013,191186,"14,303.25",REVENUE,BUTTERFLIES DAY NURSERY,101694
North East Lincolnshire Council,http://statistics.data.gov.uk/id/local-authority/00FC,People And Communities,Childrens Hlth & Family Supp,Integ Local Service Delivery,Private Contractors,Third Party Prov - Private,PH101,22/04/2013,189720,REDACTED COMMERCIALLY SENSITIVE,REVENUE,REVELLS TAXIS (ED/SOC SERV),100559
North East Lincolnshire Council,http://statistics.data.gov.uk/id/local-authority/00FC,People And Communities,Childrens Hlth & Family Supp,Integ Local Service Delivery,Private Contractors,Third Party Prov - Private,PH101,15/04/2013,190100,"15,000.00",REVENUE,VOLUNTARY ACTION NORTH EAST LINCOLNSHIRE,103631
North East Lincolnshire Council,http://statistics.data.gov.uk/id/local-authority/00FC,People And Communities,Childrens Hlth & Family Supp,Palliative / Complex Care,Private Contractors,Third Party Prov - Private,PH101,08/04/2013,188495,850.00,REVENUE,QUALITY TIME CARE LTD,102519
North East Lincolnshire Council,http://statistics.data.gov.uk/id/local-authority/00FC,People And Communities,Childrens Hlth & Family Supp,Palliative / Complex Care,Private Contractors,Third Party Prov - Private,PH101,11/04/2013,189427,"1,350.00",REVENUE,JULIA DYER,104510
North East Lincolnshire Council,http://statistics.data.gov.uk/id/local-authority/00FC,People And Communities,Childrens Hlth & Family Supp,Palliative / Complex Care,Private Contractors,Third Party Prov - Private,PH101,09/04/2013,188511,"1,800.00",REVENUE,ST ANDREWS HOSPICE,103069
North East Lincolnshire Council,http://statistics.data.gov.uk/id/local-authority/00FC,People And Communities,Childrens Hlth & Family Supp,Palliative / Complex Care,Private Contractors,Third Party Prov - Private,PH101,08/04/2013,188443,"2,500.00",REVENUE,INDEPENDENT COMMUNITY CARE MANAGEMENT LTD,105477
North East Lincolnshire Council,http://statistics.data.gov.uk/id/local-authority/00FC,People And Communities,Childrens Hlth & Family Supp,Palliative / Complex Care,Private Contractors,Third Party Prov - Private,PH101,30/04/2013,193421,"2,545.60",REVENUE,EAST MIDLANDS CROSSROADS,102400
North East Lincolnshire Council,http://statistics.data.gov.uk/id/local-authority/00FC,People And Communities,Childrens Hlth & Family Supp,Palliative / Complex Care,Private Contractors,Third Party Prov - Private,PH101,30/04/2013,193336,"6,349.27",REVENUE,INDEPENDENT COMMUNITY CARE MANAGEMENT LTD,105477
North East Lincolnshire Council,http://statistics.data.gov.uk/id/local-authority/00FC,People And Communities,Improved Health,Env Commerce Food & Health,Grants And Subscriptions,Subscriptions,LJ101,30/04/2013,193605,480.00,REVENUE,CHARTERED INSTITUTE OF ENVIRONMENTAL HEALTH,119802
North East Lincolnshire Council,http://statistics.data.gov.uk/id/local-authority/00FC,People And Communities,Improved Health,Licensing,Equip / Furniture / Materials,Goods For Resale,LA123,30/04/2013,193427,608.72,REVENUE,VIP SYSTEM LTD,101697
North East Lincolnshire Council,http://statistics.data.gov.uk/id/local-authority/00FC,People And Communities,Improved Health,Licensing,Equip / Furniture / Materials,Goods For Resale,LA123,30/04/2013,193427,830.64,REVENUE,VIP SYSTEM LTD,101697
North East Lincolnshire Council,http://statistics.data.gov.uk/id/local-authority/00FC,People And Communities,Improved Health,Trading Standards,Direct Employee Expenses,Agency Staff,EA105,08/04/2013,188449,800.00,REVENUE,KENYON BLOCK CONSULTANTS,101878
North East Lincolnshire Council,http://statistics.data.gov.uk/id/local-authority/00FC,People And Communities,Improved Health,Trading Standards,Indirect Employee Expenses,Staff Training,EB122,09/04/2013,189111,895.00,REVENUE,WARWICKSHIRE COUNTY COUNCIL,102828
North East Lincolnshire Council,http://statistics.data.gov.uk/id/local-authority/00FC,People And Communities,Improved Health,Trading Standards,Direct Employee Expenses,Agency Staff,EA105,10/04/2013,189031,960.00,REVENUE,KENYON BLOCK CONSULTANTS,101878
North East Lincolnshire Council,http://statistics.data.gov.uk/id/local-authority/00FC,People And Communities,Improved Health,Trading Standards,Direct Employee Expenses,Agency Staff,EA105,15/04/2013,189982,"1,255.50",REVENUE,KENYON BLOCK CONSULTANTS,101878
North East Lincolnshire Council,http://statistics.data.gov.uk/id/local-authority/00FC,People And Communities,Improved Health,Supporting People,Other Agencies,Third Pp - Block Subsidy,PJ102,17/04/2013,191218,REDACTED COMMERCIALLY SENSITIVE,REVENUE,HANOVER HOUSING ASSOCIATION,100307
North East Lincolnshire Council,http://statistics.data.gov.uk/id/local-authority/00FC,People And Communities,Improved Health,Supporting People,Other Agencies,Third Pp - Block Subsidy,PJ102,17/04/2013,191224,REDACTED COMMERCIALLY SENSITIVE,REVENUE,ABBEYFIELD,100331
North East Lincolnshire Council,http://statistics.data.gov.uk/id/local-authority/00FC,People And Communities,Improved Health,Supporting People,Other Agencies,Third Pp - Block Subsidy,PJ102,17/04/2013,191223,REDACTED COMMERCIALLY SENSITIVE,REVENUE,ANCHOR TRUST,100327
North East Lincolnshire Council,http://statistics.data.gov.uk/id/local-authority/00FC,People And Communities,Improved Health,Supporting People,Other Agencies,Third Pp - Block Subsidy,PJ102,17/04/2013,191221,REDACTED COMMERCIALLY SENSITIVE,REVENUE,HOUSING 21,100320
North East Lincolnshire Council,http://statistics.data.gov.uk/id/local-authority/00FC,People And Communities,Improved Health,Supporting People,Other Agencies,Third Pp - Block Gross,PJ103,29/04/2013,193736,REDACTED COMMERCIALLY SENSITIVE,REVENUE,ABBEYFIELD,100331
North East Lincolnshire Council,http://statistics.data.gov.uk/id/local-authority/00FC,People And Communities,Improved Health,Supporting People,Other Agencies,Third Pp - Block Gross,PJ103,29/04/2013,193728,REDACTED COMMERCIALLY SENSITIVE,REVENUE,HANOVER HOUSING ASSOCIATION,100307
North East Lincolnshire Council,http://statistics.data.gov.uk/id/local-authority/00FC,People And Communities,Improved Health,Supporting People,Other Agencies,Third Pp - Block Subsidy,PJ102,29/04/2013,192767,REDACTED COMMERCIALLY SENSITIVE,REVENUE,NAViGO HEALTH AND SOCIAL CARE CIC,104262
North East Lincolnshire Council,http://statistics.data.gov.uk/id/local-authority/00FC,People And Communities,Improved Health,Supporting People,Other Agencies,Third Pp - Block Gross,PJ103,29/04/2013,193735,REDACTED COMMERCIALLY SENSITIVE,REVENUE,ANCHOR TRUST,100327
North East Lincolnshire Council,http://statistics.data.gov.uk/id/local-authority/00FC,People And Communities,Improved Health,Supporting People,Other Agencies,Third Pp - Block Gross,PJ103,29/04/2013,193733,REDACTED COMMERCIALLY SENSITIVE,REVENUE,HOUSING 21,100320
North East Lincolnshire Council,http://statistics.data.gov.uk/id/local-authority/00FC,People And Communities,Improved Health,Supporting People,Other Agencies,Third Pp - Block Gross,PJ103,04/04/2013,188364,REDACTED COMMERCIALLY SENSITIVE,REVENUE,YORK HOUSING ASSOCIATION LTD,100341
North East Lincolnshire Council,http://statistics.data.gov.uk/id/local-authority/00FC,People And Communities,Improved Health,Supporting People,Other Agencies,Third Pp - Block Gross,PJ103,29/04/2013,193737,REDACTED COMMERCIALLY SENSITIVE,REVENUE,YORK HOUSING ASSOCIATION LTD,100341
North East Lincolnshire Council,http://statistics.data.gov.uk/id/local-authority/00FC,People And Communities,Improved Health,Supporting People,Other Agencies,Third Pp - Block Subsidy,PJ102,17/04/2013,191227,REDACTED COMMERCIALLY SENSITIVE,REVENUE,OPEN DOOR (HEALTH) LTD,103147
North East Lincolnshire Council,http://statistics.data.gov.uk/id/local-authority/00FC,People And Communities,Improved Health,Supporting People,Other Agencies,Third Pp - Block Subsidy,PJ102,17/04/2013,191219,REDACTED COMMERCIALLY SENSITIVE,REVENUE,HUMBERCARE LTD,100311
North East Lincolnshire Council,http://statistics.data.gov.uk/id/local-authority/00FC,People And Communities,Improved Health,Supporting People,Other Agencies,Third Pp - Block Gross,PJ103,04/04/2013,188366,REDACTED COMMERCIALLY SENSITIVE,REVENUE,SANCTUARY HOUSING ASSOCIATION,103289
North East Lincolnshire Council,http://statistics.data.gov.uk/id/local-authority/00FC,People And Communities,Improved Health,Supporting People,Other Agencies,Third Pp - Block Gross,PJ103,29/04/2013,193740,REDACTED COMMERCIALLY SENSITIVE,REVENUE,SANCTUARY HOUSING ASSOCIATION,103289
North East Lincolnshire Council,http://statistics.data.gov.uk/id/local-authority/00FC,People And Communities,Improved Health,Supporting People,Other Agencies,Third Pp - Block Gross,PJ103,04/04/2013,188362,REDACTED COMMERCIALLY SENSITIVE,REVENUE,CARE LTD,100314
North East Lincolnshire Council,http://statistics.data.gov.uk/id/local-authority/00FC,People And Communities,Improved Health,Supporting People,Other Agencies,Third Pp - Block Gross,PJ103,29/04/2013,193732,REDACTED COMMERCIALLY SENSITIVE,REVENUE,CARE LTD,100314
North East Lincolnshire Council,http://statistics.data.gov.uk/id/local-authority/00FC,People And Communities,Improved Health,Supporting People,Other Agencies,Third Pp - Block Subsidy,PJ102,17/04/2013,191230,REDACTED COMMERCIALLY SENSITIVE,REVENUE,CREATIVE SUPPORT LTD,107198
North East Lincolnshire Council,http://statistics.data.gov.uk/id/local-authority/00FC,People And Communities,Improved Health,Supporting People,Other Agencies,Third Pp - Block Subsidy,PJ102,17/04/2013,191220,REDACTED COMMERCIALLY SENSITIVE,REVENUE,HICA,100319
North East Lincolnshire Council,http://statistics.data.gov.uk/id/local-authority/00FC,People And Communities,Improved Health,Supporting People,Other Agencies,Third Pp - Block Subsidy,PJ102,17/04/2013,191228,REDACTED COMMERCIALLY SENSITIVE,REVENUE,NAViGO HEALTH AND SOCIAL CARE CIC,104262
North East Lincolnshire Council,http://statistics.data.gov.uk/id/local-authority/00FC,People And Communities,Improved Health,Supporting People,Other Agencies,Third Pp - Block Gross,PJ103,29/04/2013,193739,REDACTED COMMERCIALLY SENSITIVE,REVENUE,OPEN DOOR (HEALTH) LTD,103147
North East Lincolnshire Council,http://statistics.data.gov.uk/id/local-authority/00FC,People And Communities,Improved Health,Supporting People,Other Agencies,Third Pp - Block Gross,PJ103,04/04/2013,188361,REDACTED COMMERCIALLY SENSITIVE,REVENUE,HUMBERCARE LTD,100311
North East Lincolnshire Council,http://statistics.data.gov.uk/id/local-authority/00FC,People And Communities,Improved Health,Supporting People,Other Agencies,Third Pp - Block Gross,PJ103,29/04/2013,193731,REDACTED COMMERCIALLY SENSITIVE,REVENUE,HUMBERCARE LTD,100311
North East Lincolnshire Council,http://statistics.data.gov.uk/id/local-authority/00FC,People And Communities,Improved Health,Supporting People,Other Agencies,Third Pp - Block Subsidy,PJ102,17/04/2013,191229,REDACTED COMMERCIALLY SENSITIVE,REVENUE,CARE PLUS GROUP,106467
North East Lincolnshire Council,http://statistics.data.gov.uk/id/local-authority/00FC,People And Communities,Improved Health,Supporting People,Other Agencies,Third Pp - Block Gross,PJ103,04/04/2013,188363,REDACTED COMMERCIALLY SENSITIVE,REVENUE,WOMENS AID,100326
North East Lincolnshire Council,http://statistics.data.gov.uk/id/local-authority/00FC,People And Communities,Improved Health,Supporting People,Other Agencies,Third Pp - Block Gross,PJ103,29/04/2013,193734,REDACTED COMMERCIALLY SENSITIVE,REVENUE,WOMENS AID,100326
North East Lincolnshire Council,http://statistics.data.gov.uk/id/local-authority/00FC,People And Communities,Improved Health,Supporting People,Other Agencies,Third Pp - Block Gross,PJ103,04/04/2013,188359,REDACTED COMMERCIALLY SENSITIVE,REVENUE,THE SALVATION ARMY,100309
North East Lincolnshire Council,http://statistics.data.gov.uk/id/local-authority/00FC,People And Communities,Improved Health,Supporting People,Other Agencies,Third Pp - Block Gross,PJ103,29/04/2013,193729,REDACTED COMMERCIALLY SENSITIVE,REVENUE,THE SALVATION ARMY,100309
North East Lincolnshire Council,http://statistics.data.gov.uk/id/local-authority/00FC,People And Communities,Improved Health,Supporting People,Other Agencies,Third Pp - Block Gross,PJ103,04/04/2013,188360,REDACTED COMMERCIALLY SENSITIVE,REVENUE,DOORSTEP,100310
North East Lincolnshire Council,http://statistics.data.gov.uk/id/local-authority/00FC,People And Communities,Improved Health,Supporting People,Other Agencies,Third Pp - Block Gross,PJ103,29/04/2013,193730,REDACTED COMMERCIALLY SENSITIVE,REVENUE,DOORSTEP,100310
North East Lincolnshire Council,http://statistics.data.gov.uk/id/local-authority/00FC,People And Communities,Improved Health,Supporting People,Other Agencies,Third Pp - Block Gross,PJ103,04/04/2013,188365,REDACTED COMMERCIALLY SENSITIVE,REVENUE,LONGHURST AND HAVELOK HOMES LTD,100342
North East Lincolnshire Council,http://statistics.data.gov.uk/id/local-authority/00FC,People And Communities,Improved Health,Supporting People,Other Agencies,Third Pp - Block Subsidy,PJ102,17/04/2013,191222,REDACTED COMMERCIALLY SENSITIVE,REVENUE,HOUSING & SUPPORT SOLUTIONS,100321
North East Lincolnshire Council,http://statistics.data.gov.uk/id/local-authority/00FC,People And Communities,Improved Health,Supporting People,Other Agencies,Third Pp - Block Gross,PJ103,04/04/2013,188358,REDACTED COMMERCIALLY SENSITIVE,REVENUE,GRIMSBY AND CLEETHORPES YMCA,100305
North East Lincolnshire Council,http://statistics.data.gov.uk/id/local-authority/00FC,People And Communities,Improved Health,Supporting People,Other Agencies,Third Pp - Block Gross,PJ103,29/04/2013,193727,REDACTED COMMERCIALLY SENSITIVE,REVENUE,GRIMSBY AND CLEETHORPES YMCA,100305
North East Lincolnshire Council,http://statistics.data.gov.uk/id/local-authority/00FC,People And Communities,Improved Health,Supporting People,Other Agencies,Third Pp - Block Subsidy,PJ102,17/04/2013,191226,REDACTED COMMERCIALLY SENSITIVE,REVENUE,LONGHURST AND HAVELOK HOMES LTD,100342
North East Lincolnshire Council,http://statistics.data.gov.uk/id/local-authority/00FC,People And Communities,Improved Health,Supporting People,Other Agencies,Third Pp - Block Gross,PJ103,29/04/2013,193738,REDACTED COMMERCIALLY SENSITIVE,REVENUE,LONGHURST AND HAVELOK HOMES LTD,100342
North East Lincolnshire Council,http://statistics.data.gov.uk/id/local-authority/00FC,People And Communities,Improved Health,Health Promotion,Private Contractors,Third Party Prov - Private,PH101,09/04/2013,188396,"1,250.00",REVENUE,WEIGHT WATCHERS UK LTD,101509
North East Lincolnshire Council,http://statistics.data.gov.uk/id/local-authority/00FC,People And Communities,Improved Health,Health Promotion,Private Contractors,Third Party Prov - Private,PH101,09/04/2013,188396,"6,250.00",REVENUE,WEIGHT WATCHERS UK LTD,101509
North East Lincolnshire Council,http://statistics.data.gov.uk/id/local-authority/00FC,People And Communities,Improved Health,Health Promotion,Other Agencies,Health Charges,PJ131,22/04/2013,190091,"10,000.00",REVENUE,OASIS ACADEMY WINTRINGHAM,101939
North East Lincolnshire Council,http://statistics.data.gov.uk/id/local-authority/00FC,People And Communities,Improved Health,Health Promotion,Contributions To Provisions,Contributions - Other,LK103,09/04/2013,188427,-179.72,REVENUE,DRUMS FOR SCHOOLS,108097
North East Lincolnshire Council,http://statistics.data.gov.uk/id/local-authority/00FC,People And Communities,Improved Health,Health Promotion,Contributions To Provisions,Contributions - Other,LK103,08/04/2013,188381,387.50,REVENUE,FORESTFIELD SOFTWARE LTD,119453
North East Lincolnshire Council,http://statistics.data.gov.uk/id/local-authority/00FC,People And Communities,Improved Health,Health Promotion,Equip / Furniture / Materials,Equipment - Purchase,LA101,30/04/2013,194208,450.00,REVENUE,SMP (PLAYGROUNDS) LTD,120107
North East Lincolnshire Council,http://statistics.data.gov.uk/id/local-authority/00FC,People And Communities,Improved Health,Health Promotion,Contributions To Provisions,Contributions - Other,LK103,09/04/2013,188427,850.87,REVENUE,DRUMS FOR SCHOOLS,108097
North East Lincolnshire Council,http://statistics.data.gov.uk/id/local-authority/00FC,People And Communities,Improved Health,Health Promotion,Contributions To Provisions,Contributions - Other,LK103,15/04/2013,189050,862.00,REVENUE,ROYAL SOCIETY FOR PUBLIC HEALTH,104435
North East Lincolnshire Council,http://statistics.data.gov.uk/id/local-authority/00FC,People And Communities,Improved Health,Health Promotion,Contributions To Provisions,Contributions - Other,LK103,11/04/2013,189051,"1,200.00",REVENUE,GRIMSBY TOWN FOOTBALL IN THE COMMUNITY,100978
North East Lincolnshire Council,http://statistics.data.gov.uk/id/local-authority/00FC,People And Communities,Improved Health,Health Promotion,Contributions To Provisions,Contributions - Other,LK103,10/04/2013,188843,REDACTED COMMERCIALLY SENSITIVE,REVENUE,ATG VENUES UK LTD,102453
North East Lincolnshire Council,http://statistics.data.gov.uk/id/local-authority/00FC,People And Communities,Improved Health,Health Promotion,Catering,Provisions,LB101,08/04/2013,188385,"1,600.00",REVENUE,TICE SEMINARS LTD T/A THE PACIFIC INSTITUTE,101034
North East Lincolnshire Council,http://statistics.data.gov.uk/id/local-authority/00FC,People And Communities,Improved Health,Health Promotion,Catering,Provisions,LB101,11/04/2013,189828,"1,967.49",REVENUE,SPACE PEOPLE,101564
North East Lincolnshire Council,http://statistics.data.gov.uk/id/local-authority/00FC,People And Communities,Improved Health,Health Promotion,Print Stationery / Gen Off Exp,Advertising,LD104,09/04/2013,188396,625.00,REVENUE,WEIGHT WATCHERS UK LTD,101509
North East Lincolnshire Council,http://statistics.data.gov.uk/id/local-authority/00FC,People And Communities,Improved Health,Health Promotion,Print Stationery / Gen Off Exp,Advertising,LD104,09/04/2013,188396,"6,875.00",REVENUE,WEIGHT WATCHERS UK LTD,101509
North East Lincolnshire Council,http://statistics.data.gov.uk/id/local-authority/00FC,People And Communities,Improved Health,Health Promotion,Rents,Rent,GC101,22/04/2013,191695,-96.00,REVENUE,ST HUGHS COMMUNITY CENTRE,103637
North East Lincolnshire Council,http://statistics.data.gov.uk/id/local-authority/00FC,People And Communities,Improved Health,Health Promotion,Indirect Employee Expenses,Staff Training,EB122,10/04/2013,188226,300.00,REVENUE,OCN YORKSHIRE & HUMBER REGION,101705
North East Lincolnshire Council,http://statistics.data.gov.uk/id/local-authority/00FC,People And Communities,Improved Health,Health Trainers,Catering,Provisions,LB101,15/04/2013,190292,477.04,REVENUE,THE COLORFUL COMPANY,105476
North East Lincolnshire Council,http://statistics.data.gov.uk/id/local-authority/00FC,People And Communities,Improved Health,Health Trainers,Catering,Provisions,LB101,22/04/2013,191913,477.04,REVENUE,THE COLOURFUL COMPANY,105475
North East Lincolnshire Council,http://statistics.data.gov.uk/id/local-authority/00FC,People And Communities,Improved Health,Smoking Cessation,Indirect Employee Expenses,Staff Training,EB122,02/04/2013,187432,"3,000.00",REVENUE,HDM-MEDICAL,109075
North East Lincolnshire Council,http://statistics.data.gov.uk/id/local-authority/00FC,People And Communities,Improved Health,Smoking Cessation,Miscellaneous Expenses,Medical Supplies And Services,LL109,17/04/2013,191082,264.74,REVENUE,LLOYDS PHARMACY,103914
North East Lincolnshire Council,http://statistics.data.gov.uk/id/local-authority/00FC,People And Communities,Improved Health,Smoking Cessation,Miscellaneous Expenses,Medical Supplies And Services,LL109,18/04/2013,191107,268.15,REVENUE,H I WELDRICK LTD,104015
North East Lincolnshire Council,http://statistics.data.gov.uk/id/local-authority/00FC,People And Communities,Improved Health,Smoking Cessation,Miscellaneous Expenses,Medical Supplies And Services,LL109,18/04/2013,191120,298.06,REVENUE,LLOYDS PHARMACY,104027
North East Lincolnshire Council,http://statistics.data.gov.uk/id/local-authority/00FC,People And Communities,Improved Health,Smoking Cessation,Miscellaneous Expenses,Medical Supplies And Services,LL109,18/04/2013,191129,299.31,REVENUE,LINCOLNSHIRE CO-OP CHEMIST LTD,104883
North East Lincolnshire Council,http://statistics.data.gov.uk/id/local-authority/00FC,People And Communities,Improved Health,Smoking Cessation,Miscellaneous Expenses,Medical Supplies And Services,LL109,17/04/2013,191079,341.39,REVENUE,PERIVILLE CHEMIST,103910
North East Lincolnshire Council,http://statistics.data.gov.uk/id/local-authority/00FC,People And Communities,Improved Health,Smoking Cessation,Miscellaneous Expenses,Medical Supplies And Services,LL109,18/04/2013,191087,348.59,REVENUE,BOOTS THE CHEMIST,103919
North East Lincolnshire Council,http://statistics.data.gov.uk/id/local-authority/00FC,People And Communities,Improved Health,Smoking Cessation,Miscellaneous Expenses,Medical Supplies And Services,LL109,17/04/2013,191080,352.21,REVENUE,BOOTS THE CHEMIST,103912
North East Lincolnshire Council,http://statistics.data.gov.uk/id/local-authority/00FC,People And Communities,Improved Health,Smoking Cessation,Miscellaneous Expenses,Medical Supplies And Services,LL109,18/04/2013,191121,432.70,REVENUE,LLOYDS PHARMACY,104664
North East Lincolnshire Council,http://statistics.data.gov.uk/id/local-authority/00FC,People And Communities,Improved Health,Smoking Cessation,Miscellaneous Expenses,Medical Supplies And Services,LL109,18/04/2013,191131,491.28,REVENUE,SUPERDRUG STORES LTD,104925
North East Lincolnshire Council,http://statistics.data.gov.uk/id/local-authority/00FC,People And Communities,Improved Health,Smoking Cessation,Miscellaneous Expenses,Medical Supplies And Services,LL109,17/04/2013,191081,526.72,REVENUE,BOOTS THE CHEMIST,103912
North East Lincolnshire Council,http://statistics.data.gov.uk/id/local-authority/00FC,People And Communities,Improved Health,Smoking Cessation,Miscellaneous Expenses,Medical Supplies And Services,LL109,18/04/2013,191135,575.39,REVENUE,BOOTS THE CHEMIST,106166
North East Lincolnshire Council,http://statistics.data.gov.uk/id/local-authority/00FC,People And Communities,Improved Health,Smoking Cessation,Miscellaneous Expenses,Medical Supplies And Services,LL109,18/04/2013,191102,583.96,REVENUE,ASDA PHARMACY,104011
North East Lincolnshire Council,http://statistics.data.gov.uk/id/local-authority/00FC,People And Communities,Improved Health,Smoking Cessation,Miscellaneous Expenses,Medical Supplies And Services,LL109,18/04/2013,191109,824.15,REVENUE,SEDGEMILL LTD,104018
North East Lincolnshire Council,http://statistics.data.gov.uk/id/local-authority/00FC,People And Communities,Improved Health,Smoking Cessation,Miscellaneous Expenses,Medical Supplies And Services,LL109,17/04/2013,191077,842.70,REVENUE,BIRMINGHAM CHEMIST,103907
North East Lincolnshire Council,http://statistics.data.gov.uk/id/local-authority/00FC,People And Communities,Improved Health,Smoking Cessation,Miscellaneous Expenses,Medical Supplies And Services,LL109,18/04/2013,191136,861.13,REVENUE,LLOYDS PHARMACY,106385
North East Lincolnshire Council,http://statistics.data.gov.uk/id/local-authority/00FC,People And Communities,Improved Health,Smoking Cessation,Miscellaneous Expenses,Medical Supplies And Services,LL109,18/04/2013,191122,"1,681.85",REVENUE,LLOYDS PHARMACY,104664
North East Lincolnshire Council,http://statistics.data.gov.uk/id/local-authority/00FC,People And Communities,Improved Health,Smoking Cessation,Miscellaneous Expenses,Medical Supplies And Services,LL109,18/04/2013,191128,"2,697.41",REVENUE,LLOYDS PHARMACY,104881
North East Lincolnshire Council,http://statistics.data.gov.uk/id/local-authority/00FC,People And Communities,Improved Health,Improved Health Operational,Equip / Furniture / Materials,Health & Safety Supplies,LA116,24/04/2013,192133,252.70,REVENUE,PICKERINGS EUROPE LIMITED,100897
North East Lincolnshire Council,http://statistics.data.gov.uk/id/local-authority/00FC,People And Communities,Improved Health,Improved Health Operational,Equip / Furniture / Materials,Health & Safety Supplies,LA116,30/04/2013,193056,263.16,REVENUE,PICKERINGS EUROPE LIMITED,100897
North East Lincolnshire Council,http://statistics.data.gov.uk/id/local-authority/00FC,People And Communities,Improved Health,Improved Health Operational,Equip / Furniture / Materials,Health & Safety Supplies,LA116,29/04/2013,192765,285.00,REVENUE,DOLPHIN MOBILITY EAST MIDLANDS LTD,101317
North East Lincolnshire Council,http://statistics.data.gov.uk/id/local-authority/00FC,People And Communities,Improved Health,Improved Health Operational,Equip / Furniture / Materials,Health & Safety Supplies,LA116,30/04/2013,193034,288.00,REVENUE,AQUAJOY BATHLIFTS LTD,101315
North East Lincolnshire Council,http://statistics.data.gov.uk/id/local-authority/00FC,People And Communities,Improved Health,Improved Health Operational,Equip / Furniture / Materials,Health & Safety Supplies,LA116,30/04/2013,193034,288.00,REVENUE,AQUAJOY BATHLIFTS LTD,101315
North East Lincolnshire Council,http://statistics.data.gov.uk/id/local-authority/00FC,People And Communities,Improved Health,Improved Health Operational,Equip / Furniture / Materials,Health & Safety Supplies,LA116,15/04/2013,190109,325.00,REVENUE,DRIVE MEDICAL,101627
North East Lincolnshire Council,http://statistics.data.gov.uk/id/local-authority/00FC,People And Communities,Improved Health,Improved Health Operational,Equip / Furniture / Materials,Health & Safety Supplies,LA116,18/04/2013,189726,369.75,REVENUE,PICKERINGS EUROPE LIMITED,100897
North East Lincolnshire Council,http://statistics.data.gov.uk/id/local-authority/00FC,People And Communities,Improved Health,Improved Health Operational,Equip / Furniture / Materials,Health & Safety Supplies,LA116,30/04/2013,193034,390.00,REVENUE,AQUAJOY BATHLIFTS LTD,101315
North East Lincolnshire Council,http://statistics.data.gov.uk/id/local-authority/00FC,People And Communities,Improved Health,Improved Health Operational,Equip / Furniture / Materials,Health & Safety Supplies,LA116,10/04/2013,189013,459.36,REVENUE,LISCLARE LTD,101785
North East Lincolnshire Council,http://statistics.data.gov.uk/id/local-authority/00FC,People And Communities,Improved Health,Improved Health Operational,Equip / Furniture / Materials,Health & Safety Supplies,LA116,30/04/2013,193034,890.00,REVENUE,AQUAJOY BATHLIFTS LTD,101315
North East Lincolnshire Council,http://statistics.data.gov.uk/id/local-authority/00FC,People And Communities,Improved Health,Improved Health Operational,Equip / Furniture / Materials,Health & Safety Supplies,LA116,10/04/2013,188702,894.00,REVENUE,ARJO MED AB LTD,103268
North East Lincolnshire Council,http://statistics.data.gov.uk/id/local-authority/00FC,People And Communities,Improved Health,Improved Health Operational,Equip / Furniture / Materials,Health & Safety Supplies,LA116,30/04/2013,193401,"1,120.00",REVENUE,ULTIMATE CARE GROUP LTD,103469
North East Lincolnshire Council,http://statistics.data.gov.uk/id/local-authority/00FC,People And Communities,Improved Health,Improved Health Operational,Equip / Furniture / Materials,Health & Safety Supplies,LA116,10/04/2013,188530,"1,259.00",REVENUE,R82 UK LTD,101710
North East Lincolnshire Council,http://statistics.data.gov.uk/id/local-authority/00FC,People And Communities,Improved Health,Improved Health Operational,Equip / Furniture / Materials,Health & Safety Supplies,LA116,30/04/2013,193882,"2,750.00",REVENUE,ULTIMATE CARE GROUP LTD,103469
North East Lincolnshire Council,http://statistics.data.gov.uk/id/local-authority/00FC,People And Communities,Improved Health,Improved Health Operational,Equip / Furniture / Materials,Health & Safety Supplies,LA116,30/04/2013,193883,"2,750.00",REVENUE,ULTIMATE CARE GROUP LTD,103469
North East Lincolnshire Council,http://statistics.data.gov.uk/id/local-authority/00FC,People And Communities,Improved Health,Improved Health Operational,Equip / Furniture / Materials,Health & Safety Supplies,LA116,22/04/2013,188549,"3,000.00",REVENUE,SOFT OPTIONS (COMPUTER SYSTEMS) LTD,104292
North East Lincolnshire Council,http://statistics.data.gov.uk/id/local-authority/00FC,People And Communities,Improved Health,Improved Health Operational,Communications And Computing,Computer H/Ware - Purchases,LF105,08/04/2013,188528,454.71,REVENUE,SPECIALIST COMPUTER CENTRES PLC,110715
North East Lincolnshire Council,http://statistics.data.gov.uk/id/local-authority/00FC,People And Communities,Improved Health,Improved Health Operational,Communications And Computing,Computer H/Ware - Purchases,LF105,11/04/2013,188512,"2,273.55",REVENUE,SPECIALIST COMPUTER CENTRES PLC,110715
North East Lincolnshire Council,http://statistics.data.gov.uk/id/local-authority/00FC,People And Communities,Improved Health,Improved Health Operational,Consultancy,Consultancy,PL101,25/04/2013,192667,"1,000.00",REVENUE,NORTH BANK FORUM,120031
North East Lincolnshire Council,http://statistics.data.gov.uk/id/local-authority/00FC,People And Communities,Improved Health,Improved Health Operational,Private Contractors,Contract Payments,PH105,30/04/2013,194201,"20,000.00",REVENUE,UNI CONSULTING UNIQUE IMPROVEMENTS LTD,112344
North East Lincolnshire Council,http://statistics.data.gov.uk/id/local-authority/00FC,People And Communities,Vulnerable Young People,School Access Governor Student,Indirect Employee Expenses,Staff Training,EB122,30/04/2013,194226,301.75,REVENUE,GOVNET COMMUNICATIONS,101546
North East Lincolnshire Council,http://statistics.data.gov.uk/id/local-authority/00FC,People And Communities,Vulnerable Young People,School Access Governor Student,Direct Employee Expenses,Agency Staff,EA105,25/04/2013,193466,325.80,REVENUE,MATRIX SCM LTD,108117
North East Lincolnshire Council,http://statistics.data.gov.uk/id/local-authority/00FC,People And Communities,Vulnerable Young People,School Access Governor Student,Direct Employee Expenses,Agency Staff,EA105,16/04/2013,190651,401.82,REVENUE,MATRIX SCM LTD,108117
North East Lincolnshire Council,http://statistics.data.gov.uk/id/local-authority/00FC,People And Communities,Vulnerable Young People,School Access Governor Student,Direct Employee Expenses,Agency Staff,EA105,16/04/2013,190653,401.82,REVENUE,MATRIX SCM LTD,108117
North East Lincolnshire Council,http://statistics.data.gov.uk/id/local-authority/00FC,People And Communities,Vulnerable Young People,School Access Governor Student,Direct Employee Expenses,Agency Staff,EA105,16/04/2013,190652,401.82,REVENUE,MATRIX SCM LTD,108117
North East Lincolnshire Council,http://statistics.data.gov.uk/id/local-authority/00FC,People And Communities,Vulnerable Young People,School Access Governor Student,Direct Employee Expenses,Agency Staff,EA105,02/04/2013,186920,401.82,REVENUE,MATRIX SCM LTD,108117
North East Lincolnshire Council,http://statistics.data.gov.uk/id/local-authority/00FC,People And Communities,Vulnerable Young People,School Access Governor Student,Print Stationery / Gen Off Exp,Printing And Stationery,LD103,25/04/2013,192965,256.25,REVENUE,LYRECO UK LIMITED,101120
North East Lincolnshire Council,http://statistics.data.gov.uk/id/local-authority/00FC,People And Communities,Vulnerable Young People,School Access Governor Student,Grants And Subscriptions,Subscriptions,LJ101,10/04/2013,189237,482.00,REVENUE,LEXISNEXIS UK,101447
North East Lincolnshire Council,http://statistics.data.gov.uk/id/local-authority/00FC,People And Communities,Vulnerable Young People,School Access Governor Student,Contract Hire-Operating Leases,Vehicles - Contract Hire,JC101,08/04/2013,188189,REDACTED COMMERCIALLY SENSITIVE,REVENUE,LINKS TAXIS,100546
North East Lincolnshire Council,http://statistics.data.gov.uk/id/local-authority/00FC,People And Communities,Vulnerable Young People,School Access Governor Student,Contract Hire-Operating Leases,Vehicles - Contract Hire,JC101,08/04/2013,188179,REDACTED COMMERCIALLY SENSITIVE,REVENUE,LINKS TAXIS,100546
North East Lincolnshire Council,http://statistics.data.gov.uk/id/local-authority/00FC,People And Communities,Vulnerable Young People,School Access Governor Student,Contract Hire-Operating Leases,Vehicles - Contract Hire,JC101,10/04/2013,187970,REDACTED COMMERCIALLY SENSITIVE,REVENUE,LINKS TAXIS,100546
North East Lincolnshire Council,http://statistics.data.gov.uk/id/local-authority/00FC,People And Communities,Vulnerable Young People,School Access Governor Student,Contract Hire-Operating Leases,Vehicles - Contract Hire,JC101,10/04/2013,187969,REDACTED COMMERCIALLY SENSITIVE,REVENUE,LINKS TAXIS,100546
North East Lincolnshire Council,http://statistics.data.gov.uk/id/local-authority/00FC,People And Communities,Vulnerable Young People,School Access Governor Student,Contract Hire-Operating Leases,Vehicles - Contract Hire,JC101,08/04/2013,187949,REDACTED COMMERCIALLY SENSITIVE,REVENUE,LINKS TAXIS,100546
North East Lincolnshire Council,http://statistics.data.gov.uk/id/local-authority/00FC,People And Communities,Vulnerable Young People,School Access Governor Student,Contract Hire-Operating Leases,Vehicles - Contract Hire,JC101,09/04/2013,188480,REDACTED COMMERCIALLY SENSITIVE,REVENUE,COUNTRY CABS,101999
North East Lincolnshire Council,http://statistics.data.gov.uk/id/local-authority/00FC,People And Communities,Vulnerable Young People,School Access Governor Student,Contract Hire-Operating Leases,Vehicles - Contract Hire,JC101,22/04/2013,189486,REDACTED COMMERCIALLY SENSITIVE,REVENUE,COUNTRY CABS,101999
North East Lincolnshire Council,http://statistics.data.gov.uk/id/local-authority/00FC,People And Communities,Vulnerable Young People,School Access Governor Student,Contract Hire-Operating Leases,Vehicles - Contract Hire,JC101,08/04/2013,187960,REDACTED COMMERCIALLY SENSITIVE,REVENUE,LINKS TAXIS,100546
North East Lincolnshire Council,http://statistics.data.gov.uk/id/local-authority/00FC,People And Communities,Vulnerable Young People,School Access Governor Student,Contract Hire-Operating Leases,Vehicles - Contract Hire,JC101,09/04/2013,187955,REDACTED COMMERCIALLY SENSITIVE,REVENUE,LINKS TAXIS,100546
North East Lincolnshire Council,http://statistics.data.gov.uk/id/local-authority/00FC,People And Communities,Vulnerable Young People,School Access Governor Student,Contract Hire-Operating Leases,Vehicles - Contract Hire,JC101,08/04/2013,188157,REDACTED COMMERCIALLY SENSITIVE,REVENUE,LINKS TAXIS,100546
North East Lincolnshire Council,http://statistics.data.gov.uk/id/local-authority/00FC,People And Communities,Vulnerable Young People,School Access Governor Student,Contract Hire-Operating Leases,Vehicles - Contract Hire,JC101,08/04/2013,188305,REDACTED COMMERCIALLY SENSITIVE,REVENUE,LINKS TAXIS,100546
North East Lincolnshire Council,http://statistics.data.gov.uk/id/local-authority/00FC,People And Communities,Vulnerable Young People,School Access Governor Student,Contract Hire-Operating Leases,Vehicles - Contract Hire,JC101,10/04/2013,189180,REDACTED COMMERCIALLY SENSITIVE,REVENUE,COXONS CARS LIMITED,100578
North East Lincolnshire Council,http://statistics.data.gov.uk/id/local-authority/00FC,People And Communities,Vulnerable Young People,School Access Governor Student,Contract Hire-Operating Leases,Vehicles - Contract Hire,JC101,08/04/2013,188327,REDACTED COMMERCIALLY SENSITIVE,REVENUE,LINKS TAXIS,100546
North East Lincolnshire Council,http://statistics.data.gov.uk/id/local-authority/00FC,People And Communities,Vulnerable Young People,School Access Governor Student,Contract Hire-Operating Leases,Vehicles - Contract Hire,JC101,10/04/2013,187950,REDACTED COMMERCIALLY SENSITIVE,REVENUE,LINKS TAXIS,100546
North East Lincolnshire Council,http://statistics.data.gov.uk/id/local-authority/00FC,People And Communities,Vulnerable Young People,School Access Governor Student,Contract Hire-Operating Leases,Vehicles - Contract Hire,JC101,08/04/2013,187966,REDACTED COMMERCIALLY SENSITIVE,REVENUE,LINKS TAXIS,100546
North East Lincolnshire Council,http://statistics.data.gov.uk/id/local-authority/00FC,People And Communities,Vulnerable Young People,School Access Governor Student,Contract Hire-Operating Leases,Vehicles - Contract Hire,JC101,22/04/2013,189039,REDACTED COMMERCIALLY SENSITIVE,REVENUE,AA RADIO CARS LTD,101222
North East Lincolnshire Council,http://statistics.data.gov.uk/id/local-authority/00FC,People And Communities,Vulnerable Young People,School Access Governor Student,Contract Hire-Operating Leases,Vehicles - Contract Hire,JC101,09/04/2013,188286,REDACTED COMMERCIALLY SENSITIVE,REVENUE,LINKS TAXIS,100546
North East Lincolnshire Council,http://statistics.data.gov.uk/id/local-authority/00FC,People And Communities,Vulnerable Young People,School Access Governor Student,Contract Hire-Operating Leases,Vehicles - Contract Hire,JC101,10/04/2013,189065,REDACTED COMMERCIALLY SENSITIVE,REVENUE,WHEELCHAIR FRIENDLY TAXI SERVICE,101915
North East Lincolnshire Council,http://statistics.data.gov.uk/id/local-authority/00FC,People And Communities,Vulnerable Young People,School Access Governor Student,Contract Hire-Operating Leases,Vehicles - Contract Hire,JC101,10/04/2013,189061,REDACTED COMMERCIALLY SENSITIVE,REVENUE,AA RADIO CARS LTD,101222
North East Lincolnshire Council,http://statistics.data.gov.uk/id/local-authority/00FC,People And Communities,Vulnerable Young People,School Access Governor Student,Contract Hire-Operating Leases,Vehicles - Contract Hire,JC101,10/04/2013,189060,REDACTED COMMERCIALLY SENSITIVE,REVENUE,AA RADIO CARS LTD,101222
North East Lincolnshire Council,http://statistics.data.gov.uk/id/local-authority/00FC,People And Communities,Vulnerable Young People,School Access Governor Student,Contract Hire-Operating Leases,Vehicles - Contract Hire,JC101,08/04/2013,188316,REDACTED COMMERCIALLY SENSITIVE,REVENUE,LINKS TAXIS,100546
North East Lincolnshire Council,http://statistics.data.gov.uk/id/local-authority/00FC,People And Communities,Vulnerable Young People,School Access Governor Student,Contract Hire-Operating Leases,Vehicles - Contract Hire,JC101,10/04/2013,187961,REDACTED COMMERCIALLY SENSITIVE,REVENUE,LINKS TAXIS,100546
North East Lincolnshire Council,http://statistics.data.gov.uk/id/local-authority/00FC,People And Communities,Vulnerable Young People,School Access Governor Student,Contract Hire-Operating Leases,Vehicles - Contract Hire,JC101,09/04/2013,188927,REDACTED COMMERCIALLY SENSITIVE,REVENUE,MINICABS CLEETHORPES (LINCS) LTD,102124
North East Lincolnshire Council,http://statistics.data.gov.uk/id/local-authority/00FC,People And Communities,Vulnerable Young People,School Access Governor Student,Contract Hire-Operating Leases,Vehicles - Contract Hire,JC101,22/04/2013,189498,REDACTED COMMERCIALLY SENSITIVE,REVENUE,MINICABS CLEETHORPES (LINCS) LTD,102124
North East Lincolnshire Council,http://statistics.data.gov.uk/id/local-authority/00FC,People And Communities,Vulnerable Young People,School Access Governor Student,Contract Hire-Operating Leases,Vehicles - Contract Hire,JC101,08/04/2013,188198,REDACTED COMMERCIALLY SENSITIVE,REVENUE,LINKS TAXIS,100546
North East Lincolnshire Council,http://statistics.data.gov.uk/id/local-authority/00FC,People And Communities,Vulnerable Young People,School Access Governor Student,Contract Hire-Operating Leases,Vehicles - Contract Hire,JC101,10/04/2013,188208,REDACTED COMMERCIALLY SENSITIVE,REVENUE,COXONS CARS LIMITED,100578
North East Lincolnshire Council,http://statistics.data.gov.uk/id/local-authority/00FC,People And Communities,Vulnerable Young People,School Access Governor Student,Contract Hire-Operating Leases,Vehicles - Contract Hire,JC101,08/04/2013,187971,REDACTED COMMERCIALLY SENSITIVE,REVENUE,LINKS TAXIS,100546
North East Lincolnshire Council,http://statistics.data.gov.uk/id/local-authority/00FC,People And Communities,Vulnerable Young People,School Access Governor Student,Contract Hire-Operating Leases,Vehicles - Contract Hire,JC101,08/04/2013,187958,REDACTED COMMERCIALLY SENSITIVE,REVENUE,LINKS TAXIS,100546
North East Lincolnshire Council,http://statistics.data.gov.uk/id/local-authority/00FC,People And Communities,Vulnerable Young People,School Access Governor Student,Contract Hire-Operating Leases,Vehicles - Contract Hire,JC101,11/04/2013,189139,REDACTED COMMERCIALLY SENSITIVE,REVENUE,REVELLS TAXIS (ED/SOC SERV),100559
North East Lincolnshire Council,http://statistics.data.gov.uk/id/local-authority/00FC,People And Communities,Vulnerable Young People,School Access Governor Student,Contract Hire-Operating Leases,Vehicles - Contract Hire,JC101,10/04/2013,189183,REDACTED COMMERCIALLY SENSITIVE,REVENUE,REVELLS TAXIS (ED/SOC SERV),100559
North East Lincolnshire Council,http://statistics.data.gov.uk/id/local-authority/00FC,People And Communities,Vulnerable Young People,School Access Governor Student,Contract Hire-Operating Leases,Vehicles - Contract Hire,JC101,10/04/2013,188208,REDACTED COMMERCIALLY SENSITIVE,REVENUE,COXONS CARS LIMITED,100578
North East Lincolnshire Council,http://statistics.data.gov.uk/id/local-authority/00FC,People And Communities,Vulnerable Young People,School Access Governor Student,Contract Hire-Operating Leases,Vehicles - Contract Hire,JC101,08/04/2013,188267,REDACTED COMMERCIALLY SENSITIVE,REVENUE,LINKS TAXIS,100546
North East Lincolnshire Council,http://statistics.data.gov.uk/id/local-authority/00FC,People And Communities,Vulnerable Young People,School Access Governor Student,Contract Hire-Operating Leases,Vehicles - Contract Hire,JC101,09/04/2013,188158,REDACTED COMMERCIALLY SENSITIVE,REVENUE,LINKS TAXIS,100546
North East Lincolnshire Council,http://statistics.data.gov.uk/id/local-authority/00FC,People And Communities,Vulnerable Young People,School Access Governor Student,Contract Hire-Operating Leases,Vehicles - Contract Hire,JC101,09/04/2013,188291,REDACTED COMMERCIALLY SENSITIVE,REVENUE,LINKS TAXIS,100546
North East Lincolnshire Council,http://statistics.data.gov.uk/id/local-authority/00FC,People And Communities,Vulnerable Young People,School Access Governor Student,Contract Hire-Operating Leases,Vehicles - Contract Hire,JC101,08/04/2013,187958,REDACTED COMMERCIALLY SENSITIVE,REVENUE,LINKS TAXIS,100546
North East Lincolnshire Council,http://statistics.data.gov.uk/id/local-authority/00FC,People And Communities,Vulnerable Young People,School Access Governor Student,Contract Hire-Operating Leases,Vehicles - Contract Hire,JC101,10/04/2013,188292,REDACTED COMMERCIALLY SENSITIVE,REVENUE,LINKS TAXIS,100546
North East Lincolnshire Council,http://statistics.data.gov.uk/id/local-authority/00FC,People And Communities,Vulnerable Young People,School Access Governor Student,Contract Hire-Operating Leases,Vehicles - Contract Hire,JC101,08/04/2013,188275,REDACTED COMMERCIALLY SENSITIVE,REVENUE,LINKS TAXIS,100546
North East Lincolnshire Council,http://statistics.data.gov.uk/id/local-authority/00FC,People And Communities,Vulnerable Young People,School Access Governor Student,Private Contractors,Concessionary Fares,PH104,08/04/2013,188426,REDACTED COMMERCIALLY SENSITIVE,REVENUE,STAGECOACH SERVICES,101404
North East Lincolnshire Council,http://statistics.data.gov.uk/id/local-authority/00FC,People And Communities,Vulnerable Young People,School Access Governor Student,Private Contractors,Concessionary Fares,PH104,15/04/2013,189967,REDACTED COMMERCIALLY SENSITIVE,REVENUE,STAGECOACH SERVICES,101404
North East Lincolnshire Council,http://statistics.data.gov.uk/id/local-authority/00FC,People And Communities,Vulnerable Young People,School Access Governor Student,Contract Hire-Operating Leases,Vehicles - Contract Hire,JC101,08/04/2013,188161,REDACTED COMMERCIALLY SENSITIVE,REVENUE,LINKS TAXIS,100546
North East Lincolnshire Council,http://statistics.data.gov.uk/id/local-authority/00FC,People And Communities,Vulnerable Young People,School Access Governor Student,Contract Hire-Operating Leases,Vehicles - Contract Hire,JC101,10/04/2013,189140,REDACTED COMMERCIALLY SENSITIVE,REVENUE,REVELLS TAXIS (ED/SOC SERV),100559
North East Lincolnshire Council,http://statistics.data.gov.uk/id/local-authority/00FC,People And Communities,Vulnerable Young People,School Access Governor Student,Contract Hire-Operating Leases,Vehicles - Contract Hire,JC101,10/04/2013,189184,REDACTED COMMERCIALLY SENSITIVE,REVENUE,REVELLS TAXIS (ED/SOC SERV),100559
North East Lincolnshire Council,http://statistics.data.gov.uk/id/local-authority/00FC,People And Communities,Vulnerable Young People,School Access Governor Student,Contract Hire-Operating Leases,Vehicles - Contract Hire,JC101,09/04/2013,187957,REDACTED COMMERCIALLY SENSITIVE,REVENUE,LINKS TAXIS,100546
North East Lincolnshire Council,http://statistics.data.gov.uk/id/local-authority/00FC,People And Communities,Vulnerable Young People,School Access Governor Student,Contract Hire-Operating Leases,Vehicles - Contract Hire,JC101,11/04/2013,189776,REDACTED COMMERCIALLY SENSITIVE,REVENUE,NORTH LINCOLNSHIRE COUNCIL,101186
North East Lincolnshire Council,http://statistics.data.gov.uk/id/local-authority/00FC,People And Communities,Vulnerable Young People,School Access Governor Student,Contract Hire-Operating Leases,Vehicles - Contract Hire,JC101,10/04/2013,188940,REDACTED COMMERCIALLY SENSITIVE,REVENUE,MINICABS CLEETHORPES (LINCS) LTD,102124
North East Lincolnshire Council,http://statistics.data.gov.uk/id/local-authority/00FC,People And Communities,Vulnerable Young People,School Access Governor Student,Contract Hire-Operating Leases,Vehicles - Contract Hire,JC101,17/04/2013,189417,REDACTED COMMERCIALLY SENSITIVE,REVENUE,MINICABS CLEETHORPES (LINCS) LTD,102124
North East Lincolnshire Council,http://statistics.data.gov.uk/id/local-authority/00FC,People And Communities,Vulnerable Young People,School Access Governor Student,Contract Hire-Operating Leases,Vehicles - Contract Hire,JC101,08/04/2013,188160,REDACTED COMMERCIALLY SENSITIVE,REVENUE,LINKS TAXIS,100546
North East Lincolnshire Council,http://statistics.data.gov.uk/id/local-authority/00FC,People And Communities,Vulnerable Young People,School Access Governor Student,Contract Hire-Operating Leases,Vehicles - Contract Hire,JC101,08/04/2013,188310,REDACTED COMMERCIALLY SENSITIVE,REVENUE,LINKS TAXIS,100546
North East Lincolnshire Council,http://statistics.data.gov.uk/id/local-authority/00FC,People And Communities,Vulnerable Young People,School Access Governor Student,Contract Hire-Operating Leases,Vehicles - Contract Hire,JC101,11/04/2013,189488,REDACTED COMMERCIALLY SENSITIVE,REVENUE,HUXMANOR LTD,101444
North East Lincolnshire Council,http://statistics.data.gov.uk/id/local-authority/00FC,People And Communities,Vulnerable Young People,School Access Governor Student,Contract Hire-Operating Leases,Vehicles - Contract Hire,JC101,11/04/2013,189489,REDACTED COMMERCIALLY SENSITIVE,REVENUE,AMVALE LIMITED,101030
North East Lincolnshire Council,http://statistics.data.gov.uk/id/local-authority/00FC,People And Communities,Vulnerable Young People,School Access Governor Student,Contract Hire-Operating Leases,Vehicles - Contract Hire,JC101,10/04/2013,189064,REDACTED COMMERCIALLY SENSITIVE,REVENUE,REDACTED PERSONAL INFORMATION,REDACTED PERSONAL INFORMATION
North East Lincolnshire Council,http://statistics.data.gov.uk/id/local-authority/00FC,People And Communities,Vulnerable Young People,School Access Governor Student,Contract Hire-Operating Leases,Vehicles - Contract Hire,JC101,09/04/2013,188575,REDACTED COMMERCIALLY SENSITIVE,REVENUE,AMVALE LIMITED,101030
North East Lincolnshire Council,http://statistics.data.gov.uk/id/local-authority/00FC,People And Communities,Vulnerable Young People,School Access Governor Student,Contract Hire-Operating Leases,Vehicles - Contract Hire,JC101,09/04/2013,188576,REDACTED COMMERCIALLY SENSITIVE,REVENUE,AMVALE LIMITED,101030
North East Lincolnshire Council,http://statistics.data.gov.uk/id/local-authority/00FC,People And Communities,Vulnerable Young People,School Access Governor Student,Contract Hire-Operating Leases,Vehicles - Contract Hire,JC101,15/04/2013,188577,REDACTED COMMERCIALLY SENSITIVE,REVENUE,AMVALE LIMITED,101030
North East Lincolnshire Council,http://statistics.data.gov.uk/id/local-authority/00FC,People And Communities,Vulnerable Young People,School Access Governor Student,Contract Hire-Operating Leases,Vehicles - Contract Hire,JC101,10/04/2013,189399,REDACTED COMMERCIALLY SENSITIVE,REVENUE,AMVALE LIMITED,101030
North East Lincolnshire Council,http://statistics.data.gov.uk/id/local-authority/00FC,People And Communities,Vulnerable Young People,School Access Governor Student,Contract Hire-Operating Leases,Vehicles - Contract Hire,JC101,17/04/2013,189406,REDACTED COMMERCIALLY SENSITIVE,REVENUE,AMVALE LIMITED,101030
North East Lincolnshire Council,http://statistics.data.gov.uk/id/local-authority/00FC,People And Communities,Vulnerable Young People,School Access Governor Student,Contract Hire-Operating Leases,Vehicles - Contract Hire,JC101,11/04/2013,189403,REDACTED COMMERCIALLY SENSITIVE,REVENUE,AMVALE LIMITED,101030
North East Lincolnshire Council,http://statistics.data.gov.uk/id/local-authority/00FC,People And Communities,Vulnerable Young People,School Access Governor Student,Contract Hire-Operating Leases,Vehicles - Contract Hire,JC101,10/04/2013,188205,REDACTED COMMERCIALLY SENSITIVE,REVENUE,COXONS CARS LIMITED,100578
North East Lincolnshire Council,http://statistics.data.gov.uk/id/local-authority/00FC,People And Communities,Vulnerable Young People,School Access Governor Student,Contract Hire-Operating Leases,Vehicles - Contract Hire,JC101,10/04/2013,188194,REDACTED COMMERCIALLY SENSITIVE,REVENUE,LINKS TAXIS,100546
North East Lincolnshire Council,http://statistics.data.gov.uk/id/local-authority/00FC,People And Communities,Vulnerable Young People,School Access Governor Student,Contract Hire-Operating Leases,Vehicles - Contract Hire,JC101,08/04/2013,188309,REDACTED COMMERCIALLY SENSITIVE,REVENUE,LINKS TAXIS,100546
North East Lincolnshire Council,http://statistics.data.gov.uk/id/local-authority/00FC,People And Communities,Vulnerable Young People,School Access Governor Student,Contract Hire-Operating Leases,Vehicles - Contract Hire,JC101,08/04/2013,187958,REDACTED COMMERCIALLY SENSITIVE,REVENUE,LINKS TAXIS,100546
North East Lincolnshire Council,http://statistics.data.gov.uk/id/local-authority/00FC,People And Communities,Vulnerable Young People,School Access Governor Student,Contract Hire-Operating Leases,Vehicles - Contract Hire,JC101,10/04/2013,189063,REDACTED COMMERCIALLY SENSITIVE,REVENUE,REDACTED PERSONAL INFORMATION,REDACTED PERSONAL INFORMATION
North East Lincolnshire Council,http://statistics.data.gov.uk/id/local-authority/00FC,People And Communities,Vulnerable Young People,School Access Governor Student,Contract Hire-Operating Leases,Vehicles - Contract Hire,JC101,17/04/2013,188566,REDACTED COMMERCIALLY SENSITIVE,REVENUE,AMVALE LIMITED,101030
North East Lincolnshire Council,http://statistics.data.gov.uk/id/local-authority/00FC,People And Communities,Vulnerable Young People,School Access Governor Student,Contract Hire-Operating Leases,Vehicles - Contract Hire,JC101,09/04/2013,188567,REDACTED COMMERCIALLY SENSITIVE,REVENUE,AMVALE LIMITED,101030
North East Lincolnshire Council,http://statistics.data.gov.uk/id/local-authority/00FC,People And Communities,Vulnerable Young People,School Access Governor Student,Contract Hire-Operating Leases,Vehicles - Contract Hire,JC101,08/04/2013,188446,REDACTED COMMERCIALLY SENSITIVE,REVENUE,SHERWOOD TRAVEL,100868
North East Lincolnshire Council,http://statistics.data.gov.uk/id/local-authority/00FC,People And Communities,Vulnerable Young People,School Access Governor Student,Contract Hire-Operating Leases,Vehicles - Contract Hire,JC101,04/04/2013,188445,REDACTED COMMERCIALLY SENSITIVE,REVENUE,COOPERS TOURS,101503
North East Lincolnshire Council,http://statistics.data.gov.uk/id/local-authority/00FC,People And Communities,Vulnerable Young People,School Access Governor Student,Contract Hire-Operating Leases,Vehicles - Contract Hire,JC101,11/04/2013,189483,REDACTED COMMERCIALLY SENSITIVE,REVENUE,FISHERS OF GRIMSBY,111965
North East Lincolnshire Council,http://statistics.data.gov.uk/id/local-authority/00FC,People And Communities,Vulnerable Young People,School Access Governor Student,Contract Hire-Operating Leases,Vehicles - Contract Hire,JC101,10/04/2013,189408,REDACTED COMMERCIALLY SENSITIVE,REVENUE,AMVALE LIMITED,101030
North East Lincolnshire Council,http://statistics.data.gov.uk/id/local-authority/00FC,People And Communities,Vulnerable Young People,School Access Governor Student,Contract Hire-Operating Leases,Vehicles - Contract Hire,JC101,17/04/2013,189410,REDACTED COMMERCIALLY SENSITIVE,REVENUE,AMVALE LIMITED,101030
North East Lincolnshire Council,http://statistics.data.gov.uk/id/local-authority/00FC,People And Communities,Vulnerable Young People,School Access Governor Student,Contract Hire-Operating Leases,Vehicles - Contract Hire,JC101,10/04/2013,189155,REDACTED COMMERCIALLY SENSITIVE,REVENUE,SHERWOOD TRAVEL,100868
North East Lincolnshire Council,http://statistics.data.gov.uk/id/local-authority/00FC,People And Communities,Vulnerable Young People,School Access Governor Student,Contract Hire-Operating Leases,Vehicles - Contract Hire,JC101,22/04/2013,189485,REDACTED COMMERCIALLY SENSITIVE,REVENUE,COOPERS TOURS (LINCS) LTD,111878
North East Lincolnshire Council,http://statistics.data.gov.uk/id/local-authority/00FC,People And Communities,Vulnerable Young People,School Access Governor Student,Contract Hire-Operating Leases,Vehicles - Contract Hire,JC101,22/04/2013,189484,REDACTED COMMERCIALLY SENSITIVE,REVENUE,FISHERS OF GRIMSBY,111965
North East Lincolnshire Council,http://statistics.data.gov.uk/id/local-authority/00FC,People And Communities,Vulnerable Young People,School Access Governor Student,Contract Hire-Operating Leases,Vehicles - Contract Hire,JC101,11/04/2013,189491,REDACTED COMMERCIALLY SENSITIVE,REVENUE,MILLMAN COACHES,100700
North East Lincolnshire Council,http://statistics.data.gov.uk/id/local-authority/00FC,People And Communities,Vulnerable Young People,School Access Governor Student,Private Contractors,Concessionary Fares,PH104,08/04/2013,188426,REDACTED COMMERCIALLY SENSITIVE,REVENUE,STAGECOACH SERVICES,101404
North East Lincolnshire Council,http://statistics.data.gov.uk/id/local-authority/00FC,People And Communities,Vulnerable Young People,School Access Governor Student,Private Contractors,Concessionary Fares,PH104,15/04/2013,189967,REDACTED COMMERCIALLY SENSITIVE,REVENUE,STAGECOACH SERVICES,101404
North East Lincolnshire Council,http://statistics.data.gov.uk/id/local-authority/00FC,People And Communities,Vulnerable Young People,School Access Governor Student,Indirect Employee Expenses,Staff Training,EB122,24/04/2013,192344,700.00,REVENUE,PHOENIX TRAINING,108095
North East Lincolnshire Council,http://statistics.data.gov.uk/id/local-authority/00FC,People And Communities,Vulnerable Young People,School Access Governor Student,Contract Hire-Operating Leases,Vehicles - Contract Hire,JC101,17/04/2013,189418,REDACTED COMMERCIALLY SENSITIVE,REVENUE,COXONS CARS LIMITED,100578
North East Lincolnshire Council,http://statistics.data.gov.uk/id/local-authority/00FC,People And Communities,Vulnerable Young People,School Access Governor Student,Contract Hire-Operating Leases,Vehicles - Contract Hire,JC101,18/04/2013,188218,REDACTED COMMERCIALLY SENSITIVE,REVENUE,LINKS TAXIS,100546
North East Lincolnshire Council,http://statistics.data.gov.uk/id/local-authority/00FC,People And Communities,Vulnerable Young People,School Access Governor Student,Contract Hire-Operating Leases,Vehicles - Contract Hire,JC101,10/04/2013,189045,REDACTED COMMERCIALLY SENSITIVE,REVENUE,REVELLS TAXIS (ED/SOC SERV),100559
North East Lincolnshire Council,http://statistics.data.gov.uk/id/local-authority/00FC,People And Communities,Vulnerable Young People,School Access Governor Student,Contract Hire-Operating Leases,Vehicles - Contract Hire,JC101,08/04/2013,188448,REDACTED COMMERCIALLY SENSITIVE,REVENUE,REDACTED PERSONAL INFORMATION,REDACTED PERSONAL INFORMATION
North East Lincolnshire Council,http://statistics.data.gov.uk/id/local-authority/00FC,People And Communities,Vulnerable Young People,School Access Governor Student,Contract Hire-Operating Leases,Vehicles - Contract Hire,JC101,11/04/2013,189241,REDACTED COMMERCIALLY SENSITIVE,REVENUE,REDACTED PERSONAL INFORMATION,REDACTED PERSONAL INFORMATION
North East Lincolnshire Council,http://statistics.data.gov.uk/id/local-authority/00FC,People And Communities,Vulnerable Young People,School Access Governor Student,Contract Hire-Operating Leases,Vehicles - Contract Hire,JC101,10/04/2013,187967,REDACTED COMMERCIALLY SENSITIVE,REVENUE,LINKS TAXIS,100546
North East Lincolnshire Council,http://statistics.data.gov.uk/id/local-authority/00FC,People And Communities,Vulnerable Young People,School Access Governor Student,Contract Hire-Operating Leases,Vehicles - Contract Hire,JC101,08/04/2013,187964,REDACTED COMMERCIALLY SENSITIVE,REVENUE,LINKS TAXIS,100546
North East Lincolnshire Council,http://statistics.data.gov.uk/id/local-authority/00FC,People And Communities,Vulnerable Young People,School Access Governor Student,Contract Hire-Operating Leases,Vehicles - Contract Hire,JC101,17/04/2013,189474,REDACTED COMMERCIALLY SENSITIVE,REVENUE,LINKS TAXIS,100546
North East Lincolnshire Council,http://statistics.data.gov.uk/id/local-authority/00FC,People And Communities,Vulnerable Young People,School Access Governor Student,Contract Hire-Operating Leases,Vehicles - Contract Hire,JC101,08/04/2013,188481,REDACTED COMMERCIALLY SENSITIVE,REVENUE,CABLE RADIO CARS,100933
North East Lincolnshire Council,http://statistics.data.gov.uk/id/local-authority/00FC,People And Communities,Vulnerable Young People,School Access Governor Student,Contract Hire-Operating Leases,Vehicles - Contract Hire,JC101,08/04/2013,188199,REDACTED COMMERCIALLY SENSITIVE,REVENUE,LINKS TAXIS,100546
North East Lincolnshire Council,http://statistics.data.gov.uk/id/local-authority/00FC,People And Communities,Vulnerable Young People,School Access Governor Student,Contract Hire-Operating Leases,Vehicles - Contract Hire,JC101,11/04/2013,189175,REDACTED COMMERCIALLY SENSITIVE,REVENUE,REVELLS TAXIS (ED/SOC SERV),100559
North East Lincolnshire Council,http://statistics.data.gov.uk/id/local-authority/00FC,People And Communities,Vulnerable Young People,School Access Governor Student,Contract Hire-Operating Leases,Vehicles - Contract Hire,JC101,08/04/2013,188159,REDACTED COMMERCIALLY SENSITIVE,REVENUE,LINKS TAXIS,100546
North East Lincolnshire Council,http://statistics.data.gov.uk/id/local-authority/00FC,People And Communities,Vulnerable Young People,School Access Governor Student,Contract Hire-Operating Leases,Vehicles - Contract Hire,JC101,08/04/2013,188210,REDACTED COMMERCIALLY SENSITIVE,REVENUE,COXONS CARS LIMITED,100578
North East Lincolnshire Council,http://statistics.data.gov.uk/id/local-authority/00FC,People And Communities,Vulnerable Young People,School Access Governor Student,Contract Hire-Operating Leases,Vehicles - Contract Hire,JC101,08/04/2013,188177,REDACTED COMMERCIALLY SENSITIVE,REVENUE,LINKS TAXIS,100546
North East Lincolnshire Council,http://statistics.data.gov.uk/id/local-authority/00FC,People And Communities,Vulnerable Young People,School Access Governor Student,Contract Hire-Operating Leases,Vehicles - Contract Hire,JC101,18/04/2013,187959,REDACTED COMMERCIALLY SENSITIVE,REVENUE,LINKS TAXIS,100546
North East Lincolnshire Council,http://statistics.data.gov.uk/id/local-authority/00FC,People And Communities,Vulnerable Young People,School Access Governor Student,Contract Hire-Operating Leases,Vehicles - Contract Hire,JC101,10/04/2013,189238,REDACTED COMMERCIALLY SENSITIVE,REVENUE,REVELLS TAXIS (ED/SOC SERV),100559
North East Lincolnshire Council,http://statistics.data.gov.uk/id/local-authority/00FC,People And Communities,Vulnerable Young People,School Access Governor Student,Contract Hire-Operating Leases,Vehicles - Contract Hire,JC101,10/04/2013,188192,REDACTED COMMERCIALLY SENSITIVE,REVENUE,LINKS TAXIS,100546
North East Lincolnshire Council,http://statistics.data.gov.uk/id/local-authority/00FC,People And Communities,Vulnerable Young People,School Access Governor Student,Contract Hire-Operating Leases,Vehicles - Contract Hire,JC101,08/04/2013,188328,REDACTED COMMERCIALLY SENSITIVE,REVENUE,LINKS TAXIS,100546
North East Lincolnshire Council,http://statistics.data.gov.uk/id/local-authority/00FC,People And Communities,Vulnerable Young People,School Access Governor Student,Contract Hire-Operating Leases,Vehicles - Contract Hire,JC101,08/04/2013,188298,REDACTED COMMERCIALLY SENSITIVE,REVENUE,LINKS TAXIS,100546
North East Lincolnshire Council,http://statistics.data.gov.uk/id/local-authority/00FC,People And Communities,Vulnerable Young People,School Access Governor Student,Contract Hire-Operating Leases,Vehicles - Contract Hire,JC101,10/04/2013,188302,REDACTED COMMERCIALLY SENSITIVE,REVENUE,LINKS TAXIS,100546
North East Lincolnshire Council,http://statistics.data.gov.uk/id/local-authority/00FC,People And Communities,Vulnerable Young People,School Access Governor Student,Contract Hire-Operating Leases,Vehicles - Contract Hire,JC101,09/04/2013,188478,REDACTED COMMERCIALLY SENSITIVE,REVENUE,CABLE RADIO CARS,100933
North East Lincolnshire Council,http://statistics.data.gov.uk/id/local-authority/00FC,People And Communities,Vulnerable Young People,School Access Governor Student,Contract Hire-Operating Leases,Vehicles - Contract Hire,JC101,10/04/2013,188290,REDACTED COMMERCIALLY SENSITIVE,REVENUE,LINKS TAXIS,100546
North East Lincolnshire Council,http://statistics.data.gov.uk/id/local-authority/00FC,People And Communities,Vulnerable Young People,School Access Governor Student,Contract Hire-Operating Leases,Vehicles - Contract Hire,JC101,10/04/2013,189138,REDACTED COMMERCIALLY SENSITIVE,REVENUE,REVELLS TAXIS (ED/SOC SERV),100559
North East Lincolnshire Council,http://statistics.data.gov.uk/id/local-authority/00FC,People And Communities,Vulnerable Young People,School Access Governor Student,Contract Hire-Operating Leases,Vehicles - Contract Hire,JC101,10/04/2013,188313,REDACTED COMMERCIALLY SENSITIVE,REVENUE,LINKS TAXIS,100546
North East Lincolnshire Council,http://statistics.data.gov.uk/id/local-authority/00FC,People And Communities,Vulnerable Young People,School Access Governor Student,Contract Hire-Operating Leases,Vehicles - Contract Hire,JC101,09/04/2013,188303,REDACTED COMMERCIALLY SENSITIVE,REVENUE,LINKS TAXIS,100546
North East Lincolnshire Council,http://statistics.data.gov.uk/id/local-authority/00FC,People And Communities,Vulnerable Young People,School Access Governor Student,Contract Hire-Operating Leases,Vehicles - Contract Hire,JC101,08/04/2013,188314,REDACTED COMMERCIALLY SENSITIVE,REVENUE,LINKS TAXIS,100546
North East Lincolnshire Council,http://statistics.data.gov.uk/id/local-authority/00FC,People And Communities,Vulnerable Young People,School Access Governor Student,Contract Hire-Operating Leases,Vehicles - Contract Hire,JC101,09/04/2013,188926,REDACTED COMMERCIALLY SENSITIVE,REVENUE,COUNTRY CABS,101999
North East Lincolnshire Council,http://statistics.data.gov.uk/id/local-authority/00FC,People And Communities,Vulnerable Young People,School Access Governor Student,Contract Hire-Operating Leases,Vehicles - Contract Hire,JC101,10/04/2013,189141,REDACTED COMMERCIALLY SENSITIVE,REVENUE,CABLE RADIO CARS,100933
North East Lincolnshire Council,http://statistics.data.gov.uk/id/local-authority/00FC,People And Communities,Vulnerable Young People,School Access Governor Student,Contract Hire-Operating Leases,Vehicles - Contract Hire,JC101,09/04/2013,188931,REDACTED COMMERCIALLY SENSITIVE,REVENUE,MINICABS CLEETHORPES (LINCS) LTD,102124
North East Lincolnshire Council,http://statistics.data.gov.uk/id/local-authority/00FC,People And Communities,Vulnerable Young People,School Access Governor Student,Contract Hire-Operating Leases,Vehicles - Contract Hire,JC101,10/04/2013,187975,REDACTED COMMERCIALLY SENSITIVE,REVENUE,LINKS TAXIS,100546
North East Lincolnshire Council,http://statistics.data.gov.uk/id/local-authority/00FC,People And Communities,Vulnerable Young People,School Access Governor Student,Contract Hire-Operating Leases,Vehicles - Contract Hire,JC101,08/04/2013,188206,REDACTED COMMERCIALLY SENSITIVE,REVENUE,LINKS TAXIS,100546
North East Lincolnshire Council,http://statistics.data.gov.uk/id/local-authority/00FC,People And Communities,Vulnerable Young People,School Access Governor Student,Contract Hire-Operating Leases,Vehicles - Contract Hire,JC101,10/04/2013,187968,REDACTED COMMERCIALLY SENSITIVE,REVENUE,LINKS TAXIS,100546
North East Lincolnshire Council,http://statistics.data.gov.uk/id/local-authority/00FC,People And Communities,Vulnerable Young People,School Access Governor Student,Contract Hire-Operating Leases,Vehicles - Contract Hire,JC101,10/04/2013,189148,REDACTED COMMERCIALLY SENSITIVE,REVENUE,AA RADIO CARS LTD,101222
North East Lincolnshire Council,http://statistics.data.gov.uk/id/local-authority/00FC,People And Communities,Vulnerable Young People,School Access Governor Student,Contract Hire-Operating Leases,Vehicles - Contract Hire,JC101,08/04/2013,188156,REDACTED COMMERCIALLY SENSITIVE,REVENUE,LINKS TAXIS,100546
North East Lincolnshire Council,http://statistics.data.gov.uk/id/local-authority/00FC,People And Communities,Vulnerable Young People,School Access Governor Student,Contract Hire-Operating Leases,Vehicles - Contract Hire,JC101,08/04/2013,188175,REDACTED COMMERCIALLY SENSITIVE,REVENUE,LINKS TAXIS,100546
North East Lincolnshire Council,http://statistics.data.gov.uk/id/local-authority/00FC,People And Communities,Vulnerable Young People,School Access Governor Student,Contract Hire-Operating Leases,Vehicles - Contract Hire,JC101,11/04/2013,189043,REDACTED COMMERCIALLY SENSITIVE,REVENUE,REVELLS TAXIS (ED/SOC SERV),100559
North East Lincolnshire Council,http://statistics.data.gov.uk/id/local-authority/00FC,People And Communities,Vulnerable Young People,School Access Governor Student,Contract Hire-Operating Leases,Vehicles - Contract Hire,JC101,10/04/2013,189147,REDACTED COMMERCIALLY SENSITIVE,REVENUE,AA RADIO CARS LTD,101222
North East Lincolnshire Council,http://statistics.data.gov.uk/id/local-authority/00FC,People And Communities,Vulnerable Young People,School Access Governor Student,Contract Hire-Operating Leases,Vehicles - Contract Hire,JC101,10/04/2013,189393,REDACTED COMMERCIALLY SENSITIVE,REVENUE,LINKS TAXIS,100546
North East Lincolnshire Council,http://statistics.data.gov.uk/id/local-authority/00FC,People And Communities,Vulnerable Young People,School Access Governor Student,Contract Hire-Operating Leases,Vehicles - Contract Hire,JC101,08/04/2013,188296,REDACTED COMMERCIALLY SENSITIVE,REVENUE,LINKS TAXIS,100546
North East Lincolnshire Council,http://statistics.data.gov.uk/id/local-authority/00FC,People And Communities,Vulnerable Young People,School Access Governor Student,Contract Hire-Operating Leases,Vehicles - Contract Hire,JC101,22/04/2013,189510,REDACTED COMMERCIALLY SENSITIVE,REVENUE,WHEELCHAIR FRIENDLY TAXI SERVICE,101915
North East Lincolnshire Council,http://statistics.data.gov.uk/id/local-authority/00FC,People And Communities,Vulnerable Young People,School Access Governor Student,Contract Hire-Operating Leases,Vehicles - Contract Hire,JC101,11/04/2013,189174,REDACTED COMMERCIALLY SENSITIVE,REVENUE,REVELLS TAXIS (ED/SOC SERV),100559
North East Lincolnshire Council,http://statistics.data.gov.uk/id/local-authority/00FC,People And Communities,Vulnerable Young People,School Access Governor Student,Contract Hire-Operating Leases,Vehicles - Contract Hire,JC101,08/04/2013,188214,REDACTED COMMERCIALLY SENSITIVE,REVENUE,COXONS CARS LIMITED,100578
North East Lincolnshire Council,http://statistics.data.gov.uk/id/local-authority/00FC,People And Communities,Vulnerable Young People,School Access Governor Student,Contract Hire-Operating Leases,Vehicles - Contract Hire,JC101,08/04/2013,188330,REDACTED COMMERCIALLY SENSITIVE,REVENUE,LINKS TAXIS,100546
North East Lincolnshire Council,http://statistics.data.gov.uk/id/local-authority/00FC,People And Communities,Vulnerable Young People,School Access Governor Student,Contract Hire-Operating Leases,Vehicles - Contract Hire,JC101,09/04/2013,188220,REDACTED COMMERCIALLY SENSITIVE,REVENUE,LINKS TAXIS,100546
North East Lincolnshire Council,http://statistics.data.gov.uk/id/local-authority/00FC,People And Communities,Vulnerable Young People,School Access Governor Student,Contract Hire-Operating Leases,Vehicles - Contract Hire,JC101,08/04/2013,188174,REDACTED COMMERCIALLY SENSITIVE,REVENUE,LINKS TAXIS,100546
North East Lincolnshire Council,http://statistics.data.gov.uk/id/local-authority/00FC,People And Communities,Vulnerable Young People,School Access Governor Student,Contract Hire-Operating Leases,Vehicles - Contract Hire,JC101,08/04/2013,188185,REDACTED COMMERCIALLY SENSITIVE,REVENUE,LINKS TAXIS,100546
North East Lincolnshire Council,http://statistics.data.gov.uk/id/local-authority/00FC,People And Communities,Vulnerable Young People,School Access Governor Student,Contract Hire-Operating Leases,Vehicles - Contract Hire,JC101,17/04/2013,189472,REDACTED COMMERCIALLY SENSITIVE,REVENUE,LINKS TAXIS,100546
North East Lincolnshire Council,http://statistics.data.gov.uk/id/local-authority/00FC,People And Communities,Vulnerable Young People,School Access Governor Student,Contract Hire-Operating Leases,Vehicles - Contract Hire,JC101,09/04/2013,188181,REDACTED COMMERCIALLY SENSITIVE,REVENUE,LINKS TAXIS,100546
North East Lincolnshire Council,http://statistics.data.gov.uk/id/local-authority/00FC,People And Communities,Vulnerable Young People,School Access Governor Student,Contract Hire-Operating Leases,Vehicles - Contract Hire,JC101,08/04/2013,188202,REDACTED COMMERCIALLY SENSITIVE,REVENUE,LINKS TAXIS,100546
North East Lincolnshire Council,http://statistics.data.gov.uk/id/local-authority/00FC,People And Communities,Vulnerable Young People,School Access Governor Student,Contract Hire-Operating Leases,Vehicles - Contract Hire,JC101,17/04/2013,189478,REDACTED COMMERCIALLY SENSITIVE,REVENUE,LINKS TAXIS,100546
North East Lincolnshire Council,http://statistics.data.gov.uk/id/local-authority/00FC,People And Communities,Vulnerable Young People,School Access Governor Student,Contract Hire-Operating Leases,Vehicles - Contract Hire,JC101,08/04/2013,187951,REDACTED COMMERCIALLY SENSITIVE,REVENUE,LINKS TAXIS,100546
North East Lincolnshire Council,http://statistics.data.gov.uk/id/local-authority/00FC,People And Communities,Vulnerable Young People,School Access Governor Student,Contract Hire-Operating Leases,Vehicles - Contract Hire,JC101,10/04/2013,188692,REDACTED COMMERCIALLY SENSITIVE,REVENUE,MINICABS CLEETHORPES (LINCS) LTD,102124
North East Lincolnshire Council,http://statistics.data.gov.uk/id/local-authority/00FC,People And Communities,Vulnerable Young People,School Access Governor Student,Contract Hire-Operating Leases,Vehicles - Contract Hire,JC101,08/04/2013,188307,REDACTED COMMERCIALLY SENSITIVE,REVENUE,LINKS TAXIS,100546
North East Lincolnshire Council,http://statistics.data.gov.uk/id/local-authority/00FC,People And Communities,Vulnerable Young People,School Access Governor Student,Contract Hire-Operating Leases,Vehicles - Contract Hire,JC101,09/04/2013,188932,REDACTED COMMERCIALLY SENSITIVE,REVENUE,MINICABS CLEETHORPES (LINCS) LTD,102124
North East Lincolnshire Council,http://statistics.data.gov.uk/id/local-authority/00FC,People And Communities,Vulnerable Young People,School Access Governor Student,Contract Hire-Operating Leases,Vehicles - Contract Hire,JC101,17/04/2013,189473,REDACTED COMMERCIALLY SENSITIVE,REVENUE,LINKS TAXIS,100546
North East Lincolnshire Council,http://statistics.data.gov.uk/id/local-authority/00FC,People And Communities,Vulnerable Young People,School Access Governor Student,Contract Hire-Operating Leases,Vehicles - Contract Hire,JC101,10/04/2013,188278,REDACTED COMMERCIALLY SENSITIVE,REVENUE,LINKS TAXIS,100546
North East Lincolnshire Council,http://statistics.data.gov.uk/id/local-authority/00FC,People And Communities,Vulnerable Young People,School Access Governor Student,Contract Hire-Operating Leases,Vehicles - Contract Hire,JC101,10/04/2013,188204,REDACTED COMMERCIALLY SENSITIVE,REVENUE,LINKS TAXIS,100546
North East Lincolnshire Council,http://statistics.data.gov.uk/id/local-authority/00FC,People And Communities,Vulnerable Young People,School Access Governor Student,Contract Hire-Operating Leases,Vehicles - Contract Hire,JC101,09/04/2013,188935,REDACTED COMMERCIALLY SENSITIVE,REVENUE,MINICABS CLEETHORPES (LINCS) LTD,102124
North East Lincolnshire Council,http://statistics.data.gov.uk/id/local-authority/00FC,People And Communities,Vulnerable Young People,School Access Governor Student,Contract Hire-Operating Leases,Vehicles - Contract Hire,JC101,10/04/2013,187972,REDACTED COMMERCIALLY SENSITIVE,REVENUE,LINKS TAXIS,100546
North East Lincolnshire Council,http://statistics.data.gov.uk/id/local-authority/00FC,People And Communities,Vulnerable Young People,School Access Governor Student,Contract Hire-Operating Leases,Vehicles - Contract Hire,JC101,08/04/2013,188447,REDACTED COMMERCIALLY SENSITIVE,REVENUE,M & J CARS,112068
North East Lincolnshire Council,http://statistics.data.gov.uk/id/local-authority/00FC,People And Communities,Vulnerable Young People,School Access Governor Student,Contract Hire-Operating Leases,Vehicles - Contract Hire,JC101,09/04/2013,188221,REDACTED COMMERCIALLY SENSITIVE,REVENUE,LINKS TAXIS,100546
North East Lincolnshire Council,http://statistics.data.gov.uk/id/local-authority/00FC,People And Communities,Vulnerable Young People,School Access Governor Student,Contract Hire-Operating Leases,Vehicles - Contract Hire,JC101,08/04/2013,188217,REDACTED COMMERCIALLY SENSITIVE,REVENUE,LINKS TAXIS,100546
North East Lincolnshire Council,http://statistics.data.gov.uk/id/local-authority/00FC,People And Communities,Vulnerable Young People,School Access Governor Student,Contract Hire-Operating Leases,Vehicles - Contract Hire,JC101,10/04/2013,188938,REDACTED COMMERCIALLY SENSITIVE,REVENUE,MINICABS CLEETHORPES (LINCS) LTD,102124
North East Lincolnshire Council,http://statistics.data.gov.uk/id/local-authority/00FC,People And Communities,Vulnerable Young People,School Access Governor Student,Contract Hire-Operating Leases,Vehicles - Contract Hire,JC101,22/04/2013,189380,REDACTED COMMERCIALLY SENSITIVE,REVENUE,MINICABS CLEETHORPES (LINCS) LTD,102124
North East Lincolnshire Council,http://statistics.data.gov.uk/id/local-authority/00FC,People And Communities,Vulnerable Young People,School Access Governor Student,Contract Hire-Operating Leases,Vehicles - Contract Hire,JC101,11/04/2013,189772,REDACTED COMMERCIALLY SENSITIVE,REVENUE,AMVALE LIMITED,101030
North East Lincolnshire Council,http://statistics.data.gov.uk/id/local-authority/00FC,People And Communities,Vulnerable Young People,School Access Governor Student,Contract Hire-Operating Leases,Vehicles - Contract Hire,JC101,11/04/2013,189774,REDACTED COMMERCIALLY SENSITIVE,REVENUE,AMVALE LIMITED,101030
North East Lincolnshire Council,http://statistics.data.gov.uk/id/local-authority/00FC,People And Communities,Vulnerable Young People,School Access Governor Student,Contract Hire-Operating Leases,Vehicles - Contract Hire,JC101,11/04/2013,189272,REDACTED COMMERCIALLY SENSITIVE,REVENUE,WHEELCHAIR FRIENDLY TAXI SERVICE,101915
North East Lincolnshire Council,http://statistics.data.gov.uk/id/local-authority/00FC,People And Communities,Vulnerable Young People,School Access Governor Student,Contract Hire-Operating Leases,Vehicles - Contract Hire,JC101,08/04/2013,188293,REDACTED COMMERCIALLY SENSITIVE,REVENUE,LINKS TAXIS,100546
North East Lincolnshire Council,http://statistics.data.gov.uk/id/local-authority/00FC,People And Communities,Vulnerable Young People,School Access Governor Student,Contract Hire-Operating Leases,Vehicles - Contract Hire,JC101,10/04/2013,188312,REDACTED COMMERCIALLY SENSITIVE,REVENUE,LINKS TAXIS,100546
North East Lincolnshire Council,http://statistics.data.gov.uk/id/local-authority/00FC,People And Communities,Vulnerable Young People,School Access Governor Student,Contract Hire-Operating Leases,Vehicles - Contract Hire,JC101,08/04/2013,188479,REDACTED COMMERCIALLY SENSITIVE,REVENUE,LINKS TAXIS,100546
North East Lincolnshire Council,http://statistics.data.gov.uk/id/local-authority/00FC,People And Communities,Vulnerable Young People,School Access Governor Student,Contract Hire-Operating Leases,Vehicles - Contract Hire,JC101,10/04/2013,188196,REDACTED COMMERCIALLY SENSITIVE,REVENUE,LINKS TAXIS,100546
North East Lincolnshire Council,http://statistics.data.gov.uk/id/local-authority/00FC,People And Communities,Vulnerable Young People,School Access Governor Student,Contract Hire-Operating Leases,Vehicles - Contract Hire,JC101,11/04/2013,189773,REDACTED COMMERCIALLY SENSITIVE,REVENUE,AMVALE LIMITED,101030
North East Lincolnshire Council,http://statistics.data.gov.uk/id/local-authority/00FC,People And Communities,Vulnerable Young People,School Access Governor Student,Contract Hire-Operating Leases,Vehicles - Contract Hire,JC101,10/04/2013,189178,REDACTED COMMERCIALLY SENSITIVE,REVENUE,REVELLS TAXIS (ED/SOC SERV),100559
North East Lincolnshire Council,http://statistics.data.gov.uk/id/local-authority/00FC,People And Communities,Vulnerable Young People,School Access Governor Student,Contract Hire-Operating Leases,Vehicles - Contract Hire,JC101,17/04/2013,189479,REDACTED COMMERCIALLY SENSITIVE,REVENUE,LINKS TAXIS,100546
North East Lincolnshire Council,http://statistics.data.gov.uk/id/local-authority/00FC,People And Communities,Vulnerable Young People,School Access Governor Student,Contract Hire-Operating Leases,Vehicles - Contract Hire,JC101,22/04/2013,189143,REDACTED COMMERCIALLY SENSITIVE,REVENUE,WHEELCHAIR FRIENDLY TAXI SERVICE,101915
North East Lincolnshire Council,http://statistics.data.gov.uk/id/local-authority/00FC,People And Communities,Vulnerable Young People,School Access Governor Student,Contract Hire-Operating Leases,Vehicles - Contract Hire,JC101,08/04/2013,188162,REDACTED COMMERCIALLY SENSITIVE,REVENUE,LINKS TAXIS,100546
North East Lincolnshire Council,http://statistics.data.gov.uk/id/local-authority/00FC,People And Communities,Vulnerable Young People,School Access Governor Student,Contract Hire-Operating Leases,Vehicles - Contract Hire,JC101,22/04/2013,189383,REDACTED COMMERCIALLY SENSITIVE,REVENUE,MINICABS CLEETHORPES (LINCS) LTD,102124
North East Lincolnshire Council,http://statistics.data.gov.uk/id/local-authority/00FC,People And Communities,Vulnerable Young People,School Access Governor Student,Contract Hire-Operating Leases,Vehicles - Contract Hire,JC101,22/04/2013,189494,REDACTED COMMERCIALLY SENSITIVE,REVENUE,M & J CARS,112068
North East Lincolnshire Council,http://statistics.data.gov.uk/id/local-authority/00FC,People And Communities,Vulnerable Young People,School Access Governor Student,Contract Hire-Operating Leases,Vehicles - Contract Hire,JC101,08/04/2013,187952,REDACTED COMMERCIALLY SENSITIVE,REVENUE,LINKS TAXIS,100546
North East Lincolnshire Council,http://statistics.data.gov.uk/id/local-authority/00FC,People And Communities,Vulnerable Young People,School Access Governor Student,Contract Hire-Operating Leases,Vehicles - Contract Hire,JC101,08/04/2013,188295,REDACTED COMMERCIALLY SENSITIVE,REVENUE,LINKS TAXIS,100546
North East Lincolnshire Council,http://statistics.data.gov.uk/id/local-authority/00FC,People And Communities,Vulnerable Young People,School Access Governor Student,Contract Hire-Operating Leases,Vehicles - Contract Hire,JC101,22/04/2013,189495,REDACTED COMMERCIALLY SENSITIVE,REVENUE,MINICABS CLEETHORPES (LINCS) LTD,102124
North East Lincolnshire Council,http://statistics.data.gov.uk/id/local-authority/00FC,People And Communities,Vulnerable Young People,School Access Governor Student,Contract Hire-Operating Leases,Vehicles - Contract Hire,JC101,11/04/2013,189475,REDACTED COMMERCIALLY SENSITIVE,REVENUE,LINKS TAXIS,100546
North East Lincolnshire Council,http://statistics.data.gov.uk/id/local-authority/00FC,People And Communities,Vulnerable Young People,School Access Governor Student,Contract Hire-Operating Leases,Vehicles - Contract Hire,JC101,08/04/2013,188294,REDACTED COMMERCIALLY SENSITIVE,REVENUE,LINKS TAXIS,100546
North East Lincolnshire Council,http://statistics.data.gov.uk/id/local-authority/00FC,People And Communities,Vulnerable Young People,School Access Governor Student,Contract Hire-Operating Leases,Vehicles - Contract Hire,JC101,08/04/2013,188176,REDACTED COMMERCIALLY SENSITIVE,REVENUE,LINKS TAXIS,100546
North East Lincolnshire Council,http://statistics.data.gov.uk/id/local-authority/00FC,People And Communities,Vulnerable Young People,School Access Governor Student,Contract Hire-Operating Leases,Vehicles - Contract Hire,JC101,24/04/2013,189386,REDACTED COMMERCIALLY SENSITIVE,REVENUE,MINICABS CLEETHORPES (LINCS) LTD,102124
North East Lincolnshire Council,http://statistics.data.gov.uk/id/local-authority/00FC,People And Communities,Vulnerable Young People,School Access Governor Student,Contract Hire-Operating Leases,Vehicles - Contract Hire,JC101,11/04/2013,189490,REDACTED COMMERCIALLY SENSITIVE,REVENUE,MINICABS CLEETHORPES (LINCS) LTD,102124
North East Lincolnshire Council,http://statistics.data.gov.uk/id/local-authority/00FC,People And Communities,Vulnerable Young People,School Access Governor Student,Contract Hire-Operating Leases,Vehicles - Contract Hire,JC101,08/04/2013,188317,REDACTED COMMERCIALLY SENSITIVE,REVENUE,LINKS TAXIS,100546
North East Lincolnshire Council,http://statistics.data.gov.uk/id/local-authority/00FC,People And Communities,Vulnerable Young People,School Access Governor Student,Contract Hire-Operating Leases,Vehicles - Contract Hire,JC101,10/04/2013,188297,REDACTED COMMERCIALLY SENSITIVE,REVENUE,LINKS TAXIS,100546
North East Lincolnshire Council,http://statistics.data.gov.uk/id/local-authority/00FC,People And Communities,Vulnerable Young People,School Access Governor Student,Contract Hire-Operating Leases,Vehicles - Contract Hire,JC101,09/04/2013,187963,REDACTED COMMERCIALLY SENSITIVE,REVENUE,LINKS TAXIS,100546
North East Lincolnshire Council,http://statistics.data.gov.uk/id/local-authority/00FC,People And Communities,Vulnerable Young People,School Access Governor Student,Contract Hire-Operating Leases,Vehicles - Contract Hire,JC101,10/04/2013,188929,REDACTED COMMERCIALLY SENSITIVE,REVENUE,MINICABS CLEETHORPES (LINCS) LTD,102124
North East Lincolnshire Council,http://statistics.data.gov.uk/id/local-authority/00FC,People And Communities,Vulnerable Young People,School Access Governor Student,Contract Hire-Operating Leases,Vehicles - Contract Hire,JC101,10/04/2013,188200,REDACTED COMMERCIALLY SENSITIVE,REVENUE,LINKS TAXIS,100546
North East Lincolnshire Council,http://statistics.data.gov.uk/id/local-authority/00FC,People And Communities,Vulnerable Young People,School Access Governor Student,Contract Hire-Operating Leases,Vehicles - Contract Hire,JC101,10/04/2013,188308,REDACTED COMMERCIALLY SENSITIVE,REVENUE,LINKS TAXIS,100546
North East Lincolnshire Council,http://statistics.data.gov.uk/id/local-authority/00FC,People And Communities,Vulnerable Young People,School Access Governor Student,Contract Hire-Operating Leases,Vehicles - Contract Hire,JC101,08/04/2013,187954,REDACTED COMMERCIALLY SENSITIVE,REVENUE,LINKS TAXIS,100546
North East Lincolnshire Council,http://statistics.data.gov.uk/id/local-authority/00FC,People And Communities,Vulnerable Young People,School Access Governor Student,Contract Hire-Operating Leases,Vehicles - Contract Hire,JC101,22/04/2013,189497,REDACTED COMMERCIALLY SENSITIVE,REVENUE,MINICABS CLEETHORPES (LINCS) LTD,102124
North East Lincolnshire Council,http://statistics.data.gov.uk/id/local-authority/00FC,People And Communities,Vulnerable Young People,School Access Governor Student,Contract Hire-Operating Leases,Vehicles - Contract Hire,JC101,10/04/2013,188203,REDACTED COMMERCIALLY SENSITIVE,REVENUE,LINKS TAXIS,100546
North East Lincolnshire Council,http://statistics.data.gov.uk/id/local-authority/00FC,People And Communities,Vulnerable Young People,School Access Governor Student,Contract Hire-Operating Leases,Vehicles - Contract Hire,JC101,10/04/2013,188939,REDACTED COMMERCIALLY SENSITIVE,REVENUE,HANSONS AIRPORT EXPRESS,111879
North East Lincolnshire Council,http://statistics.data.gov.uk/id/local-authority/00FC,People And Communities,Vulnerable Young People,School Access Governor Student,Contract Hire-Operating Leases,Vehicles - Contract Hire,JC101,10/04/2013,188934,REDACTED COMMERCIALLY SENSITIVE,REVENUE,MINICABS CLEETHORPES (LINCS) LTD,102124
North East Lincolnshire Council,http://statistics.data.gov.uk/id/local-authority/00FC,People And Communities,Vulnerable Young People,School Access Governor Student,Contract Hire-Operating Leases,Vehicles - Contract Hire,JC101,08/04/2013,187962,REDACTED COMMERCIALLY SENSITIVE,REVENUE,LINKS TAXIS,100546
North East Lincolnshire Council,http://statistics.data.gov.uk/id/local-authority/00FC,People And Communities,Vulnerable Young People,School Access Governor Student,Contract Hire-Operating Leases,Vehicles - Contract Hire,JC101,11/04/2013,187956,REDACTED COMMERCIALLY SENSITIVE,REVENUE,LINKS TAXIS,100546
North East Lincolnshire Council,http://statistics.data.gov.uk/id/local-authority/00FC,People And Communities,Vulnerable Young People,School Access Governor Student,Contract Hire-Operating Leases,Vehicles - Contract Hire,JC101,08/04/2013,187965,REDACTED COMMERCIALLY SENSITIVE,REVENUE,LINKS TAXIS,100546
North East Lincolnshire Council,http://statistics.data.gov.uk/id/local-authority/00FC,People And Communities,Vulnerable Young People,School Access Governor Student,Contract Hire-Operating Leases,Vehicles - Contract Hire,JC101,08/04/2013,188186,REDACTED COMMERCIALLY SENSITIVE,REVENUE,LINKS TAXIS,100546
North East Lincolnshire Council,http://statistics.data.gov.uk/id/local-authority/00FC,People And Communities,Vulnerable Young People,School Access Governor Student,Contract Hire-Operating Leases,Vehicles - Contract Hire,JC101,10/04/2013,188954,REDACTED COMMERCIALLY SENSITIVE,REVENUE,MINICABS CLEETHORPES (LINCS) LTD,102124
North East Lincolnshire Council,http://statistics.data.gov.uk/id/local-authority/00FC,People And Communities,Vulnerable Young People,School Access Governor Student,Contract Hire-Operating Leases,Vehicles - Contract Hire,JC101,17/04/2013,188484,REDACTED COMMERCIALLY SENSITIVE,REVENUE,MINICABS CLEETHORPES (LINCS) LTD,102124
North East Lincolnshire Council,http://statistics.data.gov.uk/id/local-authority/00FC,People And Communities,Vulnerable Young People,School Access Governor Student,Contract Hire-Operating Leases,Vehicles - Contract Hire,JC101,11/04/2013,189398,REDACTED COMMERCIALLY SENSITIVE,REVENUE,MINICABS CLEETHORPES (LINCS) LTD,102124
North East Lincolnshire Council,http://statistics.data.gov.uk/id/local-authority/00FC,People And Communities,Vulnerable Young People,School Access Governor Student,Contract Hire-Operating Leases,Vehicles - Contract Hire,JC101,22/04/2013,189500,REDACTED COMMERCIALLY SENSITIVE,REVENUE,MINICABS CLEETHORPES (LINCS) LTD,102124
North East Lincolnshire Council,http://statistics.data.gov.uk/id/local-authority/00FC,People And Communities,Vulnerable Young People,School Access Governor Student,Contract Hire-Operating Leases,Vehicles - Contract Hire,JC101,17/04/2013,189476,REDACTED COMMERCIALLY SENSITIVE,REVENUE,LINKS TAXIS,100546
North East Lincolnshire Council,http://statistics.data.gov.uk/id/local-authority/00FC,People And Communities,Vulnerable Young People,School Access Governor Student,Contract Hire-Operating Leases,Vehicles - Contract Hire,JC101,10/04/2013,188311,REDACTED COMMERCIALLY SENSITIVE,REVENUE,LINKS TAXIS,100546
North East Lincolnshire Council,http://statistics.data.gov.uk/id/local-authority/00FC,People And Communities,Vulnerable Young People,School Access Governor Student,Contract Hire-Operating Leases,Vehicles - Contract Hire,JC101,10/04/2013,189037,REDACTED COMMERCIALLY SENSITIVE,REVENUE,REDACTED PERSONAL INFORMATION,REDACTED PERSONAL INFORMATION
North East Lincolnshire Council,http://statistics.data.gov.uk/id/local-authority/00FC,People And Communities,Vulnerable Young People,School Access Governor Student,Contract Hire-Operating Leases,Vehicles - Contract Hire,JC101,22/04/2013,189496,REDACTED COMMERCIALLY SENSITIVE,REVENUE,MINICABS CLEETHORPES (LINCS) LTD,102124
North East Lincolnshire Council,http://statistics.data.gov.uk/id/local-authority/00FC,People And Communities,Vulnerable Young People,School Access Governor Student,Contract Hire-Operating Leases,Vehicles - Contract Hire,JC101,11/04/2013,189385,REDACTED COMMERCIALLY SENSITIVE,REVENUE,MINICABS CLEETHORPES (LINCS) LTD,102124
North East Lincolnshire Council,http://statistics.data.gov.uk/id/local-authority/00FC,People And Communities,Vulnerable Young People,School Access Governor Student,Contract Hire-Operating Leases,Vehicles - Contract Hire,JC101,09/04/2013,188933,REDACTED COMMERCIALLY SENSITIVE,REVENUE,MINICABS CLEETHORPES (LINCS) LTD,102124
North East Lincolnshire Council,http://statistics.data.gov.uk/id/local-authority/00FC,People And Communities,Vulnerable Young People,School Access Governor Student,Contract Hire-Operating Leases,Vehicles - Contract Hire,JC101,11/04/2013,189176,REDACTED COMMERCIALLY SENSITIVE,REVENUE,HANSONS AIRPORT EXPRESS,111879
North East Lincolnshire Council,http://statistics.data.gov.uk/id/local-authority/00FC,People And Communities,Vulnerable Young People,School Access Governor Student,Contract Hire-Operating Leases,Vehicles - Contract Hire,JC101,18/04/2013,189493,REDACTED COMMERCIALLY SENSITIVE,REVENUE,REVELLS TAXIS (ED/SOC SERV),100559
North East Lincolnshire Council,http://statistics.data.gov.uk/id/local-authority/00FC,People And Communities,Vulnerable Young People,School Access Governor Student,Contract Hire-Operating Leases,Vehicles - Contract Hire,JC101,08/04/2013,187953,REDACTED COMMERCIALLY SENSITIVE,REVENUE,LINKS TAXIS,100546
North East Lincolnshire Council,http://statistics.data.gov.uk/id/local-authority/00FC,People And Communities,Vulnerable Young People,School Access Governor Student,Contract Hire-Operating Leases,Vehicles - Contract Hire,JC101,09/04/2013,188572,REDACTED COMMERCIALLY SENSITIVE,REVENUE,AMVALE LIMITED,101030
North East Lincolnshire Council,http://statistics.data.gov.uk/id/local-authority/00FC,People And Communities,Vulnerable Young People,School Access Governor Student,Contract Hire-Operating Leases,Vehicles - Contract Hire,JC101,09/04/2013,188570,REDACTED COMMERCIALLY SENSITIVE,REVENUE,AMVALE LIMITED,101030
North East Lincolnshire Council,http://statistics.data.gov.uk/id/local-authority/00FC,People And Communities,Vulnerable Young People,School Access Governor Student,Contract Hire-Operating Leases,Vehicles - Contract Hire,JC101,09/04/2013,188687,REDACTED COMMERCIALLY SENSITIVE,REVENUE,THE BUS RUN,101522
North East Lincolnshire Council,http://statistics.data.gov.uk/id/local-authority/00FC,People And Communities,Vulnerable Young People,School Access Governor Student,Contract Hire-Operating Leases,Vehicles - Contract Hire,JC101,10/04/2013,189145,REDACTED COMMERCIALLY SENSITIVE,REVENUE,HUXMANOR LTD,101444
North East Lincolnshire Council,http://statistics.data.gov.uk/id/local-authority/00FC,People And Communities,Vulnerable Young People,School Access Governor Student,Contract Hire-Operating Leases,Vehicles - Contract Hire,JC101,17/04/2013,188571,REDACTED COMMERCIALLY SENSITIVE,REVENUE,AMVALE LIMITED,101030
North East Lincolnshire Council,http://statistics.data.gov.uk/id/local-authority/00FC,People And Communities,Vulnerable Young People,School Access Governor Student,Contract Hire-Operating Leases,Vehicles - Contract Hire,JC101,22/04/2013,189477,REDACTED COMMERCIALLY SENSITIVE,REVENUE,REVELLS TAXIS (ED/SOC SERV),100559
North East Lincolnshire Council,http://statistics.data.gov.uk/id/local-authority/00FC,People And Communities,Vulnerable Young People,School Access Governor Student,Contract Hire-Operating Leases,Vehicles - Contract Hire,JC101,10/04/2013,189142,REDACTED COMMERCIALLY SENSITIVE,REVENUE,CABBYCARS,100847
North East Lincolnshire Council,http://statistics.data.gov.uk/id/local-authority/00FC,People And Communities,Vulnerable Young People,School Access Governor Student,Contract Hire-Operating Leases,Vehicles - Contract Hire,JC101,22/04/2013,189149,REDACTED COMMERCIALLY SENSITIVE,REVENUE,HUXMANOR LTD,101444
North East Lincolnshire Council,http://statistics.data.gov.uk/id/local-authority/00FC,People And Communities,Vulnerable Young People,School Access Governor Student,Contract Hire-Operating Leases,Vehicles - Contract Hire,JC101,22/04/2013,188569,REDACTED COMMERCIALLY SENSITIVE,REVENUE,AMVALE LIMITED,101030
North East Lincolnshire Council,http://statistics.data.gov.uk/id/local-authority/00FC,People And Communities,Vulnerable Young People,School Access Governor Student,Contract Hire-Operating Leases,Vehicles - Contract Hire,JC101,24/04/2013,189384,REDACTED COMMERCIALLY SENSITIVE,REVENUE,MINICABS CLEETHORPES (LINCS) LTD,102124
North East Lincolnshire Council,http://statistics.data.gov.uk/id/local-authority/00FC,People And Communities,Vulnerable Young People,School Access Governor Student,Contract Hire-Operating Leases,Vehicles - Contract Hire,JC101,10/04/2013,189146,REDACTED COMMERCIALLY SENSITIVE,REVENUE,HUXMANOR LTD,101444
North East Lincolnshire Council,http://statistics.data.gov.uk/id/local-authority/00FC,People And Communities,Vulnerable Young People,School Access Governor Student,Contract Hire-Operating Leases,Vehicles - Contract Hire,JC101,10/04/2013,189404,REDACTED COMMERCIALLY SENSITIVE,REVENUE,AMVALE LIMITED,101030
North East Lincolnshire Council,http://statistics.data.gov.uk/id/local-authority/00FC,People And Communities,Vulnerable Young People,School Access Governor Student,Contract Hire-Operating Leases,Vehicles - Contract Hire,JC101,10/04/2013,189401,REDACTED COMMERCIALLY SENSITIVE,REVENUE,AMVALE LIMITED,101030
North East Lincolnshire Council,http://statistics.data.gov.uk/id/local-authority/00FC,People And Communities,Vulnerable Young People,School Access Governor Student,Contract Hire-Operating Leases,Vehicles - Contract Hire,JC101,10/04/2013,189402,REDACTED COMMERCIALLY SENSITIVE,REVENUE,AMVALE LIMITED,101030
North East Lincolnshire Council,http://statistics.data.gov.uk/id/local-authority/00FC,People And Communities,Vulnerable Young People,School Access Governor Student,Contract Hire-Operating Leases,Vehicles - Contract Hire,JC101,10/04/2013,189185,REDACTED COMMERCIALLY SENSITIVE,REVENUE,THE BUS RUN,101522
North East Lincolnshire Council,http://statistics.data.gov.uk/id/local-authority/00FC,People And Communities,Vulnerable Young People,School Access Governor Student,Contract Hire-Operating Leases,Vehicles - Contract Hire,JC101,08/04/2013,188444,REDACTED COMMERCIALLY SENSITIVE,REVENUE,AMVALE LIMITED,101030
North East Lincolnshire Council,http://statistics.data.gov.uk/id/local-authority/00FC,People And Communities,Vulnerable Young People,School Access Governor Student,Contract Hire-Operating Leases,Vehicles - Contract Hire,JC101,08/04/2013,188454,REDACTED COMMERCIALLY SENSITIVE,REVENUE,AMVALE LIMITED,101030
North East Lincolnshire Council,http://statistics.data.gov.uk/id/local-authority/00FC,People And Communities,Vulnerable Young People,School Access Governor Student,Contract Hire-Operating Leases,Vehicles - Contract Hire,JC101,09/04/2013,188477,REDACTED COMMERCIALLY SENSITIVE,REVENUE,AMVALE LIMITED,101030
North East Lincolnshire Council,http://statistics.data.gov.uk/id/local-authority/00FC,People And Communities,Vulnerable Young People,School Access Governor Student,Contract Hire-Operating Leases,Vehicles - Contract Hire,JC101,17/04/2013,189409,REDACTED COMMERCIALLY SENSITIVE,REVENUE,AMVALE LIMITED,101030
North East Lincolnshire Council,http://statistics.data.gov.uk/id/local-authority/00FC,People And Communities,Vulnerable Young People,School Access Governor Student,Contract Hire-Operating Leases,Vehicles - Contract Hire,JC101,22/04/2013,188568,REDACTED COMMERCIALLY SENSITIVE,REVENUE,AMVALE LIMITED,101030
North East Lincolnshire Council,http://statistics.data.gov.uk/id/local-authority/00FC,People And Communities,Vulnerable Young People,School Access Governor Student,Contract Hire-Operating Leases,Vehicles - Contract Hire,JC101,10/04/2013,189388,REDACTED COMMERCIALLY SENSITIVE,REVENUE,MILLMAN COACHES,100700
North East Lincolnshire Council,http://statistics.data.gov.uk/id/local-authority/00FC,People And Communities,Vulnerable Young People,School Access Governor Student,Contract Hire-Operating Leases,Vehicles - Contract Hire,JC101,15/04/2013,188574,REDACTED COMMERCIALLY SENSITIVE,REVENUE,AMVALE LIMITED,101030
North East Lincolnshire Council,http://statistics.data.gov.uk/id/local-authority/00FC,People And Communities,Vulnerable Young People,School Access Governor Student,Contract Hire-Operating Leases,Vehicles - Contract Hire,JC101,08/04/2013,188437,REDACTED COMMERCIALLY SENSITIVE,REVENUE,AMVALE LIMITED,101030
North East Lincolnshire Council,http://statistics.data.gov.uk/id/local-authority/00FC,People And Communities,Vulnerable Young People,School Access Governor Student,Contract Hire-Operating Leases,Vehicles - Contract Hire,JC101,10/04/2013,189405,REDACTED COMMERCIALLY SENSITIVE,REVENUE,AMVALE LIMITED,101030
North East Lincolnshire Council,http://statistics.data.gov.uk/id/local-authority/00FC,People And Communities,Vulnerable Young People,School Access Governor Student,Contract Hire-Operating Leases,Vehicles - Contract Hire,JC101,11/04/2013,189775,REDACTED COMMERCIALLY SENSITIVE,REVENUE,NORTH LINCOLNSHIRE COUNCIL,101186
North East Lincolnshire Council,http://statistics.data.gov.uk/id/local-authority/00FC,People And Communities,Vulnerable Young People,School Access Governor Student,Contract Hire-Operating Leases,Vehicles - Contract Hire,JC101,10/04/2013,189412,REDACTED COMMERCIALLY SENSITIVE,REVENUE,AMVALE LIMITED,101030
North East Lincolnshire Council,http://statistics.data.gov.uk/id/local-authority/00FC,People And Communities,Vulnerable Young People,School Access Governor Student,Contract Hire-Operating Leases,Vehicles - Contract Hire,JC101,10/04/2013,189414,REDACTED COMMERCIALLY SENSITIVE,REVENUE,AMVALE LIMITED,101030
North East Lincolnshire Council,http://statistics.data.gov.uk/id/local-authority/00FC,People And Communities,Vulnerable Young People,School Access Governor Student,Contract Hire-Operating Leases,Vehicles - Contract Hire,JC101,10/04/2013,189411,REDACTED COMMERCIALLY SENSITIVE,REVENUE,AMVALE LIMITED,101030
North East Lincolnshire Council,http://statistics.data.gov.uk/id/local-authority/00FC,People And Communities,Vulnerable Young People,School Access Governor Student,Contract Hire-Operating Leases,Vehicles - Contract Hire,JC101,10/04/2013,189400,REDACTED COMMERCIALLY SENSITIVE,REVENUE,AMVALE LIMITED,101030
North East Lincolnshire Council,http://statistics.data.gov.uk/id/local-authority/00FC,People And Communities,Vulnerable Young People,School Access Governor Student,Contract Hire-Operating Leases,Vehicles - Contract Hire,JC101,10/04/2013,189413,REDACTED COMMERCIALLY SENSITIVE,REVENUE,AMVALE LIMITED,101030
North East Lincolnshire Council,http://statistics.data.gov.uk/id/local-authority/00FC,People And Communities,Vulnerable Young People,Strategic Management,Miscellaneous Expenses,Other Supplies & Services,LL110,08/04/2013,185180,256.66,REVENUE,BOX-IT HUMBERSIDE,112319
North East Lincolnshire Council,http://statistics.data.gov.uk/id/local-authority/00FC,People And Communities,Vulnerable Young People,Strategic Management,Direct Employee Expenses,Agency Staff,EA105,02/04/2013,186920,744.44,REVENUE,MATRIX SCM LTD,108117
North East Lincolnshire Council,http://statistics.data.gov.uk/id/local-authority/00FC,People And Communities,Vulnerable Young People,Strategic Management,Indirect Employee Expenses,Allowances - Employees,EB110,30/04/2013,193755,877.50,REVENUE,NASUWT G76 GRIMSBY & DISTRICT,107363
North East Lincolnshire Council,http://statistics.data.gov.uk/id/local-authority/00FC,People And Communities,Vulnerable Young People,Strategic Management,Direct Employee Expenses,Agency Staff,EA105,08/04/2013,188472,"12,005.20",REVENUE,JD AND KM BLACKMORE PARTNERS,102197
North East Lincolnshire Council,http://statistics.data.gov.uk/id/local-authority/00FC,People And Communities,Vulnerable Young People,Strategic Management,Miscellaneous Expenses,Other Expenses General,LL119,18/04/2013,191069,250.00,REVENUE,EAST RIDING OF YORKSHIRE,100377
North East Lincolnshire Council,http://statistics.data.gov.uk/id/local-authority/00FC,People And Communities,Vulnerable Young People,Sen/Inclusion,Consultancy,Consultancy,PL101,08/04/2013,188182,372.25,REVENUE,GLENN ALLGOOD,109255
North East Lincolnshire Council,http://statistics.data.gov.uk/id/local-authority/00FC,People And Communities,Vulnerable Young People,Sen/Inclusion,Consultancy,Consultancy,PL101,17/04/2013,188556,"3,900.00",REVENUE,GLENN ALLGOOD,109255
North East Lincolnshire Council,http://statistics.data.gov.uk/id/local-authority/00FC,People And Communities,Vulnerable Young People,Sen/Inclusion,Other Local Authorities,Third Pp - Other Local Auth,PC101,24/04/2013,188560,"3,000.00",REVENUE,QUALITY TIME CARE LTD,102519
North East Lincolnshire Council,http://statistics.data.gov.uk/id/local-authority/00FC,People And Communities,Vulnerable Young People,Sen/Inclusion,Private Contractors,Third Party Prov - Private,PH101,22/04/2013,188507,"3,069.00",REVENUE,REFLEXION CARE GROUP LIMITED,106975
North East Lincolnshire Council,http://statistics.data.gov.uk/id/local-authority/00FC,People And Communities,Vulnerable Young People,Sen/Inclusion,Other Local Authorities,Third Pp - Other Local Auth,PC101,08/04/2013,188387,"3,118.00",REVENUE,NORTH LINCOLNSHIRE COUNCIL,101186
North East Lincolnshire Council,http://statistics.data.gov.uk/id/local-authority/00FC,People And Communities,Vulnerable Young People,Sen/Inclusion,Other Local Authorities,Third Pp - Other Local Auth,PC101,08/04/2013,188508,"5,465.87",REVENUE,NEW OPTIONS LTD,105590
North East Lincolnshire Council,http://statistics.data.gov.uk/id/local-authority/00FC,People And Communities,Vulnerable Young People,Sen/Inclusion,Private Contractors,Third Party Prov - Private,PH101,22/04/2013,188507,"5,599.88",REVENUE,REFLEXION CARE GROUP LIMITED,106975
North East Lincolnshire Council,http://statistics.data.gov.uk/id/local-authority/00FC,People And Communities,Vulnerable Young People,Sen/Inclusion,Other Local Authorities,Third Pp - Other Local Auth,PC101,08/04/2013,188509,"6,121.44",REVENUE,NEW OPTIONS LTD,105590
North East Lincolnshire Council,http://statistics.data.gov.uk/id/local-authority/00FC,People And Communities,Vulnerable Young People,Sen/Inclusion,Other Local Authorities,Third Pp - Other Local Auth,PC101,22/04/2013,188507,"8,846.32",REVENUE,REFLEXION CARE GROUP LIMITED,106975
North East Lincolnshire Council,http://statistics.data.gov.uk/id/local-authority/00FC,People And Communities,Vulnerable Young People,Sen/Inclusion,Private Contractors,Third Party Prov - Private,PH101,24/04/2013,188560,"8,957.01",REVENUE,QUALITY TIME CARE LTD,102519
North East Lincolnshire Council,http://statistics.data.gov.uk/id/local-authority/00FC,People And Communities,Vulnerable Young People,Sen/Inclusion,Private Contractors,Third Party Prov - Private,PH101,08/04/2013,188438,"9,999.92",REVENUE,ASPIREONE CARE LTD,110181
North East Lincolnshire Council,http://statistics.data.gov.uk/id/local-authority/00FC,People And Communities,Vulnerable Young People,Sen/Inclusion,Private Contractors,Third Party Prov - Private,PH101,08/04/2013,188482,"11,071.34",REVENUE,ASPIREONE CARE LTD,110181
North East Lincolnshire Council,http://statistics.data.gov.uk/id/local-authority/00FC,People And Communities,Vulnerable Young People,Sen/Inclusion,Private Contractors,Third Party Prov - Private,PH101,17/04/2013,188555,"11,957.01",REVENUE,ADVANCED CHILDCARE,119448
North East Lincolnshire Council,http://statistics.data.gov.uk/id/local-authority/00FC,People And Communities,Vulnerable Young People,Sen/Inclusion,Private Contractors,Third Party Prov - Private,PH101,08/04/2013,188436,"12,796.00",REVENUE,ASPIREONE CARE LTD,110181
North East Lincolnshire Council,http://statistics.data.gov.uk/id/local-authority/00FC,People And Communities,Vulnerable Young People,Sen/Inclusion,Other Local Authorities,Third Pp - Other Local Auth,PC101,09/04/2013,188557,"13,500.00",REVENUE,HORTON EDUCATION AND CARE,103394
North East Lincolnshire Council,http://statistics.data.gov.uk/id/local-authority/00FC,People And Communities,Vulnerable Young People,Sen/Inclusion,Other Local Authorities,Third Pp - Other Local Auth,PC101,09/04/2013,188557,"13,500.00",REVENUE,HORTON EDUCATION AND CARE,103394
North East Lincolnshire Council,http://statistics.data.gov.uk/id/local-authority/00FC,People And Communities,Vulnerable Young People,Sen/Inclusion,Private Contractors,Third Party Prov - Private,PH101,15/04/2013,188483,"14,167.00",REVENUE,ASPIREONE CARE LTD,110181
North East Lincolnshire Council,http://statistics.data.gov.uk/id/local-authority/00FC,People And Communities,Vulnerable Young People,Sen/Inclusion,Private Contractors,Third Party Prov - Private,PH101,08/04/2013,188505,"14,614.29",REVENUE,TURNAROUND,101726
North East Lincolnshire Council,http://statistics.data.gov.uk/id/local-authority/00FC,People And Communities,Vulnerable Young People,Sen/Inclusion,Other Local Authorities,Third Pp - Other Local Auth,PC101,22/04/2013,188504,"19,990.00",REVENUE,THE WILLIAM HENRY SMITH SCHOOL,100754
North East Lincolnshire Council,http://statistics.data.gov.uk/id/local-authority/00FC,People And Communities,Vulnerable Young People,Sen/Inclusion,Other Local Authorities,Third Pp - Other Local Auth,PC101,22/04/2013,188504,"19,990.00",REVENUE,THE WILLIAM HENRY SMITH SCHOOL,100754
North East Lincolnshire Council,http://statistics.data.gov.uk/id/local-authority/00FC,People And Communities,Vulnerable Young People,Sen/Inclusion,Private Contractors,Third Party Prov - Private,PH101,11/04/2013,188558,"21,478.66",REVENUE,PHYSIS QUANTUM,118777
North East Lincolnshire Council,http://statistics.data.gov.uk/id/local-authority/00FC,People And Communities,Vulnerable Young People,Sen/Inclusion,Other Local Authorities,Third Pp - Other Local Auth,PC101,22/04/2013,191931,"21,682.08",REVENUE,HUMBERSTON PARK SPECIAL SCHOOL,107911
North East Lincolnshire Council,http://statistics.data.gov.uk/id/local-authority/00FC,People And Communities,Vulnerable Young People,Sen/Inclusion,Other Local Authorities,Third Pp - Other Local Auth,PC101,22/04/2013,191675,"24,762.51",REVENUE,HUMBERSTON PARK SPECIAL SCHOOL,107911
North East Lincolnshire Council,http://statistics.data.gov.uk/id/local-authority/00FC,People And Communities,Vulnerable Young People,Sen/Inclusion,Other Local Authorities,Third Pp - Other Local Auth,PC101,22/04/2013,191652,"51,300.67",REVENUE,KISIMUL SCHOOL,100406
North East Lincolnshire Council,http://statistics.data.gov.uk/id/local-authority/00FC,People And Communities,Vulnerable Young People,Sen/Inclusion,Other Local Authorities,Third Pp - Other Local Auth,PC101,22/04/2013,191651,"96,899.12",REVENUE,KISIMUL SCHOOL,100406
North East Lincolnshire Council,http://statistics.data.gov.uk/id/local-authority/00FC,People And Communities,Vulnerable Young People,Sen/Inclusion,Other Local Authorities,Third Pp - Other Local Auth,PC101,04/04/2013,188146,"170,228.00",REVENUE,LINCOLNSHIRE COUNTY COUNCIL,100389
North East Lincolnshire Council,http://statistics.data.gov.uk/id/local-authority/00FC,People And Communities,Vulnerable Young People,Sen/Inclusion,Contributions To Provisions,Contributions - Other,LK103,10/04/2013,189234,330.00,REVENUE,WIZ KIDZ,102424
North East Lincolnshire Council,http://statistics.data.gov.uk/id/local-authority/00FC,People And Communities,Vulnerable Young People,Sen/Inclusion,Indirect Employee Expenses,Staff Training,EB122,30/04/2013,193023,300.00,REVENUE,COVENTRY & WARWICKSHIRE PARTNERSHIP TRUST,119772
North East Lincolnshire Council,http://statistics.data.gov.uk/id/local-authority/00FC,People And Communities,Vulnerable Young People,Sen/Inclusion,Private Contractors,Third Party Prov - Private,PH101,10/04/2013,188993,REDACTED COMMERCIALLY SENSITIVE,REVENUE,SERCO SHARED SERVICES CENTRE,101875
North East Lincolnshire Council,http://statistics.data.gov.uk/id/local-authority/00FC,People And Communities,Vulnerable Young People,Sen/Inclusion,Contributions To Provisions,Contributions - Other,LK103,10/04/2013,189093,600.00,REVENUE,MR R G FLOWERDAY,107027
North East Lincolnshire Council,http://statistics.data.gov.uk/id/local-authority/00FC,People And Communities,Vulnerable Young People,Sen/Inclusion,Contributions To Provisions,Contributions - Other,LK103,22/04/2013,189107,"1,000.00",REVENUE,MR R G FLOWERDAY,107027
North East Lincolnshire Council,http://statistics.data.gov.uk/id/local-authority/00FC,People And Communities,Vulnerable Young People,Sen/Inclusion,Contributions To Provisions,Contributions - Other,LK103,10/04/2013,189072,"57,083.34",REVENUE,HUMBERSTON PARK SPECIAL SCHOOL,107911
North East Lincolnshire Council,http://statistics.data.gov.uk/id/local-authority/00FC,People And Communities,Vulnerable Young People,Sen/Inclusion,Other Local Authorities,Third Pp - Other Local Auth,PC101,30/04/2013,193425,352.48,REVENUE,BIRMINGHAM CITY COUNCIL,101363
North East Lincolnshire Council,http://statistics.data.gov.uk/id/local-authority/00FC,People And Communities,Vulnerable Young People,Sen/Inclusion,Other Local Authorities,Third Pp - Other Local Auth,PC101,09/04/2013,188145,"5,641.86",REVENUE,SHEFFIELD CITY COUNCIL,101195
North East Lincolnshire Council,http://statistics.data.gov.uk/id/local-authority/00FC,People And Communities,Vulnerable Young People,Sen/Inclusion,Other Local Authorities,Third Pp - Other Local Auth,PC101,25/04/2013,192935,"7,366.00",REVENUE,N LINCS & GOOLE HOSPITALS NHS,111074
North East Lincolnshire Council,http://statistics.data.gov.uk/id/local-authority/00FC,People And Communities,Vulnerable Young People,Sen/Inclusion,Contributions To Provisions,Contributions - Other,LK103,08/04/2013,188391,"4,000.00",REVENUE,N LINCS & GOOLE HOSPITALS NHS,111074
North East Lincolnshire Council,http://statistics.data.gov.uk/id/local-authority/00FC,People And Communities,Vulnerable Young People,Sen/Inclusion,Direct Employee Expenses,Pay Teachers Supply Cover,EA106,30/04/2013,192880,470.48,REVENUE,TEACHING PERSONNEL LTD,101305
North East Lincolnshire Council,http://statistics.data.gov.uk/id/local-authority/00FC,People And Communities,Vulnerable Young People,Sen/Inclusion,Direct Employee Expenses,Pay Teachers Supply Cover,EA106,25/04/2013,192877,"1,187.50",REVENUE,TEACHING PERSONNEL LTD,101305
North East Lincolnshire Council,http://statistics.data.gov.uk/id/local-authority/00FC,People And Communities,Vulnerable Young People,Sen/Inclusion,Miscellaneous Expenses,Exam Fees,LL115,30/04/2013,193347,347.40,REVENUE,ASSESSMENT AND QUALIFICATIONS ALLIANCE,101139
North East Lincolnshire Council,http://statistics.data.gov.uk/id/local-authority/00FC,People And Communities,Vulnerable Young People,Sen/Inclusion,Miscellaneous Expenses,Exam Fees,LL115,30/04/2013,192884,465.10,REVENUE,EDEXCEL LIMITED,101548
North East Lincolnshire Council,http://statistics.data.gov.uk/id/local-authority/00FC,People And Communities,Vulnerable Young People,Sen/Inclusion,Consultancy,Consultancy - Curriculum,PL102,17/04/2013,191047,270.00,REVENUE,CRUSADER LIMITED,109338
North East Lincolnshire Council,http://statistics.data.gov.uk/id/local-authority/00FC,People And Communities,Vulnerable Young People,Sen/Inclusion,Direct Employee Expenses,Agency Supply Teachers,EA104,17/04/2013,190606,270.00,REVENUE,VISION FOR EDUCATION LTD,102399
North East Lincolnshire Council,http://statistics.data.gov.uk/id/local-authority/00FC,People And Communities,Vulnerable Young People,Sen/Inclusion,Direct Employee Expenses,Agency Supply Teachers,EA104,15/04/2013,190074,300.00,REVENUE,VISION FOR EDUCATION LTD,102399
North East Lincolnshire Council,http://statistics.data.gov.uk/id/local-authority/00FC,People And Communities,Vulnerable Young People,Sen/Inclusion,Direct Employee Expenses,Agency Supply Teachers,EA104,17/04/2013,190596,300.00,REVENUE,VISION FOR EDUCATION LTD,102399
North East Lincolnshire Council,http://statistics.data.gov.uk/id/local-authority/00FC,People And Communities,Vulnerable Young People,Sen/Inclusion,Direct Employee Expenses,Agency Supply Teachers,EA104,30/04/2013,192865,360.00,REVENUE,VISION FOR EDUCATION LTD,102399
North East Lincolnshire Council,http://statistics.data.gov.uk/id/local-authority/00FC,People And Communities,Vulnerable Young People,Sen/Inclusion,Direct Employee Expenses,Agency Supply Teachers,EA104,17/04/2013,190145,450.00,REVENUE,VISION FOR EDUCATION LTD,102399
North East Lincolnshire Council,http://statistics.data.gov.uk/id/local-authority/00FC,People And Communities,Vulnerable Young People,Sen/Inclusion,Direct Employee Expenses,Agency Supply Teachers,EA104,30/04/2013,192895,475.00,REVENUE,TEACHING PERSONNEL LTD,101305
North East Lincolnshire Council,http://statistics.data.gov.uk/id/local-authority/00FC,People And Communities,Vulnerable Young People,Sen/Inclusion,Direct Employee Expenses,Agency Supply Teachers,EA104,30/04/2013,192864,480.00,REVENUE,VISION FOR EDUCATION LTD,102399
North East Lincolnshire Council,http://statistics.data.gov.uk/id/local-authority/00FC,People And Communities,Vulnerable Young People,Sen/Inclusion,Direct Employee Expenses,Agency Supply Teachers,EA104,15/04/2013,190122,593.75,REVENUE,TEACHING PERSONNEL LTD,101305
North East Lincolnshire Council,http://statistics.data.gov.uk/id/local-authority/00FC,People And Communities,Vulnerable Young People,Sen/Inclusion,Direct Employee Expenses,Agency Supply Teachers,EA104,10/04/2013,189088,593.75,REVENUE,TEACHING PERSONNEL LTD,101305
North East Lincolnshire Council,http://statistics.data.gov.uk/id/local-authority/00FC,People And Communities,Vulnerable Young People,Sen/Inclusion,Direct Employee Expenses,Agency Supply Teachers,EA104,17/04/2013,190146,600.00,REVENUE,VISION FOR EDUCATION LTD,102399
